Workbook

Sheet Instructions
B1: Tennessee Higher Education Commission
B2: Outcomes-Based Funding Dynamic Simulation Instructions
C11: 102 | G11: 101 | K11: 100
C13: 0.01 | D13: 0.01 | E13: 0.01 | F13: 0.01 | G13: 0.01 | H13: 0.01 | I13: 0.01 | J13: 0.01 | K13: 0.01
C14: 0.01 | D14: 0.01 | E14: 0.01 | F14: 0.01 | G14: 0.01 | H14: 0.01 | I14: 0.01 | J14: 0.01 | K14: 0.01
C15: 0.01 | D15: 0.01 | E15: 0.01 | F15: 0.01 | G15: 0.01 | H15: 0.01 | I15: 0.01 | J15: 0.01 | K15: 0.01
C16: 0.01 | D16: 0.01 | E16: 0.01 | F16: 0.01 | G16: 0.01 | H16: 0.01 | I16: 0.01 | J16: 0.01 | K16: 0.01
C17: 0.01 | D17: 0.01 | E17: 0.01 | F17: 0.01 | G17: 0.01 | H17: 0.01 | I17: 0.01 | J17: 0.01 | K17: 0.01
C18: 0.01 | D18: 0.01 | E18: 0.01 | F18: 0.01 | G18: 0.01 | H18: 0.01 | I18: 0.01 | J18: 0.01 | K18: 0.01
C19: 0.01 | D19: 0.01 | E19: 0.01 | F19: 0.01 | G19: 0.01 | H19: 0.01 | I19: 0.01 | J19: 0.01 | K19: 0.01
C20: 0.01 | D20: 0.01 | E20: 0.01 | F20: 0.01 | G20: 0.01 | H20: 0.01 | I20: 0.01 | J20: 0.01 | K20: 0.01
C21: 0.01 | D21: 0.01 | E21: 0.01 | F21: 0.01 | G21: 0.01 | H21: 0.01 | I21: 0.01 | J21: 0.01 | K21: 0.01
C22: 0.01 | D22: 0.01 | E22: 0.01 | F22: 0.01 | G22: 0.01 | H22: 0.01 | I22: 0.01 | J22: 0.01 | K22: 0.01
C23: 0.01 | D23: 0.01 | E23: 0.01 | F23: 0.01 | G23: 0.01 | H23: 0.01 | I23: 0.01 | J23: 0.01 | K23: 0.01
C24: 0.01 | D24: 0.01 | E24: 0.01 | F24: 0.01 | G24: 0.01 | H24: 0.01 | I24: 0.01 | J24: 0.01 | K24: 0.01
C26: 113 | G26: 100 | K26: 100
C31: 100 | G31: 100 | K31: 100
C40: 100

Sheet Outcomes
B1: Tennessee Higher Education Commission
B2: Estimated Changes in FY 2015-16 Formula Outcomes
C3: Select institutions:
C4: Chattanooga | D4: APSU | E4: All CC | F4: All 4yr | G4: All TCAT | H4: Total | J4: 14-15 Appropriations | M4: ='Printable Summary'!C6 -> 827231300
B5: Change in Est. Funding | C5: =VLOOKUP(C4,'Printable Summary'!F6:H30,2,0) -> 0 | D5: =VLOOKUP(D4,'Printable Summary'!F6:H31,2,0) -> 0 | E5: ='Printable Summary'!G27 -> 0 | F5: ='Printable Summary'!G12+'Printable Summary'!G32 -> 0 | G5: ='Printable Summary'!G34 -> 0 | H5: ='Printable Summary'!G36 -> 0 | J5: Estimated 15-16 Appropriations | M5: ='Printable Summary'!C7 -> 827231300
B6: Percent Change in Est. Funding | C6: =VLOOKUP(C4,'Printable Summary'!F6:H30,3,0) -> 0 | D6: =VLOOKUP(D4,'Printable Summary'!F6:H31,3,0) -> 0 | E6: ='Printable Summary'!H27 -> 0 | F6: =SUM('Printable Summary'!G12,'Printable Summary'!G32)/(SUM(Working!C13,Working!C33)) -> 0 | G6: ='Printable Summary'!H34 -> 0 | H6: ='Printable Summary'!H36 -> 0 | J6: Change | M6: ='Printable Summary'!C9 -> 0 | N6: ='Printable Summary'!C8 -> 0 | U6: WORKING AREA------
B7: Change in Weighted Outcomes | C7: =HLOOKUP($C$4,$R$135:$AE$139,5,0) -> 0 | D7: =HLOOKUP($D$4,$R$276:$Z$281,5,0) -> 0 | E7: =AE139 -> 0 | F7: =AA280 -> 0 | G7: n/a | H7: =AE139+AA280 -> 0
B8: Change in Weighted Outcomes | C8: =HLOOKUP(C4, R135:AE140, 6,0) -> 0 | D8: =HLOOKUP($D$4,$R$276:$Z$281,6,0) -> 0 | E8: =E7/AE136 -> 0 | F8: =F7/AA277 -> 0 | G8: n/a | H8: =H7/(AE136+AA277) -> 0
B11: CC Outcomes Annual Changes | C11: Chattanooga | D11: Cleveland | E11: Columbia | F11: Dyersburg | G11: Jackson | H11: Motlow | I11: Nashville | J11: Northeast | K11: Pellissippi | L11: Roane | M11: Southwest | N11: Volunteer | O11: Walters | U11: =C4 -> Chattanooga | W11: Avg CC Change | AB11: Change in Weighted Outcomes | AC11: 0.003333333333 | AD11: 0.003333333333 | AE11: 0.006666666667 | AF11: 0.005713081067
B12: Students Accumulating 12 hrs | C12: 0 | D12: 0 | E12: 0 | F12: 0 | G12: 0 | H12: 0 | I12: 0 | J12: 0 | K12: 0 | L12: 0 | M12: 0 | N12: 0 | O12: 0 | U12: =HLOOKUP($U$11,$C$11:$O$25,2) -> 0 | W12: =AVERAGE(C12:O12) -> 0 | X12: =13*W12 -> 0 | AC12: =C4 -> Chattanooga | AD12: =E4 -> All CC | AE12: =F4 -> All 4yr | AF12: =H4 -> Total
B13: Students Accumulating 24 hrs | C13: 0 | D13: 0 | E13: 0 | F13: 0 | G13: 0 | H13: 0 | I13: 0 | J13: 0 | K13: 0 | L13: 0 | M13: 0 | N13: 0 | O13: 0 | U13: =HLOOKUP($U$11,$C$11:$O$25,3) -> 0 | W13: =AVERAGE(C13:O13) -> 0 | X13: 0 | AB13: Change in Appropriations | AC13: =C6 -> 0 | AD13: =E6 -> 0 | AE13: =F6 -> 0 | AF13: =H6 -> 0
B14: Students Accumulating 36 hrs | C14: 0 | D14: 0 | E14: 0 | F14: 0 | G14: 0 | H14: 0 | I14: 0 | J14: 0 | K14: 0 | L14: 0 | M14: 0 | N14: 0 | O14: 0 | U14: =HLOOKUP($U$11,$C$11:$O$25,4) -> 0 | W14: 0 | X14: 0 | AB14: Change in Weighted Outcomes | AC14: =C8 -> 0 | AD14: =E8 -> 0 | AE14: =F8 -> 0 | AF14: =H8 -> 0
B15: Dual Enrollment | C15: 0 | D15: 0 | E15: 0 | F15: 0 | G15: 0 | H15: 0 | I15: 0 | J15: 0 | K15: 0 | L15: 0 | M15: 0 | N15: 0 | O15: 0 | U15: =HLOOKUP($U$11,$C$11:$O$25,5) -> 0 | W15: 0 | X15: 0
B16: Associates | C16: 0 | D16: 0 | E16: 0 | F16: 0 | G16: 0 | H16: 0 | I16: 0 | J16: 0 | K16: 0 | L16: 0 | M16: 0 | N16: 0 | O16: 0 | U16: =HLOOKUP($U$11,$C$11:$O$25,6) -> 0 | W16: 0 | X16: 0
B17: Certificates 1-2 Years | C17: 0 | D17: 0 | E17: 0 | F17: 0 | G17: 0 | H17: 0 | I17: 0 | J17: 0 | K17: 0 | L17: 0 | M17: 0 | N17: 0 | O17: 0 | U17: =HLOOKUP($U$11,$C$11:$O$25,7) -> 0 | W17: 0 | X17: 0
B18: Certificates Less Than 1 Year | C18: 0 | D18: 0 | E18: 0 | F18: 0 | G18: 0 | H18: 0 | I18: 0 | J18: 0 | K18: 0 | L18: 0 | M18: 0 | N18: 0 | O18: 0 | U18: =HLOOKUP($U$11,$C$11:$O$25,8) -> 0 | W18: 0 | X18: 0
B19: Job Placements | C19: 0 | D19: 0 | E19: 0 | F19: 0 | G19: 0 | H19: 0 | I19: 0 | J19: 0 | K19: 0 | L19: 0 | M19: 0 | N19: 0 | O19: 0 | U19: =HLOOKUP($U$11,$C$11:$O$25,9) -> 0 | W19: 0 | X19: 0
B20: R & D Success | C20: 0 | D20: 0 | E20: 0 | F20: 0 | G20: 0 | H20: 0 | I20: 0 | J20: 0 | K20: 0 | L20: 0 | M20: 0 | N20: 0 | O20: 0 | U20: =HLOOKUP($U$11,$C$11:$O$25,10) -> 0 | W20: 0 | X20: 0
B21: Transfers Out with 12 hrs | C21: 0 | D21: 0 | E21: 0 | F21: 0 | G21: 0 | H21: 0 | I21: 0 | J21: 0 | K21: 0 | L21: 0 | M21: 0 | N21: 0 | O21: 0 | U21: =HLOOKUP($U$11,$C$11:$O$25,11) -> 0 | W21: 0 | X21: 0
B22: Workforce Training | C22: 0 | D22: 0 | E22: 0 | F22: 0 | G22: 0 | H22: 0 | I22: 0 | J22: 0 | K22: 0 | L22: 0 | M22: 0 | N22: 0 | O22: 0 | U22: =HLOOKUP($U$11,$C$11:$O$25,12) -> 0 | W22: 0 | X22: 0
B23: Awards per 100 FTE | C23: 0 | D23: 0 | E23: 0 | F23: 0 | G23: 0 | H23: 0 | I23: 0 | J23: 0 | K23: 0 | L23: 0 | M23: 0 | N23: 0 | O23: 0 | U23: =HLOOKUP($U$11,$C$11:$O$25,13) -> 0 | W23: 0 | X23: 0
B24: Sub-population Adult | C24: 0 | D24: 0 | E24: 0 | F24: 0 | G24: 0 | H24: 0 | I24: 0 | J24: 0 | K24: 0 | L24: 0 | M24: 0 | N24: 0 | O24: 0 | U24: =HLOOKUP($U$11,$C$11:$O$25,14) -> 0 | W24: 0 | X24: 0
B25: Sub-population Pell | C25: 0 | D25: 0 | E25: 0 | F25: 0 | G25: 0 | H25: 0 | I25: 0 | J25: 0 | K25: 0 | L25: 0 | M25: 0 | N25: 0 | O25: 0 | U25: =HLOOKUP($U$11,$C$11:$O$25,15) -> 0 | W25: 0 | X25: 0
B26: Percent Change in Est. Funding | C26: ='Printable Summary'!$H14 -> 0 | D26: ='Printable Summary'!$H15 -> 0 | E26: ='Printable Summary'!$H16 -> 0 | F26: ='Printable Summary'!$H17 -> 0 | G26: ='Printable Summary'!$H18 -> 0 | H26: ='Printable Summary'!$H19 -> 0 | I26: ='Printable Summary'!$H20 -> 0 | J26: ='Printable Summary'!$H21 -> 0 | K26: ='Printable Summary'!$H22 -> 0 | L26: ='Printable Summary'!$H23 -> 0 | M26: ='Printable Summary'!$H24 -> 0 | N26: ='Printable Summary'!$H25 -> 0 | O26: ='Printable Summary'!$H26 -> 0
B27: Change in Est. Funding ($1K) | C27: =Working!$N15/1000 -> 0 | D27: =Working!$N16/1000 -> 0 | E27: =Working!$N17/1000 -> 0 | F27: =Working!$N18/1000 -> 0 | G27: =Working!$N19/1000 -> 0 | H27: =Working!$N20/1000 -> 0 | I27: =Working!$N21/1000 -> 0 | J27: =Working!$N22/1000 -> 0 | K27: =Working!$N23/1000 -> 0 | L27: =Working!$N24/1000 -> 0 | M27: =Working!$N25/1000 -> 0 | N27: =Working!$N26/1000 -> 0 | O27: =Working!$N27/1000 -> 0
B29: Univ Outcomes Annual Changes | C29: UTM | D29: APSU | E29: TTU | F29: UTC | G29: MTSU | H29: ETSU | I29: TSU | J29: UM | K29: UTK | L29: CC | N29: 4 Yr | U29: =D4 -> APSU | W29: Avg 4yr Change
B30: Students Accumulating 24 hrs | C30: 0 | D30: 0 | E30: 0 | F30: 0 | G30: 0 | H30: 0 | I30: 0 | J30: 0 | K30: 0 | U30: =HLOOKUP($U$29,$C$29:$K$41,2,0) -> 0 | W30: =AVERAGE(C30:K30) -> 0
B31: Students Accumulating 48 hrs | C31: 0 | D31: 0 | E31: 0 | F31: 0 | G31: 0 | H31: 0 | I31: 0 | J31: 0 | K31: 0 | U31: =HLOOKUP($U$29,$C$29:$K$41,3,0) -> 0 | W31: =AVERAGE(C31:K31) -> 0
B32: Students Accumulating 72 hrs | C32: 0 | D32: 0 | E32: 0 | F32: 0 | G32: 0 | H32: 0 | I32: 0 | J32: 0 | K32: 0 | U32: =HLOOKUP($U$29,$C$29:$K$41,4,0) -> 0 | W32: 0
B33: Bachelors and Associates | C33: 0 | D33: 0 | E33: 0 | F33: 0 | G33: 0 | H33: 0 | I33: 0 | J33: 0 | K33: 0 | U33: =HLOOKUP($U$29,$C$29:$K$41,5,0) -> 0 | W33: 0
B34: Masters/Ed Specialist Degrees | C34: 0 | D34: 0 | E34: 0 | F34: 0 | G34: 0 | H34: 0 | I34: 0 | J34: 0 | K34: 0 | U34: =HLOOKUP($U$29,$C$29:$K$41,6,0) -> 0 | W34: 0
B35: Doctoral / Law Degrees | C35: 0 | D35: 0 | E35: 0 | F35: 0 | G35: 0 | H35: 0 | I35: 0 | J35: 0 | K35: 0 | U35: =HLOOKUP($U$29,$C$29:$K$41,7,0) -> 0 | W35: 0
B36: Research and Service | C36: 0 | D36: 0 | E36: 0 | F36: 0 | G36: 0 | H36: 0 | I36: 0 | J36: 0 | K36: 0 | U36: =HLOOKUP($U$29,$C$29:$K$41,8,0) -> 0 | W36: 0
B37: Transfers Out with 12 hrs | C37: 0 | D37: 0 | E37: 0 | F37: 0 | G37: 0 | H37: 0 | I37: 0 | J37: 0 | K37: 0 | U37: =HLOOKUP($U$29,$C$29:$K$41,9,0) -> 0 | W37: 0
B38: Degrees per 100 FTE | C38: 0 | D38: 0 | E38: 0 | F38: 0 | G38: 0 | H38: 0 | I38: 0 | J38: 0 | K38: 0 | U38: =HLOOKUP($U$29,$C$29:$K$41,10,0) -> 0 | W38: 0
B39: Six-Year Graduation Rate | C39: 0 | D39: 0 | E39: 0 | F39: 0 | G39: 0 | H39: 0 | I39: 0 | J39: 0 | K39: 0 | U39: =HLOOKUP($U$29,$C$29:$K$41,11,0) -> 0 | W39: 0
B40: Sub-population Adults | C40: 0 | D40: 0 | E40: 0 | F40: 0 | G40: 0 | H40: 0 | I40: 0 | J40: 0 | K40: 0 | U40: =HLOOKUP($U$29,$C$29:$K$41,12,0) -> 0 | W40: 0
B41: Sub-population Pell | C41: 0 | D41: 0 | E41: 0 | F41: 0 | G41: 0 | H41: 0 | I41: 0 | J41: 0 | K41: 0 | L41: =C4 -> Chattanooga | N41: =D4 -> APSU | U41: =HLOOKUP($U$29,$C$29:$K$41,13,0) -> 0 | W41: 0
B42: Percent Change in Est. Funding | C42: ='Printable Summary'!H31 -> 0 | D42: ='Printable Summary'!H6 -> 0 | E42: ='Printable Summary'!H10 -> 0 | F42: ='Printable Summary'!H29 -> 0 | G42: ='Printable Summary'!H8 -> 0 | H42: ='Printable Summary'!H7 -> 0 | I42: ='Printable Summary'!H9 -> 0 | J42: ='Printable Summary'!H11 -> 0 | K42: ='Printable Summary'!H30 -> 0
B43: Change in Est. Funding ($1K) | C43: =Working!N32/1000 -> 0 | D43: =Working!N7/1000 -> 0 | E43: =Working!N11/1000 -> 0 | F43: =Working!N30/1000 -> 0 | G43: =Working!N9/1000 -> 0 | H43: =Working!N8/1000 -> 0 | I43: =Working!N10/1000 -> 0 | J43: =Working!N12/1000 -> 0 | K43: =Working!N31/1000 -> 0
B55: WORKING AREA------ CC
C56: Chattanooga | D56: Cleveland | E56: Columbia | F56: Dyersburg | G56: Jackson | H56: Motlow | I56: Nashville | J56: Northeast | K56: Pellissippi | L56: Roane | M56: Southwest | N56: Volunteer | O56: Walters | P56: All CC
B57: Total Formula Calculation | C57: =ROUND(C166, -2) -> 64059300 | D57: =ROUND(D166, -2) -> 20984000 | E57: 29171800 | F57: 17282300 | G57: 26204100 | H57: 25277200 | I57: 37617700 | J57: 30932100 | K57: 55920100 | L57: 41232600 | M57: 58403900 | N57: 38449500 | O57: 48135000 | P57: =ROUND(P166, -2) -> 493669700
B59: Total | C59: =C57 -> 64059300 | D59: =D57 -> 20984000 | E59: 29171800 | F59: 17282300 | G59: 26204100 | H59: 25277200 | I59: 37617700 | J59: 30932100 | K59: 55920100 | L59: 41232600 | M59: 58403900 | N59: 38449500 | O59: 48135000 | P59: =SUM(C59:O59) -> 493669600
B60: 2014-15 Phase-In Factor | C60: 1 | D60: 1 | E60: 1 | F60: 1 | G60: 1 | H60: 1 | I60: 1 | J60: 1 | K60: 1 | L60: 1 | M60: 1 | N60: 1 | O60: 1 | P60: 1
B61: 2015-16 Total Need Recommendation | C61: =C59*C60 -> 64059300 | D61: =D59*D60 -> 20984000 | E61: 29171800 | F61: 17282300 | G61: 26204100 | H61: 25277200 | I61: 37617700 | J61: 30932100 | K61: 55920100 | L61: 41232600 | M61: 58403900 | N61: 38449500 | O61: 48135000 | P61: =SUM(C61:O61) -> 493669600
B62: 2014-15 Total Need Recommendation | C62: 65212000 | D62: 21864000 | E62: 30501700 | F62: 18083000 | G62: 27431000 | H62: 26361000 | I62: 39262000 | J62: 32598000 | K62: 58073000 | L62: 43069000 | M62: 61028000 | N62: 40145000 | O62: 50358000 | P62: =SUM(C62:O62) -> 513985700
B63: % Change | C63: =C61/C62-1 -> -0.01767619457 | D63: =D61/D62-1 -> -0.04024881083 | E63: -0.04360084848 | F63: -0.04427915722 | G63: -0.04472676898 | H63: -0.04111376655 | I63: -0.0418801895 | J63: -0.05110436223 | K63: -0.03707230555 | L63: -0.04263855673 | M63: -0.04299829586 | N63: -0.0422344003 | O63: -0.04414392947 | P63: =P61/P62 -> 0.9604734139 | S63: Three Years of the Three-Year Average:
B65: Subsidy/Fee Policy | C65: =2/3 -> 0.6666666667 | D65: 0.6666666667 | E65: 0.6666666667 | F65: 0.6666666667 | G65: 0.6666666667 | H65: 0.6666666667 | I65: 0.6666666667 | J65: 0.6666666667 | K65: 0.6666666667 | L65: 0.6666666667 | M65: 0.6666666667 | N65: 0.6666666667 | O65: 0.6666666667 | P65: 0.6666666667
B66: Out of State Tuition Deduct | C66: =C181 -> 2121291.502 | D66: 131370.0031 | E66: 195262.9996 | F66: 89561.37329 | G66: 164202.7435 | H66: 187599.7391 | I66: 327213.364 | J66: 18689.08608 | K66: 620291.4313 | L66: 489419.202 | M66: 410573.9377 | N66: 340160.6768 | O66: 380029.2431 | P66: =SUM(C66:O66) -> 5475665.302
B67: Legislative Initiatives | C67: 0 | D67: 0 | E67: 72700 | F67: 0 | G67: 0 | H67: 0 | I67: 0 | J67: 0 | K67: 0 | L67: 150000 | M67: 0 | N67: 0 | O67: 0 | P67: =SUM(C67:O67) -> 222700 | T67: Chattanooga | U67: Cleveland | V67: Columbia | W67: Dyersburg | X67: Jackson | Y67: Motlow | Z67: Nashville | AA67: Northeast | AB67: Pellissippi | AC67: Roane | AD67: Southwest | AE67: Volunteer | AF67: Walters | AH67: sub pops | AI67: Chattanooga | AJ67: Cleveland | AK67: Columbia | AL67: Dyersburg | AM67: Jackson | AN67: Motlow | AO67: Nashville | AP67: Northeast | AQ67: Pellissippi | AR67: Roane | AS67: Southwest | AT67: Volunteer | AU67: Walters
B68: 2015-16 Recommendation | C68: =ROUND(((C166*C60*C65-C66)*(1+0.0545*C168/100)), -3)+C67 -> 42730000 | D68: =ROUND(((D166*D60*D65-D66)*(1+0.0545*D168/100)), -3)+D67 -> 14530000 | E68: 20290700 | F68: 12024000 | G68: 18229000 | H68: 17508000 | I68: 26060000 | J68: 21726000 | K68: 38498000 | L68: 28591000 | M68: 40541000 | N68: 26644000 | O68: 33438000 | S68: Students Accumulating 12 hrs | T68: 2461.666667 | U68: 1121.666667 | V68: 1572 | W68: 1040 | X68: 1224 | Y68: 1410 | Z68: 2339.333333 | AA68: 1631 | AB68: 2922.333333 | AC68: 1704.333333 | AD68: 3667 | AE68: 2212.666667 | AF68: 1963.666667 | AH68: Adults Accumulating 12 hrs | AI68: 748 | AJ68: 362 | AK68: 341.6666667 | AL68: 303.6666667 | AM68: 317.3333333 | AN68: 307.6666667 | AO68: 1030 | AP68: 531.3333333 | AQ68: 694.6666667 | AR68: 433.3333333 | AS68: 1242.666667 | AT68: 560.3333333 | AU68: 475
S69: Students Accumulating 24 hrs | T69: 1880.666667 | U69: 810 | V69: 1333.333333 | W69: 704 | X69: 943.3333333 | Y69: 1105.333333 | Z69: 1936.333333 | AA69: 1384.666667 | AB69: 2395.333333 | AC69: 1313 | AD69: 2901.333333 | AE69: 1687.333333 | AF69: 1392.666667 | AH69: Adults Accumulating 24 hrs | AI69: 760.3333333 | AJ69: 319.6666667 | AK69: 384.3333333 | AL69: 269 | AM69: 323.3333333 | AN69: 301 | AO69: 928.3333333 | AP69: 544 | AQ69: 709.6666667 | AR69: 399 | AS69: 1210.333333 | AT69: 560.6666667 | AU69: 394.3333333
S70: Students Accumulating 36 hrs | T70: 1628 | U70: 669.3333333 | V70: 1067.333333 | W70: 538 | X70: 773.3333333 | Y70: 952 | Z70: 1666.333333 | AA70: 1201.333333 | AB70: 2017 | AC70: 1135.666667 | AD70: 2206.333333 | AE70: 1433.666667 | AF70: 1204.666667 | AH70: Adults Accumulating 36 hrs | AI70: 736.3333333 | AJ70: 299 | AK70: 358 | AL70: 237.3333333 | AM70: 290.3333333 | AN70: 294.3333333 | AO70: 870 | AP70: 522.6666667 | AQ70: 718 | AR70: 386.6666667 | AS70: 1084.333333 | AT70: 526 | AU70: 399.6666667
B71: Est. Outcomes (10-11 to 12-13 Data) | C71: Chattanooga | D71: Cleveland | E71: Columbia | F71: Dyersburg | G71: Jackson | H71: Motlow | I71: Nashville | J71: Northeast | K71: Pellissippi | L71: Roane | M71: Southwest | N71: Volunteer | O71: Walters | P71: All CC | S71: Dual Enrollment | T71: 1167.666667 | U71: 622.6666667 | V71: 769.3333333 | W71: 818.3333333 | X71: 862 | Y71: 833.3333333 | Z71: 1069.333333 | AA71: 624.6666667 | AB71: 1327.666667 | AC71: 1553 | AD71: 394.3333333 | AE71: 1625.666667 | AF71: 1226.333333 | AH71: Adult Associates | AI71: 572 | AJ71: 208.6666667 | AK71: 281 | AL71: 171 | AM71: 305.3333333 | AN71: 266.3333333 | AO71: 443.3333333 | AP71: 406 | AQ71: 554.6666667 | AR71: 425.3333333 | AS71: 607.6666667 | AT71: 429 | AU71: 371.6666667
B72: Students Accumulating 12 hrs | C72: =(AVERAGE(T96,T82,(T68*(1+C12)))) -> 2461.666667 | D72: =(AVERAGE(U96,U82,(U68*(1+D12)))) -> 1121.666667 | E72: 1572 | F72: 1040 | G72: 1224 | H72: 1410 | I72: 2339.333333 | J72: 1631 | K72: 2922.333333 | L72: 1704.333333 | M72: 3667 | N72: 2212.666667 | O72: 1963.666667 | P72: =SUM(C72:O72) -> 25269.66667 | S72: Associates | T72: 913.3333333 | U72: 365.3333333 | V72: 583.3333333 | W72: 280 | X72: 546.3333333 | Y72: 573.6666667 | Z72: 624.3333333 | AA72: 726.6666667 | AB72: 1097 | AC72: 787.3333333 | AD72: 848.6666667 | AE72: 757.6666667 | AF72: 783 | AH72: Adult 1-2 Year Certificates | AI72: 104.6666667 | AJ72: 29.33333333 | AK72: 32.33333333 | AL72: 17 | AM72: 11 | AN72: 0.3333333333 | AO72: 64.33333333 | AP72: 69.66666667 | AQ72: 0 | AR72: 55.33333333 | AS72: 41 | AT72: 56.66666667 | AU72: 11.33333333
B73: Students Accumulating 24 hrs | C73: =(AVERAGE(T97,T83,(T69*(1+C13)))) -> 1880.666667 | D73: 810 | E73: 1333.333333 | F73: 704 | G73: 943.3333333 | H73: 1105.333333 | I73: 1936.333333 | J73: 1384.666667 | K73: 2395.333333 | L73: 1313 | M73: 2901.333333 | N73: 1687.333333 | O73: 1392.666667 | P73: 19787.33333 | S73: Certificates 1-2 Years | T73: 166 | U73: 39 | V73: 50 | W73: 24.33333333 | X73: 22.66666667 | Y73: 0.3333333333 | Z73: 83.33333333 | AA73: 115.3333333 | AB73: 0 | AC73: 76 | AD73: 58.33333333 | AE73: 81 | AF73: 16 | AH73: Adult <1yr Certificates | AI73: 71 | AJ73: 90 | AK73: 1.666666667 | AL73: 6 | AM73: 14.66666667 | AN73: 27.33333333 | AO73: 122.6666667 | AP73: 8 | AQ73: 207.6666667 | AR73: 16.33333333 | AS73: 210.6666667 | AT73: 180.3333333 | AU73: 158.6666667
B74: Students Accumulating 36 hrs | C74: 1628 | D74: 669.3333333 | E74: 1067.333333 | F74: 538 | G74: 773.3333333 | H74: 952 | I74: 1666.333333 | J74: 1201.333333 | K74: 2017 | L74: 1135.666667 | M74: 2206.333333 | N74: 1433.666667 | O74: 1204.666667 | P74: 16493 | S74: Certificates < 1 Year | T74: 109 | U74: 154.6666667 | V74: 1.666666667 | W74: 10 | X74: 29.33333333 | Y74: 31.66666667 | Z74: 152.3333333 | AA74: 12.66666667 | AB74: 448.3333333 | AC74: 20.66666667 | AD74: 329.3333333 | AE74: 304.6666667 | AF74: 249 | AH74: Low-income Accumulating 12 hrs | AI74: 1393.666667 | AJ74: 704.3333333 | AK74: 860 | AL74: 674.6666667 | AM74: 849.6666667 | AN74: 777 | AO74: 1610 | AP74: 1059 | AQ74: 1563 | AR74: 1060.333333 | AS74: 2568 | AT74: 1226 | AU74: 1220
B75: Dual Enrollment | C75: 1167.666667 | D75: 622.6666667 | E75: 769.3333333 | F75: 818.3333333 | G75: 862 | H75: 833.3333333 | I75: 1069.333333 | J75: 624.6666667 | K75: 1327.666667 | L75: 1553 | M75: 394.3333333 | N75: 1625.666667 | O75: 1226.333333 | P75: 12894.33333 | S75: Job Placements | T75: 405.6666667 | U75: 202 | V75: 228.6666667 | W75: 106.6666667 | X75: 306.6666667 | Y75: 82.66666667 | Z75: 320.3333333 | AA75: 261.6666667 | AB75: 298 | AC75: 402.3333333 | AD75: 429 | AE75: 371 | AF75: 506 | AH75: Low-income Accumulating 24 hrs | AI75: 1169 | AJ75: 551 | AK75: 775 | AL75: 511.3333333 | AM75: 707 | AN75: 659.6666667 | AO75: 1341.333333 | AP75: 954.6666667 | AQ75: 1368 | AR75: 902.6666667 | AS75: 2049.333333 | AT75: 1056 | AU75: 948
B76: Associates | C76: =(AVERAGE(T100,T86,(T72*(1+C16)))) -> 913.3333333 | D76: 365.3333333 | E76: 583.3333333 | F76: 280 | G76: 546.3333333 | H76: 573.6666667 | I76: 624.3333333 | J76: 726.6666667 | K76: 1097 | L76: 787.3333333 | M76: 848.6666667 | N76: 757.6666667 | O76: 783 | P76: 8886.666667 | S76: Remedial & Developmental Success | T76: 2627.666667 | U76: 934.3333333 | V76: 1422 | W76: 1070.666667 | X76: 1338 | Y76: 1584 | Z76: 2889 | AA76: 1819.666667 | AB76: 2628.666667 | AC76: 1586.333333 | AD76: 4446.333333 | AE76: 2240.333333 | AF76: 1736 | AH76: Low-income Accumulating 36 hrs | AI76: 1018.666667 | AJ76: 465.6666667 | AK76: 631.6666667 | AL76: 404 | AM76: 578.3333333 | AN76: 581.3333333 | AO76: 1171.333333 | AP76: 841.6666667 | AQ76: 1205.333333 | AR76: 803.3333333 | AS76: 1605 | AT76: 911.3333333 | AU76: 839.3333333
B77: Certificates 1-2 Years | C77: 166 | D77: 39 | E77: 50 | F77: 24.33333333 | G77: 22.66666667 | H77: 0.3333333333 | I77: 83.33333333 | J77: 115.3333333 | K77: 0 | L77: 76 | M77: 58.33333333 | N77: 81 | O77: 16 | P77: 732.3333333 | S77: Transfers Out with 12 hrs | T77: 510.6666667 | U77: 214 | V77: 424 | W77: 216.6666667 | X77: 287.3333333 | Y77: 515.6666667 | Z77: 621.6666667 | AA77: 383 | AB77: 730 | AC77: 448 | AD77: 740.6666667 | AE77: 582.6666667 | AF77: 424.3333333 | AH77: Low-income Associates | AI77: 550.3333333 | AJ77: 251.6666667 | AK77: 350 | AL77: 204.6666667 | AM77: 379.3333333 | AN77: 350.3333333 | AO77: 418.3333333 | AP77: 495 | AQ77: 683.3333333 | AR77: 522 | AS77: 597.6666667 | AT77: 477.3333333 | AU77: 529.3333333
B78: Certificates < 1 Year | C78: 109 | D78: 154.6666667 | E78: 1.666666667 | F78: 10 | G78: 29.33333333 | H78: 31.66666667 | I78: 152.3333333 | J78: 12.66666667 | K78: 448.3333333 | L78: 20.66666667 | M78: 329.3333333 | N78: 304.6666667 | O78: 249 | P78: 1853.333333 | S78: Workforce Training (Contact Hours) | T78: 185122.3333 | U78: 6295.333333 | V78: 61429.66667 | W78: 6350 | X78: 16351.16667 | Y78: 6603 | Z78: 36158.66667 | AA78: 6182.5 | AB78: 51527.6 | AC78: 97898.16667 | AD78: 67463.89667 | AE78: 80459.01667 | AF78: 173663.6667 | AH78: Low-income 1-2 Year Certificates | AI78: 80 | AJ78: 27 | AK78: 21.33333333 | AL78: 17 | AM78: 15.33333333 | AN78: 0 | AO78: 44.33333333 | AP78: 73.33333333 | AQ78: 0 | AR78: 48.33333333 | AS78: 30.33333333 | AT78: 44.66666667 | AU78: 9
B79: Job Placements | C79: 405.6666667 | D79: 202 | E79: 228.6666667 | F79: 106.6666667 | G79: 306.6666667 | H79: 82.66666667 | I79: 320.3333333 | J79: 261.6666667 | K79: 298 | L79: 402.3333333 | M79: 429 | N79: 371 | O79: 506 | P79: 3920.666667 | S79: Awards per 100 FTE | T79: 15.28946159 | U79: 15.38759573 | V79: 17.3958088 | W79: 13.10866839 | X79: 17.14983291 | Y79: 17.67649884 | Z79: 10.93015107 | AA79: 17.89149147 | AB79: 14.28169742 | AC79: 19.32925752 | AD79: 10.11329152 | AE79: 14.5926301 | AF79: 17.17562675 | AH79: Low-income <1yr Certificates | AI79: 62 | AJ79: 91 | AK79: 1.333333333 | AL79: 6.333333333 | AM79: 19 | AN79: 13.66666667 | AO79: 75 | AP79: 9 | AQ79: 257.3333333 | AR79: 12.33333333 | AS79: 208.6666667 | AT79: 162 | AU79: 143
B80: Remedial & Developmental Success | C80: 2627.666667 | D80: 934.3333333 | E80: 1422 | F80: 1070.666667 | G80: 1338 | H80: 1584 | I80: 2889 | J80: 1819.666667 | K80: 2628.666667 | L80: 1586.333333 | M80: 4446.333333 | N80: 2240.333333 | O80: 1736 | P80: 26323
B81: Transfers Out with 12 hrs | C81: 510.6666667 | D81: 214 | E81: 424 | F81: 216.6666667 | G81: 287.3333333 | H81: 515.6666667 | I81: 621.6666667 | J81: 383 | K81: 730 | L81: 448 | M81: 740.6666667 | N81: 582.6666667 | O81: 424.3333333 | P81: 6098.666667 | T81: Chattanooga | U81: Cleveland | V81: Columbia | W81: Dyersburg | X81: Jackson | Y81: Motlow | Z81: Nashville | AA81: Northeast | AB81: Pellissippi | AC81: Roane | AD81: Southwest | AE81: Volunteer | AF81: Walters | AH81: sub pops | AI81: Chattanooga | AJ81: Cleveland | AK81: Columbia | AL81: Dyersburg | AM81: Jackson | AN81: Motlow | AO81: Nashville | AP81: Northeast | AQ81: Pellissippi | AR81: Roane | AS81: Southwest | AT81: Volunteer | AU81: Walters
B82: Workforce Training (Contact Hours) | C82: 185122.3333 | D82: 6295.333333 | E82: 61429.66667 | F82: 6350 | G82: 16351.16667 | H82: 6603 | I82: 36158.66667 | J82: 6182.5 | K82: 51527.6 | L82: 97898.16667 | M82: 67463.89667 | N82: 80459.01667 | O82: 173663.6667 | P82: 795505.0133 | S82: Students Accumulating 12 hrs | T82: 2461.666667 | U82: 1121.666667 | V82: 1572 | W82: 1040 | X82: 1224 | Y82: 1410 | Z82: 2339.333333 | AA82: 1631 | AB82: 2922.333333 | AC82: 1704.333333 | AD82: 3667 | AE82: 2212.666667 | AF82: 1963.666667 | AH82: Adults Accumulating 12 hrs | AI82: 748 | AJ82: 362 | AK82: 341.6666667 | AL82: 303.6666667 | AM82: 317.3333333 | AN82: 307.6666667 | AO82: 1030 | AP82: 531.3333333 | AQ82: 694.6666667 | AR82: 433.3333333 | AS82: 1242.666667 | AT82: 560.3333333 | AU82: 475
B83: Awards per 100 FTE | C83: 15.28946159 | D83: 15.38759573 | E83: 17.3958088 | F83: 13.10866839 | G83: 17.14983291 | H83: 17.67649884 | I83: 10.93015107 | J83: 17.89149147 | K83: 14.28169742 | L83: 19.32925752 | M83: 10.11329152 | N83: 14.5926301 | O83: 17.17562675 | P83: 200.3220121 | S83: Students Accumulating 24 hrs | T83: 1880.666667 | U83: 810 | V83: 1333.333333 | W83: 704 | X83: 943.3333333 | Y83: 1105.333333 | Z83: 1936.333333 | AA83: 1384.666667 | AB83: 2395.333333 | AC83: 1313 | AD83: 2901.333333 | AE83: 1687.333333 | AF83: 1392.666667 | AH83: Adults Accumulating 24 hrs | AI83: 760.3333333 | AJ83: 319.6666667 | AK83: 384.3333333 | AL83: 269 | AM83: 323.3333333 | AN83: 301 | AO83: 928.3333333 | AP83: 544 | AQ83: 709.6666667 | AR83: 399 | AS83: 1210.333333 | AT83: 560.6666667 | AU83: 394.3333333
S84: Students Accumulating 36 hrs | T84: 1628 | U84: 669.3333333 | V84: 1067.333333 | W84: 538 | X84: 773.3333333 | Y84: 952 | Z84: 1666.333333 | AA84: 1201.333333 | AB84: 2017 | AC84: 1135.666667 | AD84: 2206.333333 | AE84: 1433.666667 | AF84: 1204.666667 | AH84: Adults Accumulating 36 hrs | AI84: 736.3333333 | AJ84: 299 | AK84: 358 | AL84: 237.3333333 | AM84: 290.3333333 | AN84: 294.3333333 | AO84: 870 | AP84: 522.6666667 | AQ84: 718 | AR84: 386.6666667 | AS84: 1084.333333 | AT84: 526 | AU84: 399.6666667
B85: Est. Sub-population Outcomes (10-11 to 12-13 Data) | C85: Chattanooga | D85: Cleveland | E85: Columbia | F85: Dyersburg | G85: Jackson | H85: Motlow | I85: Nashville | J85: Northeast | K85: Pellissippi | L85: Roane | M85: Southwest | N85: Volunteer | O85: Walters | P85: All CC | S85: Dual Enrollment | T85: 1167.666667 | U85: 622.6666667 | V85: 769.3333333 | W85: 818.3333333 | X85: 862 | Y85: 833.3333333 | Z85: 1069.333333 | AA85: 624.6666667 | AB85: 1327.666667 | AC85: 1553 | AD85: 394.3333333 | AE85: 1625.666667 | AF85: 1226.333333 | AH85: Adult Associates | AI85: 572 | AJ85: 208.6666667 | AK85: 281 | AL85: 171 | AM85: 305.3333333 | AN85: 266.3333333 | AO85: 443.3333333 | AP85: 406 | AQ85: 554.6666667 | AR85: 425.3333333 | AS85: 607.6666667 | AT85: 429 | AU85: 371.6666667
B86: Adults Accumulating 12 hrs | C86: =(AVERAGE(AI96,AI82,AI68*(1+C$24))) -> 748 | D86: 362 | E86: 341.6666667 | F86: 303.6666667 | G86: 317.3333333 | H86: 307.6666667 | I86: 1030 | J86: 531.3333333 | K86: 694.6666667 | L86: 433.3333333 | M86: 1242.666667 | N86: 560.3333333 | O86: 475 | P86: =SUM(C86:O86) -> 7347.666667 | S86: Associates | T86: 913.3333333 | U86: 365.3333333 | V86: 583.3333333 | W86: 280 | X86: 546.3333333 | Y86: 573.6666667 | Z86: 624.3333333 | AA86: 726.6666667 | AB86: 1097 | AC86: 787.3333333 | AD86: 848.6666667 | AE86: 757.6666667 | AF86: 783 | AH86: Adult 1-2 Year Certificates | AI86: 104.6666667 | AJ86: 29.33333333 | AK86: 32.33333333 | AL86: 17 | AM86: 11 | AN86: 0.3333333333 | AO86: 64.33333333 | AP86: 69.66666667 | AQ86: 0 | AR86: 55.33333333 | AS86: 41 | AT86: 56.66666667 | AU86: 11.33333333
B87: Adults Accumulating 24 hrs | C87: 760.3333333 | D87: 319.6666667 | E87: 384.3333333 | F87: 269 | G87: 323.3333333 | H87: 301 | I87: 928.3333333 | J87: 544 | K87: 709.6666667 | L87: 399 | M87: 1210.333333 | N87: 560.6666667 | O87: 394.3333333 | P87: =SUM(C87:O87) -> 7104 | S87: Certificates 1-2 Years | T87: 166 | U87: 39 | V87: 50 | W87: 24.33333333 | X87: 22.66666667 | Y87: 0.3333333333 | Z87: 83.33333333 | AA87: 115.3333333 | AB87: 0 | AC87: 76 | AD87: 58.33333333 | AE87: 81 | AF87: 16 | AH87: Adult <1yr Certificates | AI87: 71 | AJ87: 90 | AK87: 1.666666667 | AL87: 6 | AM87: 14.66666667 | AN87: 27.33333333 | AO87: 122.6666667 | AP87: 8 | AQ87: 207.6666667 | AR87: 16.33333333 | AS87: 210.6666667 | AT87: 180.3333333 | AU87: 158.6666667
B88: Adults Accumulating 36 hrs | C88: 736.3333333 | D88: 299 | E88: 358 | F88: 237.3333333 | G88: 290.3333333 | H88: 294.3333333 | I88: 870 | J88: 522.6666667 | K88: 718 | L88: 386.6666667 | M88: 1084.333333 | N88: 526 | O88: 399.6666667 | P88: =SUM(C88:O88) -> 6722.666667 | S88: Certificates < 1 Year | T88: 109 | U88: 154.6666667 | V88: 1.666666667 | W88: 10 | X88: 29.33333333 | Y88: 31.66666667 | Z88: 152.3333333 | AA88: 12.66666667 | AB88: 448.3333333 | AC88: 20.66666667 | AD88: 329.3333333 | AE88: 304.6666667 | AF88: 249 | AH88: Low-income Accumulating 12 hrs | AI88: 1393.666667 | AJ88: 704.3333333 | AK88: 860 | AL88: 674.6666667 | AM88: 849.6666667 | AN88: 777 | AO88: 1610 | AP88: 1059 | AQ88: 1563 | AR88: 1060.333333 | AS88: 2568 | AT88: 1226 | AU88: 1220
B89: Adult Associates | C89: 572 | D89: 208.6666667 | E89: 281 | F89: 171 | G89: 305.3333333 | H89: 266.3333333 | I89: 443.3333333 | J89: 406 | K89: 554.6666667 | L89: 425.3333333 | M89: 607.6666667 | N89: 429 | O89: 371.6666667 | P89: =SUM(C89:O89) -> 5042 | S89: Job Placements | T89: 405.6666667 | U89: 202 | V89: 228.6666667 | W89: 106.6666667 | X89: 306.6666667 | Y89: 82.66666667 | Z89: 320.3333333 | AA89: 261.6666667 | AB89: 298 | AC89: 402.3333333 | AD89: 429 | AE89: 371 | AF89: 506 | AH89: Low-income Accumulating 24 hrs | AI89: 1169 | AJ89: 551 | AK89: 775 | AL89: 511.3333333 | AM89: 707 | AN89: 659.6666667 | AO89: 1341.333333 | AP89: 954.6666667 | AQ89: 1368 | AR89: 902.6666667 | AS89: 2049.333333 | AT89: 1056 | AU89: 948
B90: Adult Certificates 1-2 Years | C90: 104.6666667 | D90: 29.33333333 | E90: 32.33333333 | F90: 17 | G90: 11 | H90: 0.3333333333 | I90: 64.33333333 | J90: 69.66666667 | K90: 0 | L90: 55.33333333 | M90: 41 | N90: 56.66666667 | O90: 11.33333333 | P90: =SUM(C90:O90) -> 493 | S90: Remedial & Developmental Success | T90: 2627.666667 | U90: 934.3333333 | V90: 1422 | W90: 1070.666667 | X90: 1338 | Y90: 1584 | Z90: 2889 | AA90: 1819.666667 | AB90: 2628.666667 | AC90: 1586.333333 | AD90: 4446.333333 | AE90: 2240.333333 | AF90: 1736 | AH90: Low-income Accumulating 36 hrs | AI90: 1018.666667 | AJ90: 465.6666667 | AK90: 631.6666667 | AL90: 404 | AM90: 578.3333333 | AN90: 581.3333333 | AO90: 1171.333333 | AP90: 841.6666667 | AQ90: 1205.333333 | AR90: 803.3333333 | AS90: 1605 | AT90: 911.3333333 | AU90: 839.3333333
B91: Adult Certificates < 1 Year | C91: 71 | D91: 90 | E91: 1.666666667 | F91: 6 | G91: 14.66666667 | H91: 27.33333333 | I91: 122.6666667 | J91: 8 | K91: 207.6666667 | L91: 16.33333333 | M91: 210.6666667 | N91: 180.3333333 | O91: 158.6666667 | P91: =SUM(C91:O91) -> 1115 | S91: Transfers Out with 12 hrs | T91: 510.6666667 | U91: 214 | V91: 424 | W91: 216.6666667 | X91: 287.3333333 | Y91: 515.6666667 | Z91: 621.6666667 | AA91: 383 | AB91: 730 | AC91: 448 | AD91: 740.6666667 | AE91: 582.6666667 | AF91: 424.3333333 | AH91: Low-income Associates | AI91: 550.3333333 | AJ91: 251.6666667 | AK91: 350 | AL91: 204.6666667 | AM91: 379.3333333 | AN91: 350.3333333 | AO91: 418.3333333 | AP91: 495 | AQ91: 683.3333333 | AR91: 522 | AS91: 597.6666667 | AT91: 477.3333333 | AU91: 529.3333333
B92: Low-income Accumulating 12 hrs | C92: =(AVERAGE(AI102,AI88,AI74*(1+C$25))) -> 1393.666667 | D92: 704.3333333 | E92: 860 | F92: 674.6666667 | G92: 849.6666667 | H92: 777 | I92: 1610 | J92: 1059 | K92: 1563 | L92: 1060.333333 | M92: 2568 | N92: 1226 | O92: 1220 | P92: 15565.66667 | S92: Workforce Training (Contact Hours) | T92: 185122.3333 | U92: 6295.333333 | V92: 61429.66667 | W92: 6350 | X92: 16351.16667 | Y92: 6603 | Z92: 36158.66667 | AA92: 6182.5 | AB92: 51527.6 | AC92: 97898.16667 | AD92: 67463.89667 | AE92: 80459.01667 | AF92: 173663.6667 | AH92: Low-income 1-2 Year Certificates | AI92: 80 | AJ92: 27 | AK92: 21.33333333 | AL92: 17 | AM92: 15.33333333 | AN92: 0 | AO92: 44.33333333 | AP92: 73.33333333 | AQ92: 0 | AR92: 48.33333333 | AS92: 30.33333333 | AT92: 44.66666667 | AU92: 9
B93: Low-income Accumulating 24 hrs | C93: 1169 | D93: 551 | E93: 775 | F93: 511.3333333 | G93: 707 | H93: 659.6666667 | I93: 1341.333333 | J93: 954.6666667 | K93: 1368 | L93: 902.6666667 | M93: 2049.333333 | N93: 1056 | O93: 948 | P93: 12993 | S93: Awards per 100 FTE | T93: 15.28946159 | U93: 15.38759573 | V93: 17.3958088 | W93: 13.10866839 | X93: 17.14983291 | Y93: 17.67649884 | Z93: 10.93015107 | AA93: 17.89149147 | AB93: 14.28169742 | AC93: 19.32925752 | AD93: 10.11329152 | AE93: 14.5926301 | AF93: 17.17562675 | AH93: Low-income <1yr Certificates | AI93: 62 | AJ93: 91 | AK93: 1.333333333 | AL93: 6.333333333 | AM93: 19 | AN93: 13.66666667 | AO93: 75 | AP93: 9 | AQ93: 257.3333333 | AR93: 12.33333333 | AS93: 208.6666667 | AT93: 162 | AU93: 143
B94: Low-income Accumulating 36 hrs | C94: 1018.666667 | D94: 465.6666667 | E94: 631.6666667 | F94: 404 | G94: 578.3333333 | H94: 581.3333333 | I94: 1171.333333 | J94: 841.6666667 | K94: 1205.333333 | L94: 803.3333333 | M94: 1605 | N94: 911.3333333 | O94: 839.3333333 | P94: 11057
B95: Low-income Associates | C95: 550.3333333 | D95: 251.6666667 | E95: 350 | F95: 204.6666667 | G95: 379.3333333 | H95: 350.3333333 | I95: 418.3333333 | J95: 495 | K95: 683.3333333 | L95: 522 | M95: 597.6666667 | N95: 477.3333333 | O95: 529.3333333 | P95: 5809.333333 | T95: Chattanooga | U95: Cleveland | V95: Columbia | W95: Dyersburg | X95: Jackson | Y95: Motlow | Z95: Nashville | AA95: Northeast | AB95: Pellissippi | AC95: Roane | AD95: Southwest | AE95: Volunteer | AF95: Walters | AH95: sub pops | AI95: Chattanooga | AJ95: Cleveland | AK95: Columbia | AL95: Dyersburg | AM95: Jackson | AN95: Motlow | AO95: Nashville | AP95: Northeast | AQ95: Pellissippi | AR95: Roane | AS95: Southwest | AT95: Volunteer | AU95: Walters
B96: Low-income Certificates 1-2 Years | C96: 80 | D96: 27 | E96: 21.33333333 | F96: 17 | G96: 15.33333333 | H96: 0 | I96: 44.33333333 | J96: 73.33333333 | K96: 0 | L96: 48.33333333 | M96: 30.33333333 | N96: 44.66666667 | O96: 9 | P96: 410.6666667 | S96: Students Accumulating 12 hrs | T96: 2461.666667 | U96: 1121.666667 | V96: 1572 | W96: 1040 | X96: 1224 | Y96: 1410 | Z96: 2339.333333 | AA96: 1631 | AB96: 2922.333333 | AC96: 1704.333333 | AD96: 3667 | AE96: 2212.666667 | AF96: 1963.666667 | AH96: Adults Accumulating 12 hrs | AI96: 748 | AJ96: 362 | AK96: 341.6666667 | AL96: 303.6666667 | AM96: 317.3333333 | AN96: 307.6666667 | AO96: 1030 | AP96: 531.3333333 | AQ96: 694.6666667 | AR96: 433.3333333 | AS96: 1242.666667 | AT96: 560.3333333 | AU96: 475
B97: Low-income Certificates < 1 Year | C97: 62 | D97: 91 | E97: 1.333333333 | F97: 6.333333333 | G97: 19 | H97: 13.66666667 | I97: 75 | J97: 9 | K97: 257.3333333 | L97: 12.33333333 | M97: 208.6666667 | N97: 162 | O97: 143 | P97: 1060.666667 | S97: Students Accumulating 24 hrs | T97: 1880.666667 | U97: 810 | V97: 1333.333333 | W97: 704 | X97: 943.3333333 | Y97: 1105.333333 | Z97: 1936.333333 | AA97: 1384.666667 | AB97: 2395.333333 | AC97: 1313 | AD97: 2901.333333 | AE97: 1687.333333 | AF97: 1392.666667 | AH97: Adults Accumulating 24 hrs | AI97: 760.3333333 | AJ97: 319.6666667 | AK97: 384.3333333 | AL97: 269 | AM97: 323.3333333 | AN97: 301 | AO97: 928.3333333 | AP97: 544 | AQ97: 709.6666667 | AR97: 399 | AS97: 1210.333333 | AT97: 560.6666667 | AU97: 394.3333333
B98: Sub-population Premium = 40% | S98: Students Accumulating 36 hrs | T98: 1628 | U98: 669.3333333 | V98: 1067.333333 | W98: 538 | X98: 773.3333333 | Y98: 952 | Z98: 1666.333333 | AA98: 1201.333333 | AB98: 2017 | AC98: 1135.666667 | AD98: 2206.333333 | AE98: 1433.666667 | AF98: 1204.666667 | AH98: Adults Accumulating 36 hrs | AI98: 736.3333333 | AJ98: 299 | AK98: 358 | AL98: 237.3333333 | AM98: 290.3333333 | AN98: 294.3333333 | AO98: 870 | AP98: 522.6666667 | AQ98: 718 | AR98: 386.6666667 | AS98: 1084.333333 | AT98: 526 | AU98: 399.6666667
S99: Dual Enrollment | T99: 1167.666667 | U99: 622.6666667 | V99: 769.3333333 | W99: 818.3333333 | X99: 862 | Y99: 833.3333333 | Z99: 1069.333333 | AA99: 624.6666667 | AB99: 1327.666667 | AC99: 1553 | AD99: 394.3333333 | AE99: 1625.666667 | AF99: 1226.333333 | AH99: Adult Associates | AI99: 572 | AJ99: 208.6666667 | AK99: 281 | AL99: 171 | AM99: 305.3333333 | AN99: 266.3333333 | AO99: 443.3333333 | AP99: 406 | AQ99: 554.6666667 | AR99: 425.3333333 | AS99: 607.6666667 | AT99: 429 | AU99: 371.6666667
A100: Scale | B100: Est. Scaled Outcomes (10-11 to 12-13 Data) | C100: Chattanooga | D100: Cleveland | E100: Columbia | F100: Dyersburg | G100: Jackson | H100: Motlow | I100: Nashville | J100: Northeast | K100: Pellissippi | L100: Roane | M100: Southwest | N100: Volunteer | O100: Walters | P100: All CC | S100: Associates | T100: 913.3333333 | U100: 365.3333333 | V100: 583.3333333 | W100: 280 | X100: 546.3333333 | Y100: 573.6666667 | Z100: 624.3333333 | AA100: 726.6666667 | AB100: 1097 | AC100: 787.3333333 | AD100: 848.6666667 | AE100: 757.6666667 | AF100: 783 | AH100: Adult 1-2 Year Certificates | AI100: 104.6666667 | AJ100: 29.33333333 | AK100: 32.33333333 | AL100: 17 | AM100: 11 | AN100: 0.3333333333 | AO100: 64.33333333 | AP100: 69.66666667 | AQ100: 0 | AR100: 55.33333333 | AS100: 41 | AT100: 56.66666667 | AU100: 11.33333333
A101: 2 | B101: Students Accumulating 12 hrs (Scale=2) | C101: =C72/$A101 -> 1230.833333 | D101: =D72/$A101 -> 560.8333333 | E101: 786 | F101: 520 | G101: 612 | H101: 705 | I101: 1169.666667 | J101: 815.5 | K101: 1461.166667 | L101: 852.1666667 | M101: 1833.5 | N101: 1106.333333 | O101: 981.8333333 | P101: =SUM(C101:O101) -> 12634.83333 | S101: Certificates 1-2 Years | T101: 166 | U101: 39 | V101: 50 | W101: 24.33333333 | X101: 22.66666667 | Y101: 0.3333333333 | Z101: 83.33333333 | AA101: 115.3333333 | AB101: 0 | AC101: 76 | AD101: 58.33333333 | AE101: 81 | AF101: 16 | AH101: Adult <1yr Certificates | AI101: 71 | AJ101: 90 | AK101: 1.666666667 | AL101: 6 | AM101: 14.66666667 | AN101: 27.33333333 | AO101: 122.6666667 | AP101: 8 | AQ101: 207.6666667 | AR101: 16.33333333 | AS101: 210.6666667 | AT101: 180.3333333 | AU101: 158.6666667
A102: 2 | B102: Students Accumulating 24 hrs(Scale=2) | C102: 940.3333333 | D102: 405 | E102: 666.6666667 | F102: 352 | G102: 471.6666667 | H102: 552.6666667 | I102: 968.1666667 | J102: 692.3333333 | K102: 1197.666667 | L102: 656.5 | M102: 1450.666667 | N102: 843.6666667 | O102: 696.3333333 | P102: 9893.666667 | S102: Certificates < 1 Year | T102: 109 | U102: 154.6666667 | V102: 1.666666667 | W102: 10 | X102: 29.33333333 | Y102: 31.66666667 | Z102: 152.3333333 | AA102: 12.66666667 | AB102: 448.3333333 | AC102: 20.66666667 | AD102: 329.3333333 | AE102: 304.6666667 | AF102: 249 | AH102: Low-income Accumulating 12 hrs | AI102: 1393.666667 | AJ102: 704.3333333 | AK102: 860 | AL102: 674.6666667 | AM102: 849.6666667 | AN102: 777 | AO102: 1610 | AP102: 1059 | AQ102: 1563 | AR102: 1060.333333 | AS102: 2568 | AT102: 1226 | AU102: 1220
A103: 2 | B103: Students Accumulating 36 hrs (Scale=2) | C103: 814 | D103: 334.6666667 | E103: 533.6666667 | F103: 269 | G103: 386.6666667 | H103: 476 | I103: 833.1666667 | J103: 600.6666667 | K103: 1008.5 | L103: 567.8333333 | M103: 1103.166667 | N103: 716.8333333 | O103: 602.3333333 | P103: 8246.5 | S103: Job Placements | T103: 405.6666667 | U103: 202 | V103: 228.6666667 | W103: 106.6666667 | X103: 306.6666667 | Y103: 82.66666667 | Z103: 320.3333333 | AA103: 261.6666667 | AB103: 298 | AC103: 402.3333333 | AD103: 429 | AE103: 371 | AF103: 506 | AH103: Low-income Accumulating 24 hrs | AI103: 1169 | AJ103: 551 | AK103: 775 | AL103: 511.3333333 | AM103: 707 | AN103: 659.6666667 | AO103: 1341.333333 | AP103: 954.6666667 | AQ103: 1368 | AR103: 902.6666667 | AS103: 2049.333333 | AT103: 1056 | AU103: 948
A104: 2 | B104: Dual Enrollment (Scale=2) | C104: 583.8333333 | D104: 311.3333333 | E104: 384.6666667 | F104: 409.1666667 | G104: 431 | H104: 416.6666667 | I104: 534.6666667 | J104: 312.3333333 | K104: 663.8333333 | L104: 776.5 | M104: 197.1666667 | N104: 812.8333333 | O104: 613.1666667 | P104: 6447.166667 | S104: Remedial & Developmental Success | T104: 2627.666667 | U104: 934.3333333 | V104: 1422 | W104: 1070.666667 | X104: 1338 | Y104: 1584 | Z104: 2889 | AA104: 1819.666667 | AB104: 2628.666667 | AC104: 1586.333333 | AD104: 4446.333333 | AE104: 2240.333333 | AF104: 1736 | AH104: Low-income Accumulating 36 hrs | AI104: 1018.666667 | AJ104: 465.6666667 | AK104: 631.6666667 | AL104: 404 | AM104: 578.3333333 | AN104: 581.3333333 | AO104: 1171.333333 | AP104: 841.6666667 | AQ104: 1205.333333 | AR104: 803.3333333 | AS104: 1605 | AT104: 911.3333333 | AU104: 839.3333333
A105: 1.5 | B105: Associates (Scale=1.5) | C105: 608.8888889 | D105: 243.5555556 | E105: 388.8888889 | F105: 186.6666667 | G105: 364.2222222 | H105: 382.4444444 | I105: 416.2222222 | J105: 484.4444444 | K105: 731.3333333 | L105: 524.8888889 | M105: 565.7777778 | N105: 505.1111111 | O105: 522 | P105: 5924.444444 | S105: Transfers Out with 12 hrs | T105: 510.6666667 | U105: 214 | V105: 424 | W105: 216.6666667 | X105: 287.3333333 | Y105: 515.6666667 | Z105: 621.6666667 | AA105: 383 | AB105: 730 | AC105: 448 | AD105: 740.6666667 | AE105: 582.6666667 | AF105: 424.3333333 | AH105: Low-income Associates | AI105: 550.3333333 | AJ105: 251.6666667 | AK105: 350 | AL105: 204.6666667 | AM105: 379.3333333 | AN105: 350.3333333 | AO105: 418.3333333 | AP105: 495 | AQ105: 683.3333333 | AR105: 522 | AS105: 597.6666667 | AT105: 477.3333333 | AU105: 529.3333333
A106: 1.5 | B106: Certificates 1-2 Years(Scale=1.5) | C106: 110.6666667 | D106: 26 | E106: 33.33333333 | F106: 16.22222222 | G106: 15.11111111 | H106: 0.2222222222 | I106: 55.55555556 | J106: 76.88888889 | K106: 0 | L106: 50.66666667 | M106: 38.88888889 | N106: 54 | O106: 10.66666667 | P106: 488.2222222 | S106: Workforce Training (Contact Hours) | T106: 185122.3333 | U106: 6295.333333 | V106: 61429.66667 | W106: 6350 | X106: 16351.16667 | Y106: 6603 | Z106: 36158.66667 | AA106: 6182.5 | AB106: 51527.6 | AC106: 97898.16667 | AD106: 67463.89667 | AE106: 80459.01667 | AF106: 173663.6667 | AH106: Low-income 1-2 Year Certificates | AI106: 80 | AJ106: 27 | AK106: 21.33333333 | AL106: 17 | AM106: 15.33333333 | AN106: 0 | AO106: 44.33333333 | AP106: 73.33333333 | AQ106: 0 | AR106: 48.33333333 | AS106: 30.33333333 | AT106: 44.66666667 | AU106: 9
A107: 1.5 | B107: Certificates < 1 Year (Scale=1.5) | C107: 72.66666667 | D107: 103.1111111 | E107: 1.111111111 | F107: 6.666666667 | G107: 19.55555556 | H107: 21.11111111 | I107: 101.5555556 | J107: 8.444444444 | K107: 298.8888889 | L107: 13.77777778 | M107: 219.5555556 | N107: 203.1111111 | O107: 166 | P107: 1235.555556 | S107: Awards per 100 FTE | T107: 15.28946159 | U107: 15.38759573 | V107: 17.3958088 | W107: 13.10866839 | X107: 17.14983291 | Y107: 17.67649884 | Z107: 10.93015107 | AA107: 17.89149147 | AB107: 14.28169742 | AC107: 19.32925752 | AD107: 10.11329152 | AE107: 14.5926301 | AF107: 17.17562675 | AH107: Low-income <1yr Certificates | AI107: 62 | AJ107: 91 | AK107: 1.333333333 | AL107: 6.333333333 | AM107: 19 | AN107: 13.66666667 | AO107: 75 | AP107: 9 | AQ107: 257.3333333 | AR107: 12.33333333 | AS107: 208.6666667 | AT107: 162 | AU107: 143
A108: 0.5 | B108: Job Placements (Scale=0.5) | C108: 811.3333333 | D108: 404 | E108: 457.3333333 | F108: 213.3333333 | G108: 613.3333333 | H108: 165.3333333 | I108: 640.6666667 | J108: 523.3333333 | K108: 596 | L108: 804.6666667 | M108: 858 | N108: 742 | O108: 1012 | P108: 7841.333333
A109: 5 | B109: Remedial & Developmental Success (Scale=5) | C109: 525.5333333 | D109: 186.8666667 | E109: 284.4 | F109: 214.1333333 | G109: 267.6 | H109: 316.8 | I109: 577.8 | J109: 363.9333333 | K109: 525.7333333 | L109: 317.2666667 | M109: 889.2666667 | N109: 448.0666667 | O109: 347.2 | P109: 5264.6
A110: 2 | B110: Transfers Out with 12 hrs (Scale=2) | C110: 255.3333333 | D110: 107 | E110: 212 | F110: 108.3333333 | G110: 143.6666667 | H110: 257.8333333 | I110: 310.8333333 | J110: 191.5 | K110: 365 | L110: 224 | M110: 370.3333333 | N110: 291.3333333 | O110: 212.1666667 | P110: 3049.333333
A111: 50 | B111: Workforce Training (Contact Hours) (Scale=50) | C111: 3702.446667 | D111: 125.9066667 | E111: 1228.593333 | F111: 127 | G111: 327.0233333 | H111: 132.06 | I111: 723.1733333 | J111: 123.65 | K111: 1030.552 | L111: 1957.963333 | M111: 1349.277933 | N111: 1609.180333 | O111: 3473.273333 | P111: 15910.10027
A112: 0.05 | B112: Awards per 100 FTE (Scale=0.05) | C112: 305.7892318 | D112: 307.7519146 | E112: 347.916176 | F112: 262.1733678 | G112: 342.9966582 | H112: 353.5299768 | I112: 218.6030215 | J112: 357.8298295 | K112: 285.6339483 | L112: 386.5851504 | M112: 202.2658303 | N112: 291.8526019 | O112: 343.5125351 | P112: 4006.440242 | Q112: Sub-pop premium
Q113: 0.4
B114: Est. Scaled Sub-pop Outcomes (10-11 to 12-13 Data) | C114: Chattanooga | D114: Cleveland | E114: Columbia | F114: Dyersburg | G114: Jackson | H114: Motlow | I114: Nashville | J114: Northeast | K114: Pellissippi | L114: Roane | M114: Southwest | N114: Volunteer | O114: Walters | P114: All CC
B115: Adults Accumulating 12 hrs | C115: =(C86/$A101)*$Q$113 -> 149.6 | D115: 72.4 | E115: 68.33333333 | F115: 60.73333333 | G115: 63.46666667 | H115: 61.53333333 | I115: 206 | J115: 106.2666667 | K115: 138.9333333 | L115: 86.66666667 | M115: 248.5333333 | N115: 112.0666667 | O115: 95 | P115: =SUM(C115:O115) -> 1469.533333
B116: Adults Accumulating 24 hrs | C116: 152.0666667 | D116: 63.93333333 | E116: 76.86666667 | F116: 53.8 | G116: 64.66666667 | H116: 60.2 | I116: 185.6666667 | J116: 108.8 | K116: 141.9333333 | L116: 79.8 | M116: 242.0666667 | N116: 112.1333333 | O116: 78.86666667 | P116: 1420.8
B117: Adults Accumulating 36 hrs | C117: 147.2666667 | D117: 59.8 | E117: 71.6 | F117: 47.46666667 | G117: 58.06666667 | H117: 58.86666667 | I117: 174 | J117: 104.5333333 | K117: 143.6 | L117: 77.33333333 | M117: 216.8666667 | N117: 105.2 | O117: 79.93333333 | P117: 1344.533333
B118: Adult Associates | C118: =(C89/$A105)*$Q$113 -> 152.5333333 | D118: 55.64444444 | E118: 74.93333333 | F118: 45.6 | G118: 81.42222222 | H118: 71.02222222 | I118: 118.2222222 | J118: 108.2666667 | K118: 147.9111111 | L118: 113.4222222 | M118: 162.0444444 | N118: 114.4 | O118: 99.11111111 | P118: 1344.533333
B119: Adult Certificates 1-2 Years | C119: 27.91111111 | D119: 7.822222222 | E119: 8.622222222 | F119: 4.533333333 | G119: 2.933333333 | H119: 0.08888888889 | I119: 17.15555556 | J119: 18.57777778 | K119: 0 | L119: 14.75555556 | M119: 10.93333333 | N119: 15.11111111 | O119: 3.022222222 | P119: 131.4666667
B120: Adult Certificates < 1 Year | C120: 18.93333333 | D120: 24 | E120: 0.4444444444 | F120: 1.6 | G120: 3.911111111 | H120: 7.288888889 | I120: 32.71111111 | J120: 2.133333333 | K120: 55.37777778 | L120: 4.355555556 | M120: 56.17777778 | N120: 48.08888889 | O120: 42.31111111 | P120: 297.3333333
B121: Low-income Accumulating 12 hrs | C121: =(C92/$A101)*$Q$113 -> 278.7333333 | D121: 140.8666667 | E121: 172 | F121: 134.9333333 | G121: 169.9333333 | H121: 155.4 | I121: 322 | J121: 211.8 | K121: 312.6 | L121: 212.0666667 | M121: 513.6 | N121: 245.2 | O121: 244 | P121: 3113.133333
B122: Low-income Accumulating 24 hrs | C122: 233.8 | D122: 110.2 | E122: 155 | F122: 102.2666667 | G122: 141.4 | H122: 131.9333333 | I122: 268.2666667 | J122: 190.9333333 | K122: 273.6 | L122: 180.5333333 | M122: 409.8666667 | N122: 211.2 | O122: 189.6 | P122: 2598.6
B123: Low-income Accumulating 36 hrs | C123: 203.7333333 | D123: 93.13333333 | E123: 126.3333333 | F123: 80.8 | G123: 115.6666667 | H123: 116.2666667 | I123: 234.2666667 | J123: 168.3333333 | K123: 241.0666667 | L123: 160.6666667 | M123: 321 | N123: 182.2666667 | O123: 167.8666667 | P123: 2211.4
B124: Low-income Associates | C124: =(C95/$A105)*$Q$113 -> 146.7555556 | D124: 67.11111111 | E124: 93.33333333 | F124: 54.57777778 | G124: 101.1555556 | H124: 93.42222222 | I124: 111.5555556 | J124: 132 | K124: 182.2222222 | L124: 139.2 | M124: 159.3777778 | N124: 127.2888889 | O124: 141.1555556 | P124: 1549.155556
B125: Low-income Certificates 1-2 Years | C125: 21.33333333 | D125: 7.2 | E125: 5.688888889 | F125: 4.533333333 | G125: 4.088888889 | H125: 0 | I125: 11.82222222 | J125: 19.55555556 | K125: 0 | L125: 12.88888889 | M125: 8.088888889 | N125: 11.91111111 | O125: 2.4 | P125: 109.5111111
B126: Low-income Certificates < 1 Year | C126: 16.53333333 | D126: 24.26666667 | E126: 0.3555555556 | F126: 1.688888889 | G126: 5.066666667 | H126: 3.644444444 | I126: 20 | J126: 2.4 | K126: 68.62222222 | L126: 3.288888889 | M126: 55.64444444 | N126: 43.2 | O126: 38.13333333 | P126: 282.8444444
B128: Weights Based on Institutional Mission | C128: Chattanooga | D128: Cleveland | E128: Columbia | F128: Dyersburg | G128: Jackson | H128: Motlow | I128: Nashville | J128: Northeast | K128: Pellissippi | L128: Roane | M128: Southwest | N128: Volunteer | O128: Walters | P128: Average
B129: Students Accumulating 12 hrs | C129: 0.06 | D129: 0.06 | E129: 0.04 | F129: 0.06 | G129: 0.06 | H129: 0.06 | I129: 0.04 | J129: 0.04 | K129: 0.06 | L129: 0.02 | M129: 0.04 | N129: 0.02 | O129: 0.04 | P129: =AVERAGE(C129:O129) -> 0.04615384615
B130: Students Accumulating 24 hrs | C130: 0.07 | D130: 0.07 | E130: 0.05 | F130: 0.07 | G130: 0.07 | H130: 0.07 | I130: 0.05 | J130: 0.05 | K130: 0.07 | L130: 0.03 | M130: 0.05 | N130: 0.03 | O130: 0.05 | P130: =AVERAGE(C130:O130) -> 0.05615384615
B131: Students Accumulating 36 hrs | C131: 0.07 | D131: 0.07 | E131: 0.06 | F131: 0.07 | G131: 0.07 | H131: 0.07 | I131: 0.06 | J131: 0.06 | K131: 0.07 | L131: 0.05 | M131: 0.06 | N131: 0.05 | O131: 0.06 | P131: 0.06307692308
B132: Dual Enrollment | C132: 0.05 | D132: 0.1 | E132: 0.1 | F132: 0.05 | G132: 0.05 | H132: 0.05 | I132: 0.05 | J132: 0.05 | K132: 0.1 | L132: 0.1 | M132: 0.05 | N132: 0.1 | O132: 0.1 | P132: 0.07307692308
B133: Associates | C133: 0.05 | D133: 0.15 | E133: 0.1 | F133: 0.1 | G133: 0.2 | H133: 0.1 | I133: 0.2 | J133: 0.2 | K133: 0.2 | L133: 0.2 | M133: 0.1 | N133: 0.2 | O133: 0.2 | P133: 0.1538461538
B134: Certificates 1-2 Years | C134: 0.05 | D134: 0.01 | E134: 0.04 | F134: 0.02 | G134: 0.03 | H134: 0 | I134: 0.07 | J134: 0.17 | K134: 0 | L134: 0.06 | M134: 0.02 | N134: 0.04 | O134: 0.01 | P134: 0.04 | R134: Original Weighted Outcomes
B135: Certificates < 1 Year | C135: 0.05 | D135: 0.09 | E135: 0.01 | F135: 0.08 | G135: 0.07 | H135: 0.05 | I135: 0.13 | J135: 0.03 | K135: 0.05 | L135: 0.14 | M135: 0.18 | N135: 0.16 | O135: 0.19 | P135: 0.09461538462 | R135: Chattanooga | S135: Cleveland | T135: Columbia | U135: Dyersburg | V135: Jackson | W135: Motlow | X135: Nashville | Y135: Northeast | Z135: Pellissippi | AA135: Roane | AB135: Southwest | AC135: Volunteer | AD135: Walters | AE135: All CC
B136: Job Placements | C136: 0.2 | D136: 0.05 | E136: 0.05 | F136: 0.1 | G136: 0.05 | H136: 0.1 | I136: 0.1 | J136: 0.1 | K136: 0.1 | L136: 0.15 | M136: 0.1 | N136: 0.05 | O136: 0.05 | P136: 0.09230769231 | R136: 1000.590906 | S136: 311.187818 | T136: 450.7026796 | U136: 256.6270017 | V136: 406.7888325 | W136: 389.5682743 | X136: 595.4218177 | Y136: 459.5054829 | Z136: 883.0023419 | AA136: 607.8554242 | AB136: 836.6623686 | AC136: 616.1435357 | AD136: 710.2126268 | AE136: =SUM(R136:AD136) -> 7524.26911
B137: Remedial & Developmental Success | C137: 0.1 | D137: 0.2 | E137: 0.1 | F137: 0.2 | G137: 0.15 | H137: 0.1 | I137: 0.1 | J137: 0.05 | K137: 0.05 | L137: 0.05 | M137: 0.2 | N137: 0.1 | O137: 0.1 | P137: 0.1153846154
B138: Transfers Out with 12 hrs | C138: 0.15 | D138: 0.1 | E138: 0.2 | F138: 0.15 | G138: 0.1 | H138: 0.2 | I138: 0.1 | J138: 0.1 | K138: 0.15 | L138: 0.1 | M138: 0.05 | N138: 0.15 | O138: 0.1 | P138: 0.1269230769 | R138: Change in Weighted Outcomes
B139: Workforce Training (Contact Hours) | C139: 0.1 | D139: 0.05 | E139: 0.05 | F139: 0.05 | G139: 0.05 | H139: 0.05 | I139: 0.05 | J139: 0.05 | K139: 0.1 | L139: 0.05 | M139: 0.05 | N139: 0.05 | O139: 0.05 | P139: 0.05769230769 | R139: =C156-R136 -> 0 | S139: =D156-S136 -> 0 | T139: 0 | U139: 0 | V139: 0 | W139: 0 | X139: 0 | Y139: 0 | Z139: 0 | AA139: 0 | AB139: 0 | AC139: 0 | AD139: 0 | AE139: 0
B140: Awards per 100 FTE | C140: 0.05 | D140: 0.05 | E140: 0.2 | F140: 0.05 | G140: 0.1 | H140: 0.15 | I140: 0.05 | J140: 0.1 | K140: 0.05 | L140: 0.05 | M140: 0.1 | N140: 0.05 | O140: 0.05 | P140: 0.08076923077 | R140: =R139/R136 -> 0 | S140: =S139/S136 -> 0 | T140: 0 | U140: 0 | V140: 0 | W140: 0 | X140: 0 | Y140: 0 | Z140: 0 | AA140: 0 | AB140: 0 | AC140: 0 | AD140: 0 | AE140: 0
C141: =SUM(C129:C140) -> 1 | D141: 1 | E141: 1 | F141: 1 | G141: 1 | H141: 1 | I141: 1 | J141: 1 | K141: 1 | L141: 1 | M141: 1 | N141: 1 | O141: 1 | P141: =(SUM(P129:P140)) -> 1
B143: Weighted Outcomes | C143: Chattanooga | D143: Cleveland | E143: Columbia | F143: Dyersburg | G143: Jackson | H143: Motlow | I143: Nashville | J143: Northeast | K143: Pellissippi | L143: Roane | M143: Southwest | N143: Volunteer | O143: Walters | P143: All CC
B144: Students Accumulating 12 hrs | C144: =IF(C101="NA",0, ((C101+C115+C121)*C129)) -> 99.55 | D144: =IF(D101="NA",0, ((D101+D115+D121)*D129)) -> 46.446 | E144: 41.05333333 | F144: 42.94 | G144: 50.724 | H144: 55.316 | I144: 67.90666667 | J144: 45.34266667 | K144: 114.762 | L144: 23.018 | M144: 103.8253333 | N144: 29.272 | O144: 52.83333333 | P144: =SUM(C144:O144) -> 772.9893333
B145: Students Accumulating 24 hrs | C145: 92.834 | D145: 40.53933333 | E145: 44.92666667 | F145: 35.56466667 | G145: 47.44133333 | H145: 52.136 | I145: 71.105 | J145: 49.60333333 | K145: 112.924 | L145: 27.505 | M145: 105.13 | N145: 35.01 | O145: 48.24 | P145: 762.9593333 | S145: For Dynamic Formula Tab Display:
B146: Students Accumulating 36 hrs | C146: 81.55 | D146: 34.132 | E146: 43.896 | F146: 27.80866667 | G146: 39.228 | H146: 45.57933333 | I146: 74.486 | J146: 52.412 | K146: 97.52166667 | L146: 40.29166667 | M146: 98.462 | N146: 50.215 | O146: 51.008 | P146: 736.5903333 | S146: 2015-16 | T146: 2015-16 | U146: Percent
B147: Dual Enrollment | C147: =C104*C132 -> 29.19166667 | D147: 31.13333333 | E147: 38.46666667 | F147: 20.45833333 | G147: 21.55 | H147: 20.83333333 | I147: 26.73333333 | J147: 15.61666667 | K147: 66.38333333 | L147: 77.65 | M147: 9.858333333 | N147: 81.28333333 | O147: 61.31666667 | P147: 500.475 | S147: Formula Calculation | T147: State Appr* | U147: Funded
B148: Associates | C148: =IF(C105="NA",0, ((C105+C118+C124)*C133)) -> 45.40888889 | D148: 54.94666667 | E148: 55.71555556 | F148: 28.68444444 | G148: 109.36 | H148: 54.68888889 | I148: 129.2 | J148: 144.9422222 | K148: 212.2933333 | L148: 155.5022222 | M148: 88.72 | N148: 149.36 | O148: 152.4533333 | P148: 1381.275556 | R148: Chattanooga | S148: =Working!J15 -> 42730000 | T148: =ROUND(Working!K15,-2) -> 26034800 | U148: =Working!L15 -> 0.609286749
B149: Certificates 1-2 Years | C149: 7.995555556 | D149: 0.4102222222 | E149: 1.905777778 | F149: 0.5057777778 | G149: 0.664 | H149: 0 | I149: 5.917333333 | J149: 19.55377778 | K149: 0 | L149: 4.698666667 | M149: 1.158222222 | N149: 3.240888889 | O149: 0.1608888889 | P149: 46.21111111 | R149: Cleveland | S149: =Working!J16 -> 14530000 | T149: =ROUND(Working!K16,-2) -> 8852900 | U149: =Working!L16 -> 0.609286749
B150: Certificates < 1 Year | C150: 5.406666667 | D150: 13.624 | E150: 0.01911111111 | F150: 0.7964444444 | G150: 1.997333333 | H150: 1.602222222 | I150: 20.05466667 | J150: 0.3893333333 | K150: 21.14444444 | L150: 2.999111111 | M150: 59.648 | N150: 47.104 | O150: 46.82444444 | P150: 221.6097778 | R150: Columbia | S150: =Working!J17 -> 20290700 | T150: =ROUND(Working!K17,-2) -> 12362900 | U150: =Working!L17 -> 0.609286749
B151: Job Placements | C151: =C108*C136 -> 162.2666667 | D151: 20.2 | E151: 22.86666667 | F151: 21.33333333 | G151: 30.66666667 | H151: 16.53333333 | I151: 64.06666667 | J151: 52.33333333 | K151: 59.6 | L151: 120.7 | M151: 85.8 | N151: 37.1 | O151: 50.6 | P151: 744.0666667 | R151: Dyersburg | S151: =Working!J18 -> 12024000 | T151: =ROUND(Working!K18,-2) -> 7326100 | U151: =Working!L18 -> 0.609286749
B152: Remedial & Developmental Success | C152: =C109*C137 -> 52.55333333 | D152: 37.37333333 | E152: 28.44 | F152: 42.82666667 | G152: 40.14 | H152: 31.68 | I152: 57.78 | J152: 18.19666667 | K152: 26.28666667 | L152: 15.86333333 | M152: 177.8533333 | N152: 44.80666667 | O152: 34.72 | P152: 608.52 | R152: Jackson | S152: =Working!J19 -> 18229000 | T152: =ROUND(Working!K19,-2) -> 11106700 | U152: =Working!L19 -> 0.609286749
B153: Transfers Out with 12 hrs | C153: =C110*C138 -> 38.3 | D153: 10.7 | E153: 42.4 | F153: 16.25 | G153: 14.36666667 | H153: 51.56666667 | I153: 31.08333333 | J153: 19.15 | K153: 54.75 | L153: 22.4 | M153: 18.51666667 | N153: 43.7 | O153: 21.21666667 | P153: 384.4 | R153: Motlow | S153: =Working!J20 -> 17508000 | T153: =ROUND(Working!K20,-2) -> 10667400 | U153: =Working!L20 -> 0.609286749
B154: Workforce Training (Contact Hours) | C154: 370.2446667 | D154: 6.295333333 | E154: 61.42966667 | F154: 6.35 | G154: 16.35116667 | H154: 6.603 | I154: 36.15866667 | J154: 6.1825 | K154: 103.0552 | L154: 97.89816667 | M154: 67.46389667 | N154: 80.45901667 | O154: 173.6636667 | P154: 1032.154947 | R154: Nashville | S154: =Working!J21 -> 26060000 | T154: =ROUND(Working!K21,-2) -> 15878000 | U154: =Working!L21 -> 0.609286749
B155: Awards per 100 FTE | C155: 15.28946159 | D155: 15.38759573 | E155: 69.5832352 | F155: 13.10866839 | G155: 34.29966582 | H155: 53.02949652 | I155: 10.93015107 | J155: 35.78298295 | K155: 14.28169742 | L155: 19.32925752 | M155: 20.22658303 | N155: 14.5926301 | O155: 17.17562675 | P155: 333.0170521 | R155: Northeast | S155: =Working!J22 -> 21726000 | T155: =ROUND(Working!K22,-2) -> 13237400 | U155: =Working!L22 -> 0.609286749
B156: Total | C156: =SUM(C144:C155) -> 1000.590906 | D156: 311.187818 | E156: 450.7026796 | F156: 256.6270017 | G156: 406.7888325 | H156: 389.5682743 | I156: 595.4218177 | J156: 459.5054829 | K156: 883.0023419 | L156: 607.8554242 | M156: 836.6623686 | N156: =SUM(N144:N155) -> 616.1435357 | O156: =SUM(O144:O155) -> 710.2126268 | P156: 7524.26911 | R156: Pellissippi | S156: =Working!J23 -> 38498000 | T156: =ROUND(Working!K23,-2) -> 23456300 | U156: =Working!L23 -> 0.609286749
R157: Roane | S157: =Working!J24 -> 28591000 | T157: =ROUND(Working!K24,-2) -> 17420100 | U157: =Working!L24 -> 0.609286749
B158: SREB Avg Salary | C158: 54621.26917 | D158: 54621.26917 | E158: 54621.26917 | F158: 54621.26917 | G158: 54621.26917 | H158: 54621.26917 | I158: 54621.26917 | J158: 54621.26917 | K158: 54621.26917 | L158: 54621.26917 | M158: 54621.26917 | N158: 54621.26917 | O158: 54621.26917 | P158: 54621.26917 | R158: Southwest | S158: =Working!J25 -> 40541000 | T158: =ROUND(Working!K25,-2) -> 24701100 | U158: =Working!L25 -> 0.609286749
B159: Outcome Based Performance | C159: =C156*C158 -> 54653545.2 | D159: =D156*D158 -> 16997473.57 | E159: 24617952.38 | F159: 14017292.54 | G159: 22219322.31 | H159: 21278713.57 | I159: 32522695.37 | J159: 25098772.67 | K159: 48230708.59 | L159: 33201834.74 | M159: 45699560.44 | N159: 33654541.91 | O159: 38792715.05 | P159: =P156*P158 -> 410985128.3 | R159: Volunteer | S159: =Working!J26 -> 26644000 | T159: =ROUND(Working!K26,-2) -> 16233800 | U159: =Working!L26 -> 0.609286749
R160: Walters | S160: =Working!J27 -> 33438000 | T160: =ROUND(Working!K27,-2) -> 20373300 | U160: =Working!L27 -> 0.609286749
B161: Fixed Costs
B162: M&O & Utilities | C162: 8180769.182 | D162: 3592951.052 | E162: 4150871.775 | F162: 3083398.701 | G162: 3449965.505 | H162: 3731132.822 | I162: 4630556.821 | J162: 4986303.036 | K162: 6589231.27 | L162: 7526313.946 | M162: 11455378.36 | N162: 4183166.546 | O162: 8690385.282 | P162: =SUM(C162:O162) -> 74250424.3
B163: Equipment Replacement | C163: 1224978.264 | D163: 393577.591 | E163: 402964.926 | F163: 181622.233 | G163: 534831.073 | H163: 267371.994 | I163: 464424.877 | J163: 847046.836 | K163: 1100183.99 | L163: 504453.121 | M163: 1249002.657 | N163: 611813.211 | O163: 651870.426 | P163: =SUM(C163:O163) -> 8434141.199 | Q163: PF Percentage
B164: Fixed Costs Subtotal | C164: =SUM(C162:C163) -> 9405747.446 | D164: 3986528.643 | E164: 4553836.701 | F164: 3265020.934 | G164: 3984796.578 | H164: 3998504.816 | I164: 5094981.698 | J164: 5833349.872 | K164: 7689415.26 | L164: 8030767.067 | M164: 12704381.02 | N164: 4794979.757 | O164: 9342255.708 | P164: 82684565.5 | Q164: 0.0545
B166: Formula Subtotal | C166: =C164+C159 -> 64059292.65 | D166: =D164+D159 -> 20984002.21 | E166: 29171789.08 | F166: 17282313.47 | G166: 26204118.89 | H166: 25277218.38 | I166: 37617677.07 | J166: 30932122.54 | K166: 55920123.85 | L166: 41232601.81 | M166: 58403941.46 | N166: 38449521.66 | O166: 48134970.76 | P166: 493669693.8
B168: Performance Funding: Quality Assurance Score | C168: 97 | D168: 89 | E168: 92 | F168: 95 | G168: 98 | H168: 93 | I168: 97 | J168: 100 | K168: 92 | L168: 98 | M168: 96 | N168: 98 | O168: 100 | P168: =AVERAGE(C168:O168) -> 95.76923077
B169: Performance Funding: Quality Assurance Amount | C169: =$Q$164*C168/100*C166 -> 3386494.506 | D169: =$Q$164*D168/100*D166 -> 1017829.027 | E169: 1462673.504 | F169: 894791.7799 | G169: 1399561.99 | H169: 1281175.814 | I169: 1988658.498 | J169: 1685800.678 | K169: 2803835.01 | L169: 2202233.262 | M169: 3055694.217 | N169: 2053588.952 | O169: 2623355.906
C177: Out of State Tuition Calculation:
B178: 2012-13 FTE | C178: 6905.333333 | D178: 2523.766667 | E178: 3479.3 | F178: 2216.966667 | G178: 2978.9 | H178: 3042.133333 | I178: 6449.466667 | J178: 4487.133333 | K178: 7444.5 | L178: 4268.566667 | M178: 8063.966667 | N178: 5375.366667 | O178: 4399.366667
B179: per FTE subsidy | C179: =C166*C65/C178 -> 6184.52333 | D179: 5543.038107 | E179: 5589.589684 | F179: 5196.984911 | G179: 5864.383697 | H179: 5539.362374 | I179: 3888.453523 | J179: 4595.676904 | K179: 5007.734914 | L179: 6439.726341 | M179: 4828.388135 | N179: 4768.607619 | O179: 7294.227314
B180: OSFTE | C180: 343 | D180: 23.7 | E180: 34.93333333 | F180: 17.23333333 | G180: 28 | H180: 33.86666667 | I180: 84.15 | J180: 4.066666667 | K180: 123.8666667 | L180: 76 | M180: 85.03333333 | N180: 71.33333333 | O180: 52.1
B181: OS tuit est. | C181: =C180*C179 -> 2121291.502 | D181: =D180*D179 -> 131370.0031 | E181: 195262.9996 | F181: 89561.37329 | G181: 164202.7435 | H181: 187599.7391 | I181: 327213.364 | J181: 18689.08608 | K181: 620291.4313 | L181: 489419.202 | M181: 410573.9377 | N181: 340160.6768 | O181: 380029.2431
B198: WORKING AREA------ 4yr
C199: UTM | D199: APSU | E199: TTU | F199: UTC | G199: MTSU | H199: ETSU | I199: TSU | J199: UM | K199: UTK
B200: Total Formula Calculation | C200: =ROUND(C297,-2) -> 78186000 | D200: =ROUND(D297,-2) -> 100566000 | E200: 116354000 | F200: 112626300 | G200: 243958200 | H200: 157169000 | I200: 111147400 | J200: 281184100 | K200: 539380400
B202: Total | C202: =C200 -> 78186000 | D202: =D200 -> 100566000 | E202: 116354000 | F202: 112626300 | G202: 243958200 | H202: 157169000 | I202: 111147400 | J202: 281184100 | K202: 539380400
B203: 2014-15 Phase-In Factor | C203: 1 | D203: 1 | E203: 1 | F203: 1 | G203: 1 | H203: 1 | I203: 1 | J203: 1 | K203: 1
B204: 2015-16 Total Need Recommendation | C204: =C203*C202 -> 78186000 | D204: =D203*D202 -> 100566000 | E204: 116354000 | F204: 112626300 | G204: 243958200 | H204: 157169000 | I204: 111147400 | J204: 281184100 | K204: 539380400
B205: 2014-15 Total Need Recommendation | C205: 79634000 | D205: 103685000 | E205: 118101900 | F205: 114818000 | G205: 251465500 | H205: 152953000 | I205: 105052300 | J205: 279474000 | K205: 544461000
B206: % Change | C206: =C204/C205-1 -> -0.01818318809 | D206: =D204/D205-1 -> -0.03008149684 | E206: -0.01479993125 | F206: -0.01908847045 | G206: -0.02985419471 | H206: 0.02756402294 | I206: 0.05801967211 | J206: 0.006118994969 | K206: -0.009331430534 | O206: Three Years of the Three-Year Average:
B208: Subsidy/Fee Policy | C208: 0.55 | D208: 0.55 | E208: 0.55 | F208: 0.55 | G208: 0.55 | H208: 0.55 | I208: 0.55 | J208: 0.55 | K208: 0.55
B209: Out of State Tuition Deduct | C209: =C306 -> 2649833.779 | D209: 1780364.485 | E209: 4876519.706 | F209: 3516899.721 | G209: 5707116.938 | H209: 11632122.75 | I209: 11934150.99 | J209: 15254061.78 | K209: 21989434.42
B210: Legislative Initiatives | C210: 310000 | D210: 0 | E210: 700900 | F210: 0 | G210: 489500 | H210: 0 | I210: 1026300 | J210: 65000 | K210: 0
B211: 2015-16 Recommendation | C211: =ROUND(((C297*C203*C208-C209)*(1+0.0545*C299/100)), -3)+C210 -> 42686000 | D211: =ROUND(((D297*D203*D208-D209)*(1+0.0545*D299/100)), -3)+D210 -> 56186000 | E211: =ROUND(((E297*E203*E208-E209)*(1+0.0545*E299/100)), -3)+E210 -> 62960900 | F211: 61485000 | G211: 135820500 | H211: 78623000 | I211: 52609300 | J211: 146528000 | K211: 289041000 | P211: UTM | Q211: APSU | R211: TTU | S211: UTC | T211: MTSU | U211: ETSU | V211: TSU | W211: UM | X211: UTK | Z211: sub pops | AA211: UTM | AB211: APSU | AC211: TTU | AD211: UTC | AE211: MTSU | AF211: ETSU | AG211: TSU | AH211: UM | AI211: UTK
O212: Students Accumulating 24 hrs | P212: 1276.333333 | Q212: 1515.666667 | R212: 1688 | S212: 1880.333333 | T212: 3175.333333 | U212: 1801 | V212: 989.6666667 | W212: 2233.333333 | X212: 3483 | Z212: Adults Accumulating 24 hrs | AA212: 113.6666667 | AB212: 250 | AC212: 60 | AD212: 34.66666667 | AE212: 217.3333333 | AF212: 152 | AG212: 78 | AH212: 150 | AI212: 32.33333333
O213: Students Accumulating 48 hrs | P213: 1200.333333 | Q213: 1421 | R213: 1555.333333 | S213: 1604 | T213: 3349.666667 | U213: 1723.333333 | V213: 867 | W213: 2314.333333 | X213: 3877.666667 | Z213: Adults Accumulating 48 hrs | AA213: 151.6666667 | AB213: 352 | AC213: 94.66666667 | AD213: 53.33333333 | AE213: 337.3333333 | AF213: 192.3333333 | AG213: 123.6666667 | AH213: 296.6666667 | AI213: 82.33333333
B214: Outcomes (10-11 to 12-13 Data) | C214: UTM | D214: APSU | E214: TTU | F214: UTC | G214: MTSU | H214: ETSU | I214: TSU | J214: UM | K214: UTK | O214: Students Accumulating 72 hrs | P214: 1236 | Q214: 1387 | R214: 1641.666667 | S214: 1654.333333 | T214: 3775.333333 | U214: 1946 | V214: 889.3333333 | W214: 2534 | X214: 4151 | Z214: Adults Accumulating 72 hrs | AA214: 199.6666667 | AB214: 455.3333333 | AC214: 183.6666667 | AD214: 149.6666667 | AE214: 625.6666667 | AF214: 314.3333333 | AG214: 183.6666667 | AH214: 525.6666667 | AI214: 208.6666667
B215: Students Accumulating 24 hrs | C215: =(AVERAGE(P238,P225,(P212*(1+C30)))) -> 1276.333333 | D215: =(AVERAGE(Q238,Q225,(Q212*(1+D30)))) -> 1515.666667 | E215: =(AVERAGE(R238,R225,(R212*(1+E30)))) -> 1688 | F215: =(AVERAGE(S238,S225,(S212*(1+F30)))) -> 1880.333333 | G215: 3175.333333 | H215: 1801 | I215: 989.6666667 | J215: 2233.333333 | K215: 3483 | O215: Bachelors and Associates | P215: 1133.666667 | Q215: 1582 | R215: 1709.666667 | S215: 1490.666667 | T215: 3979.333333 | U215: 2162.666667 | V215: 1081.666667 | W215: 2763 | X215: 4426 | Z215: Adults Bachelors and Associates | AA215: 355 | AB215: 905.6666667 | AC215: 480.6666667 | AD215: 460.6666667 | AE215: 1518.666667 | AF215: 836 | AG215: 546.3333333 | AH215: 1304.666667 | AI215: 718.3333333
B216: Students Accumulating 48 hrs | C216: =(AVERAGE(P239,P226,(P213*(1+C31)))) -> 1200.333333 | D216: 1421 | E216: 1555.333333 | F216: 1604 | G216: 3349.666667 | H216: 1723.333333 | I216: 867 | J216: 2314.333333 | K216: 3877.666667 | O216: Masters/Ed Specialist Degrees | P216: 128.3333333 | Q216: 308.6666667 | R216: 488 | S216: 456 | T216: 952.6666667 | U216: 605 | V216: 409.3333333 | W216: 1038.333333 | X216: 1568.333333 | Z216: Low-income Accumulating 24 hrs | AA216: 702.6666667 | AB216: 851.3333333 | AC216: 680.3333333 | AD216: 733 | AE216: 1667.666667 | AF216: 836 | AG216: 579.3333333 | AH216: 1186.666667 | AI216: 1123.333333
B217: Students Accumulating 72 hrs | C217: 1236 | D217: 1387 | E217: 1641.666667 | F217: 1654.333333 | G217: 3775.333333 | H217: 1946 | I217: 889.3333333 | J217: 2534 | K217: 4151 | O217: Doctoral / Law Degrees | P217: 0 | Q217: 0 | R217: 17 | S217: 60.66666667 | T217: 21 | U217: 82.66666667 | V217: 68.33333333 | W217: 262 | X217: 539 | Z217: Low-income Accumulating 48 hrs | AA217: 689.3333333 | AB217: 840 | AC217: 700.6666667 | AD217: 663.6666667 | AE217: 1765.666667 | AF217: 828.3333333 | AG217: 524 | AH217: 1262 | AI217: 1276.333333
B218: Bachelors and Associates | C218: 1133.666667 | D218: 1582 | E218: 1709.666667 | F218: 1490.666667 | G218: 3979.333333 | H218: 2162.666667 | I218: 1081.666667 | J218: 2763 | K218: 4426 | O218: Research and Service | P218: 2895192.817 | Q218: 3234935.493 | R218: 9618701.76 | S218: 10734921.92 | T218: 24168097.46 | U218: 23360636.33 | V218: 32085374.33 | W218: 56665628.67 | X218: 151648065.6 | Z218: Low-income Accumulating 72 hrs | AA218: 707 | AB218: 798.6666667 | AC218: 803 | AD218: 733 | AE218: 1997.666667 | AF218: 965.3333333 | AG218: 558 | AH218: 1403.333333 | AI218: 1447
B219: Masters/Ed Specialist Degrees | C219: 128.3333333 | D219: 308.6666667 | E219: 488 | F219: 456 | G219: 952.6666667 | H219: 605 | I219: 409.3333333 | J219: 1038.333333 | K219: 1568.333333 | O219: Transfers Out with 12 hrs | P219: 249 | Q219: 206.3333333 | R219: 321.3333333 | S219: 536 | T219: 624.6666667 | U219: 382 | V219: 213.6666667 | W219: 425.3333333 | X219: 550.6666667 | Z219: Low-income Bachelors and Associates | AA219: 628 | AB219: 877 | AC219: 879 | AD219: 694 | AE219: 2044.333333 | AF219: 1061.666667 | AG219: 687.3333333 | AH219: 1507.333333 | AI219: 1540.333333
B220: Doctoral / Law Degrees | C220: 0 | D220: 0 | E220: 17 | F220: 60.66666667 | G220: 21 | H220: 82.66666667 | I220: 68.33333333 | J220: 262 | K220: 539 | O220: Degrees per 100 FTE | P220: 16.63148771 | Q220: 18.89021159 | R220: 19.33816264 | S220: 16.74212696 | T220: 19.47340623 | U220: 19.41523271 | V220: 17.79071083 | W220: 18.49582945 | X220: 22.68995434
B221: Research and Service | C221: 2895192.817 | D221: 3234935.493 | E221: 9618701.76 | F221: 10734921.92 | G221: 24168097.46 | H221: 23360636.33 | I221: 32085374.33 | J221: 56665628.67 | K221: 151648065.6 | O221: Six-Year Graduation Rate | P221: =56.1292708817688/100 -> 0.5612927088 | Q221: =42.8055833770528/100 -> 0.4280558338 | R221: =56.3690318908031/100 -> 0.5636903189 | S221: =50.9250007513611/100 -> 0.5092500075 | T221: =52.126345800615/100 -> 0.521263458 | U221: =49.1855925203052/100 -> 0.4918559252 | V221: =36.5671016390221/100 -> 0.3656710164 | W221: =45.5149886505684/100 -> 0.4551498865 | X221: =71.5424817621804/100 -> 0.7154248176
B222: Transfers Out with 12 hrs | C222: 249 | D222: 206.3333333 | E222: 321.3333333 | F222: 536 | G222: 624.6666667 | H222: 382 | I222: 213.6666667 | J222: 425.3333333 | K222: 550.6666667
B223: Degrees per 100 FTE | C223: 16.63148771 | D223: 18.89021159 | E223: 19.33816264 | F223: 16.74212696 | G223: 19.47340623 | H223: 19.41523271 | I223: 17.79071083 | J223: 18.49582945 | K223: 22.68995434
B224: Six-Year Graduation Rate | C224: =(AVERAGE(P247,P234,(P221*(1+C39))))*100 -> 56.12927088 | D224: =(AVERAGE(Q247,Q234,(Q221*(1+D39))))*100 -> 42.80558338 | E224: =(AVERAGE(R247,R234,(R221*(1+E39))))*100 -> 56.36903189 | F224: 50.92500075 | G224: 52.1263458 | H224: 49.18559252 | I224: 36.56710164 | J224: 45.51498865 | K224: 71.54248176 | P224: UTM | Q224: APSU | R224: TTU | S224: UTC | T224: MTSU | U224: ETSU | V224: TSU | W224: UM | X224: UTK | Z224: sub pops | AA224: UTM | AB224: APSU | AC224: TTU | AD224: UTC | AE224: MTSU | AF224: ETSU | AG224: TSU | AH224: UM | AI224: UTK
O225: Students Accumulating 24 hrs | P225: 1276.333333 | Q225: 1515.666667 | R225: 1688 | S225: 1880.333333 | T225: 3175.333333 | U225: 1801 | V225: 989.6666667 | W225: 2233.333333 | X225: 3483 | Z225: Adults Accumulating 24 hrs | AA225: 113.6666667 | AB225: 250 | AC225: 60 | AD225: 34.66666667 | AE225: 217.3333333 | AF225: 152 | AG225: 78 | AH225: 150 | AI225: 32.33333333
O226: Students Accumulating 48 hrs | P226: 1200.333333 | Q226: 1421 | R226: 1555.333333 | S226: 1604 | T226: 3349.666667 | U226: 1723.333333 | V226: 867 | W226: 2314.333333 | X226: 3877.666667 | Z226: Adults Accumulating 48 hrs | AA226: 151.6666667 | AB226: 352 | AC226: 94.66666667 | AD226: 53.33333333 | AE226: 337.3333333 | AF226: 192.3333333 | AG226: 123.6666667 | AH226: 296.6666667 | AI226: 82.33333333
B227: Sub-population Outcomes (10-11 to 12-13 Data) | C227: UTM | D227: APSU | E227: TTU | F227: UTC | G227: MTSU | H227: ETSU | I227: TSU | J227: UM | K227: UTK | O227: Students Accumulating 72 hrs | P227: 1236 | Q227: 1387 | R227: 1641.666667 | S227: 1654.333333 | T227: 3775.333333 | U227: 1946 | V227: 889.3333333 | W227: 2534 | X227: 4151 | Z227: Adults Accumulating 72 hrs | AA227: 199.6666667 | AB227: 455.3333333 | AC227: 183.6666667 | AD227: 149.6666667 | AE227: 625.6666667 | AF227: 314.3333333 | AG227: 183.6666667 | AH227: 525.6666667 | AI227: 208.6666667
B228: Adults Accumulating 24 hrs | C228: =(AVERAGE(AA238,AA225,(AA212*(1+C$40)))) -> 113.6666667 | D228: =(AVERAGE(AB238,AB225,(AB212*(1+D$40)))) -> 250 | E228: 60 | F228: 34.66666667 | G228: 217.3333333 | H228: 152 | I228: 78 | J228: 150 | K228: 32.33333333 | O228: Bachelors and Associates | P228: 1133.666667 | Q228: 1582 | R228: 1709.666667 | S228: 1490.666667 | T228: 3979.333333 | U228: 2162.666667 | V228: 1081.666667 | W228: 2763 | X228: 4426 | Z228: Adults Bachelors and Associates | AA228: 355 | AB228: 905.6666667 | AC228: 480.6666667 | AD228: 460.6666667 | AE228: 1518.666667 | AF228: 836 | AG228: 546.3333333 | AH228: 1304.666667 | AI228: 718.3333333
B229: Adults Accumulating 48 hrs | C229: =(AVERAGE(AA239,AA226,(AA213*(1+C$40)))) -> 151.6666667 | D229: 352 | E229: 94.66666667 | F229: 53.33333333 | G229: 337.3333333 | H229: 192.3333333 | I229: 123.6666667 | J229: 296.6666667 | K229: 82.33333333 | O229: Masters/Ed Specialist Degrees | P229: 128.3333333 | Q229: 308.6666667 | R229: 488 | S229: 456 | T229: 952.6666667 | U229: 605 | V229: 409.3333333 | W229: 1038.333333 | X229: 1568.333333 | Z229: Low-income Accumulating 24 hrs | AA229: 702.6666667 | AB229: 851.3333333 | AC229: 680.3333333 | AD229: 733 | AE229: 1667.666667 | AF229: 836 | AG229: 579.3333333 | AH229: 1186.666667 | AI229: 1123.333333
B230: Adults Accumulating 72 hrs | C230: =(AVERAGE(AA240,AA227,(AA214*(1+C$40)))) -> 199.6666667 | D230: 455.3333333 | E230: 183.6666667 | F230: 149.6666667 | G230: 625.6666667 | H230: 314.3333333 | I230: 183.6666667 | J230: 525.6666667 | K230: 208.6666667 | O230: Doctoral / Law Degrees | P230: 0 | Q230: 0 | R230: 17 | S230: 60.66666667 | T230: 21 | U230: 82.66666667 | V230: 68.33333333 | W230: 262 | X230: 539 | Z230: Low-income Accumulating 48 hrs | AA230: 689.3333333 | AB230: 840 | AC230: 700.6666667 | AD230: 663.6666667 | AE230: 1765.666667 | AF230: 828.3333333 | AG230: 524 | AH230: 1262 | AI230: 1276.333333
B231: Adults Bachelors and Associates | C231: =(AVERAGE(AA241,AA228,(AA215*(1+C$40)))) -> 355 | D231: 905.6666667 | E231: 480.6666667 | F231: 460.6666667 | G231: 1518.666667 | H231: 836 | I231: 546.3333333 | J231: 1304.666667 | K231: 718.3333333 | O231: Research and Service | P231: 2895192.817 | Q231: 3234935.493 | R231: 9618701.76 | S231: 10734921.92 | T231: 24168097.46 | U231: 23360636.33 | V231: 32085374.33 | W231: 56665628.67 | X231: 151648065.6 | Z231: Low-income Accumulating 72 hrs | AA231: 707 | AB231: 798.6666667 | AC231: 803 | AD231: 733 | AE231: 1997.666667 | AF231: 965.3333333 | AG231: 558 | AH231: 1403.333333 | AI231: 1447
B232: Low-income Accumulating 24 hrs | C232: =(AVERAGE(AA242,AA229,(AA216*(1+C$41)))) -> 702.6666667 | D232: =(AVERAGE(AB242,AB229,(AB216*(1+D$41)))) -> 851.3333333 | E232: 680.3333333 | F232: 733 | G232: 1667.666667 | H232: 836 | I232: 579.3333333 | J232: 1186.666667 | K232: 1123.333333 | O232: Transfers Out with 12 hrs | P232: 249 | Q232: 206.3333333 | R232: 321.3333333 | S232: 536 | T232: 624.6666667 | U232: 382 | V232: 213.6666667 | W232: 425.3333333 | X232: 550.6666667 | Z232: Low-income Bachelors and Associates | AA232: 628 | AB232: 877 | AC232: 879 | AD232: 694 | AE232: 2044.333333 | AF232: 1061.666667 | AG232: 687.3333333 | AH232: 1507.333333 | AI232: 1540.333333
B233: Low-income Accumulating 48 hrs | C233: =(AVERAGE(AA243,AA230,(AA217*(1+C$41)))) -> 689.3333333 | D233: 840 | E233: 700.6666667 | F233: 663.6666667 | G233: 1765.666667 | H233: 828.3333333 | I233: 524 | J233: 1262 | K233: 1276.333333 | O233: Degrees per 100 FTE | P233: 16.63148771 | Q233: 18.89021159 | R233: 19.33816264 | S233: 16.74212696 | T233: 19.47340623 | U233: 19.41523271 | V233: 17.79071083 | W233: 18.49582945 | X233: 22.68995434
B234: Low-income Accumulating 72 hrs | C234: =(AVERAGE(AA244,AA231,(AA218*(1+C$41)))) -> 707 | D234: 798.6666667 | E234: 803 | F234: 733 | G234: 1997.666667 | H234: 965.3333333 | I234: 558 | J234: 1403.333333 | K234: 1447 | O234: Six-Year Graduation Rate | P234: =56.1292708817688/100 -> 0.5612927088 | Q234: =42.8055833770528/100 -> 0.4280558338 | R234: =56.3690318908031/100 -> 0.5636903189 | S234: =50.9250007513611/100 -> 0.5092500075 | T234: =52.126345800615/100 -> 0.521263458 | U234: =49.1855925203052/100 -> 0.4918559252 | V234: =36.5671016390221/100 -> 0.3656710164 | W234: =45.5149886505684/100 -> 0.4551498865 | X234: =71.5424817621804/100 -> 0.7154248176
B235: Low-income Bachelors and Associates | C235: =(AVERAGE(AA245,AA232,(AA219*(1+C$41)))) -> 628 | D235: 877 | E235: 879 | F235: 694 | G235: 2044.333333 | H235: 1061.666667 | I235: 687.3333333 | J235: 1507.333333 | K235: 1540.333333
B236: Sub-population Premium = 40%
P237: UTM | Q237: APSU | R237: TTU | S237: UTC | T237: MTSU | U237: ETSU | V237: TSU | W237: UM | X237: UTK | Z237: sub pops | AA237: UTM | AB237: APSU | AC237: TTU | AD237: UTC | AE237: MTSU | AF237: ETSU | AG237: TSU | AH237: UM | AI237: UTK
A238: Scale | B238: Scaled Outcomes (10-11 to 12-13 Data) | C238: UTM | D238: APSU | E238: TTU | F238: UTC | G238: MTSU | H238: ETSU | I238: TSU | J238: UM | K238: UTK | O238: Students Accumulating 24 hrs | P238: 1276.333333 | Q238: 1515.666667 | R238: 1688 | S238: 1880.333333 | T238: 3175.333333 | U238: 1801 | V238: 989.6666667 | W238: 2233.333333 | X238: 3483 | Z238: Adults Accumulating 24 hrs | AA238: 113.6666667 | AB238: 250 | AC238: 60 | AD238: 34.66666667 | AE238: 217.3333333 | AF238: 152 | AG238: 78 | AH238: 150 | AI238: 32.33333333
A239: 1 | B239: Students Accumulating 24 hrs (Scale=1) | C239: =C215/$A239 -> 1276.333333 | D239: =D215/$A239 -> 1515.666667 | E239: 1688 | F239: 1880.333333 | G239: 3175.333333 | H239: 1801 | I239: 989.6666667 | J239: 2233.333333 | K239: 3483 | O239: Students Accumulating 48 hrs | P239: 1200.333333 | Q239: 1421 | R239: 1555.333333 | S239: 1604 | T239: 3349.666667 | U239: 1723.333333 | V239: 867 | W239: 2314.333333 | X239: 3877.666667 | Z239: Adults Accumulating 48 hrs | AA239: 151.6666667 | AB239: 352 | AC239: 94.66666667 | AD239: 53.33333333 | AE239: 337.3333333 | AF239: 192.3333333 | AG239: 123.6666667 | AH239: 296.6666667 | AI239: 82.33333333
A240: 1 | B240: Students Accumulating 48 hrs (Scale=1) | C240: 1200.333333 | D240: 1421 | E240: 1555.333333 | F240: 1604 | G240: 3349.666667 | H240: 1723.333333 | I240: 867 | J240: 2314.333333 | K240: 3877.666667 | O240: Students Accumulating 72 hrs | P240: 1236 | Q240: 1387 | R240: 1641.666667 | S240: 1654.333333 | T240: 3775.333333 | U240: 1946 | V240: 889.3333333 | W240: 2534 | X240: 4151 | Z240: Adults Accumulating 72 hrs | AA240: 199.6666667 | AB240: 455.3333333 | AC240: 183.6666667 | AD240: 149.6666667 | AE240: 625.6666667 | AF240: 314.3333333 | AG240: 183.6666667 | AH240: 525.6666667 | AI240: 208.6666667
A241: 1 | B241: Students Accumulating 72 hrs (Scale=1) | C241: 1236 | D241: 1387 | E241: 1641.666667 | F241: 1654.333333 | G241: 3775.333333 | H241: 1946 | I241: 889.3333333 | J241: 2534 | K241: 4151 | O241: Bachelors and Associates | P241: 1133.666667 | Q241: 1582 | R241: 1709.666667 | S241: 1490.666667 | T241: 3979.333333 | U241: 2162.666667 | V241: 1081.666667 | W241: 2763 | X241: 4426 | Z241: Adults Bachelors and Associates | AA241: 355 | AB241: 905.6666667 | AC241: 480.6666667 | AD241: 460.6666667 | AE241: 1518.666667 | AF241: 836 | AG241: 546.3333333 | AH241: 1304.666667 | AI241: 718.3333333
A242: 1 | B242: Bachelors and Associates (Scale=1) | C242: 1133.666667 | D242: 1582 | E242: 1709.666667 | F242: 1490.666667 | G242: 3979.333333 | H242: 2162.666667 | I242: 1081.666667 | J242: 2763 | K242: 4426 | O242: Masters/Ed Specialist Degrees | P242: 128.3333333 | Q242: 308.6666667 | R242: 488 | S242: 456 | T242: 952.6666667 | U242: 605 | V242: 409.3333333 | W242: 1038.333333 | X242: 1568.333333 | Z242: Low-income Accumulating 24 hrs | AA242: 702.6666667 | AB242: 851.3333333 | AC242: 680.3333333 | AD242: 733 | AE242: 1667.666667 | AF242: 836 | AG242: 579.3333333 | AH242: 1186.666667 | AI242: 1123.333333
A243: 0.3 | B243: Masters/Ed Specialist Degrees (Scale=0.3) | C243: 427.7777778 | D243: 1028.888889 | E243: 1626.666667 | F243: 1520 | G243: 3175.555556 | H243: 2016.666667 | I243: 1364.444444 | J243: 3461.111111 | K243: 5227.777778 | O243: Doctoral / Law Degrees | P243: 0 | Q243: 0 | R243: 17 | S243: 60.66666667 | T243: 21 | U243: 82.66666667 | V243: 68.33333333 | W243: 262 | X243: 539 | Z243: Low-income Accumulating 48 hrs | AA243: 689.3333333 | AB243: 840 | AC243: 700.6666667 | AD243: 663.6666667 | AE243: 1765.666667 | AF243: 828.3333333 | AG243: 524 | AH243: 1262 | AI243: 1276.333333
A244: 0.05 | B244: Doctoral / Law Degrees (Scale=.05) | C244: 0 | D244: 0 | E244: 340 | F244: 1213.333333 | G244: 420 | H244: 1653.333333 | I244: 1366.666667 | J244: 5240 | K244: 10780 | O244: Research and Service | P244: 2895192.817 | Q244: 3234935.493 | R244: 9618701.76 | S244: 10734921.92 | T244: 24168097.46 | U244: 23360636.33 | V244: 32085374.33 | W244: 56665628.67 | X244: 151648065.6 | Z244: Low-income Accumulating 72 hrs | AA244: 707 | AB244: 798.6666667 | AC244: 803 | AD244: 733 | AE244: 1997.666667 | AF244: 965.3333333 | AG244: 558 | AH244: 1403.333333 | AI244: 1447
A245: 20000 | B245: Research and Service (Scale=20,000) | C245: 144.7596408 | D245: 161.7467747 | E245: 480.935088 | F245: 536.7460962 | G245: 1208.404873 | H245: 1168.031817 | I245: 1604.268717 | J245: 2833.281433 | K245: 7582.403281 | O245: Transfers Out with 12 hrs | P245: 249 | Q245: 206.3333333 | R245: 321.3333333 | S245: 536 | T245: 624.6666667 | U245: 382 | V245: 213.6666667 | W245: 425.3333333 | X245: 550.6666667 | Z245: Low-income Bachelors and Associates | AA245: 628 | AB245: 877 | AC245: 879 | AD245: 694 | AE245: 2044.333333 | AF245: 1061.666667 | AG245: 687.3333333 | AH245: 1507.333333 | AI245: 1540.333333
... 52 more rows

Sheet Dynamic Formula
B1: Tennessee Higher Education Commission
B2: Estimated Changes in FY 2015-16 Formula Recommendation and Appropriations*
B4: Community Colleges | C4: =Outcomes!C4 -> Chattanooga | O4: Total Weighted Outcomes | R4: =M31 -> 1000.590906
D5: Estimated | E5: Sub-pop | K5: Mission-Based | M5: Weighted
C6: Outcomes | D6: Data | E6: x | F6: / | G6: Scales | H6: = | I6: Scaled Data | J6: x | K6: Weights | L6: = | M6: Outcomes
C7: Students Accumulating 12 hrs | D7: =HLOOKUP($C$4,Outcomes!$C$71:$O$83,2,0) -> 2461.666667 | F7: / | G7: =Outcomes!A101 -> 2 | H7: = | I7: =HLOOKUP($C$4,Outcomes!$C$100:$O$112,2,0) -> 1230.833333 | J7: X | K7: =HLOOKUP($C$4,Outcomes!$C$128:$O$140,2,0) -> 0.06 | L7: = | M7: =HLOOKUP($C$4,Outcomes!$C$143:$O$155,2,0) -> 99.55 | O7: X | P7: Salary Multiplier | R7: =HLOOKUP($C$4,Outcomes!C143:O158,16,0) -> 54621.26917
C8: Sub-population Adults | D8: =HLOOKUP($C$4,Outcomes!$C$85:$O$96,2,0) -> 748 | E8: 0.4 | I8: =HLOOKUP($C$4,Outcomes!$C$114:$O$125,2,0) -> 149.6 | P8: = Outcomes Based Subtotal | R8: =HLOOKUP($C$4,Outcomes!C143:O160,17,0) -> 54653545.2
C9: Sub-population Pell | D9: =HLOOKUP($C$4,Outcomes!$C$85:$O$96,8,0) -> 1393.666667 | E9: 0.4 | I9: =HLOOKUP($C$4,Outcomes!$C$114:$O$125,8,0) -> 278.7333333 | O9: + | P9: M&O & Utilities | R9: =HLOOKUP($C$4,Outcomes!C143:O163,20,0) -> 8180769.182
C10: Students Accumulating 24 hrs | D10: =HLOOKUP($C$4,Outcomes!$C$71:$O$83,3,0) -> 1880.666667 | G10: =Outcomes!A102 -> 2 | I10: =HLOOKUP($C$4,Outcomes!$C$100:$O$112,3,0) -> 940.3333333 | K10: =HLOOKUP($C$4,Outcomes!$C$128:$O$140,3,0) -> 0.07 | M10: =HLOOKUP($C$4,Outcomes!$C$143:$O$155,3,0) -> 92.834 | O10: + | P10: Equipment | R10: =HLOOKUP($C$4,Outcomes!C143:O164,21,0) -> 1224978.264
C11: Sub-population Adults | D11: =HLOOKUP($C$4,Outcomes!$C$85:$O$96,3,0) -> 760.3333333 | E11: 0.4 | I11: =HLOOKUP($C$4,Outcomes!$C$114:$O$125,3,0) -> 152.0666667 | O11: x | P11: Three-Year Formula Phase In | R11: =HLOOKUP($C$4,Outcomes!$C$56:$O$60,5,0) -> 1
C12: Sub-population Pell | D12: =HLOOKUP($C$4,Outcomes!$C$85:$O$96,9,0) -> 1169 | E12: 0.4 | I12: =HLOOKUP($C$4,Outcomes!$C$114:$O$125,9,0) -> 233.8 | P12: = Estimated Need | R12: =(R8+R9+R10)*R11 -> 64059292.65
C13: Students Accumulating 36 hrs | D13: =HLOOKUP($C$4,Outcomes!$C$71:$O$83,4,0) -> 1628 | G13: =Outcomes!A103 -> 2 | I13: =HLOOKUP($C$4,Outcomes!$C$100:$O$112,4,0) -> 814 | K13: =HLOOKUP($C$4,Outcomes!$C$128:$O$140,4,0) -> 0.07 | M13: =HLOOKUP($C$4,Outcomes!$C$143:$O$155,4,0) -> 81.55 | O13: X | P13: Subsidy/Fee Policy | R13: 0.6667
C14: Sub-population Adults | D14: =HLOOKUP($C$4,Outcomes!$C$85:$O$96,4,0) -> 736.3333333 | E14: 0.4 | I14: =HLOOKUP($C$4,Outcomes!$C$114:$O$125,4,0) -> 147.2666667 | O14: - | P14: Out of State Tuition Revenue | R14: =HLOOKUP($C$4,Outcomes!C56:O66,11,0) -> 2121291.502
C15: Sub-population Pell | D15: =HLOOKUP($C$4,Outcomes!$C$85:$O$96,10,0) -> 1018.666667 | E15: 0.4 | I15: =HLOOKUP($C$4,Outcomes!$C$114:$O$125,10,0) -> 203.7333333 | O15: + | P15: Performance Funding: | R15: =(R12*R13-R14)*((0.0545*R17)/100) -> 2145633.812
C16: Dual Enrollment | D16: =HLOOKUP($C$4,Outcomes!$C$71:$O$83,5,0) -> 1167.666667 | G16: =Outcomes!A104 -> 2 | I16: =HLOOKUP($C$4,Outcomes!$C$100:$O$112,5,0) -> 583.8333333 | K16: =HLOOKUP($C$4,Outcomes!$C$128:$O$140,5,0) -> 0.05 | M16: =HLOOKUP($C$4,Outcomes!$C$143:$O$155,5,0) -> 29.19166667 | P16: Quality Assurance Amount
C17: Associates | D17: =HLOOKUP($C$4,Outcomes!$C$71:$O$83,6,0) -> 913.3333333 | G17: =Outcomes!A105 -> 1.5 | I17: =HLOOKUP($C$4,Outcomes!$C$100:$O$112,6,0) -> 608.8888889 | K17: =HLOOKUP($C$4,Outcomes!$C$128:$O$140,6,0) -> 0.05 | M17: =HLOOKUP($C$4,Outcomes!$C$143:$O$155,6,0) -> 45.40888889 | P17: (Quality Assurance Score) | R17: =HLOOKUP($C$4,Outcomes!C143:O169,26,0) -> 97
C18: Sub-population Adults | D18: =HLOOKUP($C$4,Outcomes!$C$85:$O$96,5,0) -> 572 | E18: 0.4 | I18: =HLOOKUP($C$4,Outcomes!$C$114:$O$125,5,0) -> 152.5333333 | O18: + | P18: Legislative Initiatives | R18: =HLOOKUP($C$4,Outcomes!C56:O67,12,0) -> 0
C19: Sub-population Pell | D19: =HLOOKUP($C$4,Outcomes!$C$85:$O$96,11,0) -> 550.3333333 | E19: 0.4 | I19: =HLOOKUP($C$4,Outcomes!$C$114:$O$125,11,0) -> 146.7555556
C20: Certificates 1-2 Years | D20: =HLOOKUP($C$4,Outcomes!$C$71:$O$83,7,0) -> 166 | G20: =Outcomes!A106 -> 1.5 | I20: =HLOOKUP($C$4,Outcomes!$C$100:$O$112,7,0) -> 110.6666667 | K20: =HLOOKUP($C$4,Outcomes!$C$128:$O$140,7,0) -> 0.05 | M20: =HLOOKUP($C$4,Outcomes!$C$143:$O$155,7,0) -> 7.995555556
C21: Sub-population Adults | D21: =HLOOKUP($C$4,Outcomes!$C$85:$O$96,6,0) -> 104.6666667 | E21: 0.4 | I21: =HLOOKUP($C$4,Outcomes!$C$114:$O$125,6,0) -> 27.91111111
C22: Sub-population Pell | D22: =HLOOKUP($C$4,Outcomes!$C$85:$O$96,12,0) -> 80 | E22: 0.4 | I22: =HLOOKUP($C$4,Outcomes!$C$114:$O$125,12,0) -> 21.33333333
C23: Certificates Less Than 1 Year | D23: =HLOOKUP($C$4,Outcomes!$C$71:$O$83,8,0) -> 109 | G23: =Outcomes!A107 -> 1.5 | I23: =HLOOKUP($C$4,Outcomes!$C$100:$O$112,8,0) -> 72.66666667 | K23: =HLOOKUP($C$4,Outcomes!$C$128:$O$140,8,0) -> 0.05 | M23: =HLOOKUP($C$4,Outcomes!$C$143:$O$155,8,0) -> 5.406666667 | O23: Estimated 2015-16 THEC Recommendation | R23: =HLOOKUP($C$4,Outcomes!C56:O68,13,0) -> 42730000
C24: Sub-population Adults | D24: =HLOOKUP($C$4,Outcomes!$C$85:$O$96,7,0) -> 71 | E24: 0.4 | I24: =HLOOKUP($C$4,Outcomes!$C$114:$O$125,7,0) -> 18.93333333
C25: Sub-population Pell | D25: =HLOOKUP($C$4,Outcomes!$C$85:$O$97,13,0) -> 62 | E25: 0.4 | I25: =HLOOKUP($C$4,Outcomes!$C$114:$O$126,13,0) -> 16.53333333
C26: Job Placements | D26: =HLOOKUP($C$4,Outcomes!$C$71:$O$83,9,0) -> 405.6666667 | G26: =Outcomes!A108 -> 0.5 | I26: =HLOOKUP($C$4,Outcomes!$C$100:$O$112,9,0) -> 811.3333333 | K26: =HLOOKUP($C$4,Outcomes!$C$128:$O$140,9,0) -> 0.2 | M26: =HLOOKUP($C$4,Outcomes!$C$143:$O$155,9,0) -> 162.2666667 | O26: X | P26: Percent Funded | R26: =Working!L39 -> 0.609286749
C27: R & D Success | D27: =HLOOKUP($C$4,Outcomes!$C$71:$O$83,10,0) -> 2627.666667 | G27: =Outcomes!A109 -> 5 | I27: =HLOOKUP($C$4,Outcomes!$C$100:$O$112,10,0) -> 525.5333333 | K27: =HLOOKUP($C$4,Outcomes!$C$128:$O$140,10,0) -> 0.1 | M27: =HLOOKUP($C$4,Outcomes!$C$143:$O$155,10,0) -> 52.55333333
C28: Transfers Out with 12 hrs | D28: =HLOOKUP($C$4,Outcomes!$C$71:$O$83,11,0) -> 510.6666667 | G28: =Outcomes!A110 -> 2 | I28: =HLOOKUP($C$4,Outcomes!$C$100:$O$112,11,0) -> 255.3333333 | K28: =HLOOKUP($C$4,Outcomes!$C$128:$O$140,11,0) -> 0.15 | M28: =HLOOKUP($C$4,Outcomes!$C$143:$O$155,11,0) -> 38.3 | R28: =VLOOKUP(C4,Outcomes!$R$148:$U$160,3,0) -> 26034800
C29: Workforce Training | D29: =HLOOKUP($C$4,Outcomes!$C$71:$O$83,12,0) -> 185122.3333 | G29: =Outcomes!A111 -> 50 | I29: =HLOOKUP($C$4,Outcomes!$C$100:$O$112,12,0) -> 3702.446667 | K29: =HLOOKUP($C$4,Outcomes!$C$128:$O$140,12,0) -> 0.1 | M29: =HLOOKUP($C$4,Outcomes!$C$143:$O$155,12,0) -> 370.2446667 | O29: Estimated 2015-16 THEC Recommendation
C30: Awards per 100 FTE | D30: =HLOOKUP($C$4,Outcomes!$C$71:$O$83,13,0) -> 15.28946159 | G30: =Outcomes!A112 -> 0.05 | I30: =HLOOKUP($C$4,Outcomes!$C$100:$O$112,13,0) -> 305.7892318 | K30: =HLOOKUP($C$4,Outcomes!$C$128:$O$141,13,0) -> 0.05 | M30: =HLOOKUP($C$4,Outcomes!$C$143:$O$155,13,0) -> 15.28946159 | O30: Recurring Appropriations
M31: =SUM(M7:M30) -> 1000.590906
B33: Universities | C33: =Outcomes!D4 -> APSU | O33: Total Weighted Outcomes | R33: =M54 -> 1303.595472
D34: Estimated | E34: Sub-pop | K34: Mission-Based | M34: Weighted
C35: Outcomes | D35: Data | E35: x | F35: / | G35: Scales | H35: = | I35: Scaled Data | J35: x | K35: Weights | L35: = | M35: Outcomes
C36: Students Accumulating 24 hrs | D36: =HLOOKUP($C$33,Outcomes!$C$214:$K$224,2,0) -> 1515.666667 | F36: / | G36: =Outcomes!A239 -> 1 | H36: = | I36: =HLOOKUP($C$33,Outcomes!$C$238:$K$248,2,0) -> 1515.666667 | J36: X | K36: =HLOOKUP($C$33,Outcomes!$C$262:$K$272,2,0) -> 0.03 | L36: = | M36: =HLOOKUP($C$33,Outcomes!$C$276:$K$286,2,0) -> 58.686 | O36: X | P36: Salary Multiplier | R36: =HLOOKUP($C$33,Outcomes!$C$276:$K$289,14,0) -> 65482.91117
C37: Sub-population Adults | D37: =HLOOKUP($C$33,Outcomes!$C$227:$K$235,2,0) -> 250 | E37: 0.4 | I37: =HLOOKUP($C$33,Outcomes!$C$251:$K$259,2,0) -> 100 | P37: = Outcomes Based Subtotal | R37: =HLOOKUP($C$33,Outcomes!$C$276:$K$290,15,0) -> 85363226.47
C38: Sub-population Pell | D38: =HLOOKUP($C$33,Outcomes!$C$227:$K$235,6,0) -> 851.3333333 | E38: 0.4 | I38: =HLOOKUP($C$33,Outcomes!$C$251:$K$259,6,0) -> 340.5333333 | O38: + | P38: M&O & Utilities | R38: =HLOOKUP($C$33,Outcomes!$C$276:$K$293,18,0) -> 13720362.08
C39: Students Accumulating 48 hrs | D39: =HLOOKUP($C$33,Outcomes!$C$214:$K$224,3,0) -> 1421 | G39: =Outcomes!A240 -> 1 | I39: =HLOOKUP($C$33,Outcomes!$C$238:$K$248,3,0) -> 1421 | K39: =HLOOKUP($C$33,Outcomes!$C$262:$K$272,3,0) -> 0.05 | M39: =HLOOKUP($C$33,Outcomes!$C$276:$K$286,3,0) -> 94.89 | O39: + | P39: Equipment | R39: =HLOOKUP($C$33,Outcomes!$C$276:$K$294,19,0) -> 1482432.562
C40: Sub-population Adults | D40: =HLOOKUP($C$33,Outcomes!$C$227:$K$235,3,0) -> 352 | E40: 0.4 | I40: =HLOOKUP($C$33,Outcomes!$C$251:$K$259,3,0) -> 140.8 | O40: x | P40: Three-year Formula Phase In | R40: =HLOOKUP($C$33,Outcomes!$C$199:$K$211,5,0) -> 1
C41: Sub-population Pell | D41: =HLOOKUP($C$33,Outcomes!$C$227:$K$235,7,0) -> 840 | E41: 0.4 | I41: =HLOOKUP($C$33,Outcomes!$C$251:$K$259,7,0) -> 336 | P41: = Estimated Need | R41: =(R37+R38+R39) -> 100566021.1
C42: Students Accumulating 72 hrs | D42: =HLOOKUP($C$33,Outcomes!$C$214:$K$224,4,0) -> 1387 | G42: =Outcomes!A241 -> 1 | I42: =HLOOKUP($C$33,Outcomes!$C$238:$K$248,4,0) -> 1387 | K42: =HLOOKUP($C$33,Outcomes!$C$262:$K$272,4,0) -> 0.07 | M42: =HLOOKUP($C$33,Outcomes!$C$276:$K$286,4,0) -> 132.202 | O42: X | P42: Subsidy/Fee Policy | R42: 0.55
C43: Sub-population Adults | D43: =HLOOKUP($C$33,Outcomes!$C$227:$K$235,4,0) -> 455.3333333 | E43: 0.4 | I43: =HLOOKUP($C$33,Outcomes!$C$251:$K$259,4,0) -> 182.1333333 | O43: - | P43: Out of State Tuition Revenue | R43: =HLOOKUP($C$33,Outcomes!$C$199:$K$211,11,0) -> 1780364.485
C44: Sub-population Pell | D44: =HLOOKUP($C$33,Outcomes!$C$227:$K$235,8,0) -> 798.6666667 | E44: 0.4 | I44: =HLOOKUP($C$33,Outcomes!$C$251:$K$259,8,0) -> 319.4666667 | O44: + | P44: Performance Funding: | R44: =(R41*R42-R43)*((0.0545*R46)/100) -> 2654867.323
C45: Bachelors and Associates | D45: =HLOOKUP($C$33,Outcomes!$C$214:$K$224,5,0) -> 1582 | G45: =Outcomes!A242 -> 1 | I45: =HLOOKUP($C$33,Outcomes!$C$238:$K$248,5,0) -> 1582 | K45: =HLOOKUP($C$33,Outcomes!$C$262:$K$272,5,0) -> 0.25 | M45: =HLOOKUP($C$33,Outcomes!$C$276:$K$286,5,0) -> 573.7666667 | P45: Quality Assurance Amount
C46: Sub-population Adults | D46: =HLOOKUP($C$33,Outcomes!$C$227:$K$235,5,0) -> 905.6666667 | E46: 0.4 | I46: =HLOOKUP($C$33,Outcomes!$C$251:$K$259,5,0) -> 362.2666667 | P46: (Quality Assurance Score) | R46: =HLOOKUP($C$33,Outcomes!$C$276:$K$299,24,0) -> 91
C47: Sub-population Pell | D47: =HLOOKUP($C$33,Outcomes!$C$227:$K$235,9,0) -> 877 | E47: 0.4 | I47: =HLOOKUP($C$33,Outcomes!$C$251:$K$259,9,0) -> 350.8 | O47: + | P47: Legislative Initiatives | R47: =HLOOKUP($C$33,Outcomes!$C$199:$K$211,12,0) -> 0
C48: Masters/Ed Specialist Degrees | D48: =HLOOKUP($C$33,Outcomes!$C$214:$K$224,6,0) -> 308.6666667 | G48: =Outcomes!A243 -> 0.3 | I48: =HLOOKUP($C$33,Outcomes!$C$238:$K$248,6,0) -> 1028.888889 | K48: =HLOOKUP($C$33,Outcomes!$C$262:$K$272,6,0) -> 0.2 | M48: =HLOOKUP($C$33,Outcomes!$C$276:$K$286,6,0) -> 205.7777778 | O48: Estimated 2015-16 | R48: =HLOOKUP($C$33,Outcomes!$C$199:$K$211,13,0) -> 56186000
C49: Doctoral / Law Degrees | D49: =HLOOKUP($C$33,Outcomes!$C$214:$K$224,7,0) -> 0 | G49: =Outcomes!A244 -> 0.05 | I49: =HLOOKUP($C$33,Outcomes!$C$238:$K$248,7,0) -> 0 | K49: =HLOOKUP($C$33,Outcomes!$C$262:$K$272,7,0) -> 0 | M49: =HLOOKUP($C$33,Outcomes!$C$276:$K$286,7,0) -> 0 | O49: THEC Recommendation
C50: Research and Service | D50: =HLOOKUP($C$33,Outcomes!$C$214:$K$224,8,0) -> 3234935.493 | G50: =Outcomes!A245 -> 20000 | I50: =HLOOKUP($C$33,Outcomes!$C$238:$K$248,8,0) -> 161.7467747 | K50: =HLOOKUP($C$33,Outcomes!$C$262:$K$272,8,0) -> 0.1 | M50: =HLOOKUP($C$33,Outcomes!$C$276:$K$286,8,0) -> 16.17467747 | O50: X | P50: Percent Funded | R50: =Working!L39 -> 0.609286749
C51: Transfers Out with 12 hrs | D51: =HLOOKUP($C$33,Outcomes!$C$214:$K$224,9,0) -> 206.3333333 | G51: =Outcomes!A246 -> 1 | I51: =HLOOKUP($C$33,Outcomes!$C$238:$K$248,9,0) -> 206.3333333 | K51: =HLOOKUP($C$33,Outcomes!$C$262:$K$272,9,0) -> 0.1 | M51: =HLOOKUP($C$33,Outcomes!$C$276:$K$286,9,0) -> 20.63333333 | R51: =VLOOKUP(C33,Outcomes!P287:T295,4,0) -> 34233400
C52: Degrees per 100 FTE | D52: =HLOOKUP($C$33,Outcomes!$C$214:$K$224,10,0) -> 18.89021159 | G52: =Outcomes!A247 -> 0.02 | I52: =HLOOKUP($C$33,Outcomes!$C$238:$K$248,10,0) -> 944.5105796 | K52: =HLOOKUP($C$33,Outcomes!$C$262:$K$272,10,0) -> 0.1 | M52: =HLOOKUP($C$33,Outcomes!$C$276:$K$286,10,0) -> 94.45105796 | O52: Estimated 2015-16
C53: Six-Year Graduation Rate | D53: =HLOOKUP($C$33,Outcomes!$C$214:$K$224,11,0) -> 42.80558338 | G53: =Outcomes!A248 -> 0.04 | I53: =HLOOKUP($C$33,Outcomes!$C$238:$K$248,11,0) -> 1070.139584 | K53: =HLOOKUP($C$33,Outcomes!$C$262:$K$272,11,0) -> 0.1 | M53: =HLOOKUP($C$33,Outcomes!$C$276:$K$286,11,0) -> 107.0139584 | O53: Recurring Appropriations
M54: =SUM(M36:M53) -> 1303.595472
B68: *Estimated projections based on outcomes from previous years, on the FY 2014-15 Budget, and on alterations to outcomes and funding level made on other tabs in this file . Outcome data that has been altered on the Outcomes tab in a positive direction will appear blue while outcome data altered in a negative direction will appear red. The phasing out of the Hold Harmless Provision was completed in FY 2013-14.
Y77: WORKING AREA------
Y78: For Conditional Formatting Purposes:
Y81: =C4 -> Chattanooga | AC81: Weighted
Y82: Outcome | Z82: Data | AA82: Scaled Data | AB82: Weight | AC82: Outcomes
Y83: Students Accumulating 12 hrs | Z83: =HLOOKUP($C$4,Outcomes!$T$67:$AF$79,2,0) -> 2461.666667 | AA83: =Z83/Outcomes!A101 -> 1230.833333 | AB83: =HLOOKUP($C$4,Outcomes!$C$128:$O$140,2,0) -> 0.06 | AC83: =(AA83+AA84+AA85)*AB83 -> 99.55
Y84: Sub-population Adults | Z84: =AVERAGE(HLOOKUP($C$4,Outcomes!$AI$67:$AU$78,2,0),HLOOKUP($C$4,Outcomes!$AI$81:$AU$92,2,0),HLOOKUP($C$4,Outcomes!$AI$95:$AU$106,2,0)) -> 748 | AA84: =Z84/Outcomes!A101*Outcomes!$Q$113 -> 149.6
Y85: Sub-population Pell | Z85: =HLOOKUP($C$4,Outcomes!$AI$67:$AU$78,8,0) -> 1393.666667 | AA85: =Z85/Outcomes!A101*Outcomes!$Q$113 -> 278.7333333
Y86: Students Accumulating 24 hrs | Z86: =AVERAGE(HLOOKUP($C$4,Outcomes!$T$67:$AF$79,3,0),HLOOKUP($C$4,Outcomes!$T$81:$AF$93,3,0),HLOOKUP($C$4,Outcomes!$T$95:$AF$107,3,0)) -> 1880.666667 | AA86: =Z86/Outcomes!A102 -> 940.3333333 | AB86: =HLOOKUP($C$4,Outcomes!$C$128:$O$140,3,0) -> 0.07 | AC86: =(AA86+AA87+AA88)*AB86 -> 92.834
Y87: Sub-population Adults | Z87: =AVERAGE(HLOOKUP($C$4,Outcomes!$AI$67:$AU$78,3,0),HLOOKUP($C$4,Outcomes!$AI$81:$AU$92,3,0),HLOOKUP($C$4,Outcomes!$AI$95:$AU$106,3,0)) -> 760.3333333 | AA87: =Z87/Outcomes!A102*Outcomes!$Q$113 -> 152.0666667
Y88: Sub-population Pell | Z88: =HLOOKUP($C$4,Outcomes!$AI$67:$AU$78,9,0) -> 1169 | AA88: =Z88/Outcomes!A102*Outcomes!$Q$113 -> 233.8
Y89: Students Accumulating 36 hrs | Z89: =AVERAGE(HLOOKUP($C$4,Outcomes!$T$67:$AF$79,4,0),HLOOKUP($C$4,Outcomes!$T$81:$AF$93,4,0),HLOOKUP($C$4,Outcomes!$T$95:$AF$107,4,0)) -> 1628 | AA89: =Z89/Outcomes!A103 -> 814 | AB89: =HLOOKUP($C$4,Outcomes!$C$128:$O$140,4,0) -> 0.07 | AC89: =(AA89+AA90+AA91)*AB89 -> 81.55
Y90: Sub-population Adults | Z90: =AVERAGE(HLOOKUP($C$4,Outcomes!$AI$67:$AU$78,4,0),HLOOKUP($C$4,Outcomes!$AI$81:$AU$92,4,0),HLOOKUP($C$4,Outcomes!$AI$95:$AU$106,4,0)) -> 736.3333333 | AA90: =Z90/Outcomes!A103*Outcomes!$Q$113 -> 147.2666667
Y91: Sub-population Pell | Z91: =HLOOKUP($C$4,Outcomes!$AI$67:$AU$78,10,0) -> 1018.666667 | AA91: =Z91/Outcomes!A103*Outcomes!$Q$113 -> 203.7333333
Y92: Dual Enrollment | Z92: =AVERAGE(HLOOKUP($C$4,Outcomes!$T$67:$AF$79,5,0),HLOOKUP($C$4,Outcomes!$T$81:$AF$93,5,0),HLOOKUP($C$4,Outcomes!$T$95:$AF$107,5,0)) -> 1167.666667 | AA92: =Z92/Outcomes!A104 -> 583.8333333 | AB92: =HLOOKUP($C$4,Outcomes!$C$128:$O$140,5,0) -> 0.05 | AC92: =AA92*AB92 -> 29.19166667
Y93: Associates | Z93: =AVERAGE(HLOOKUP($C$4,Outcomes!$T$67:$AF$79,6,0),HLOOKUP($C$4,Outcomes!$T$81:$AF$93,6,0),HLOOKUP($C$4,Outcomes!$T$95:$AF$107,6,0)) -> 913.3333333 | AA93: =Z93/Outcomes!A105 -> 608.8888889 | AB93: =HLOOKUP($C$4,Outcomes!$C$128:$O$140,6,0) -> 0.05 | AC93: =(AA93+AA94+AA95)*AB93 -> 45.40888889 | AJ93: Cert 1-2 | AK93: =AVERAGE(HLOOKUP($C$4,Outcomes!$T$67:$AF$79,7,0),HLOOKUP($C$4,Outcomes!$T$81:$AF$93,7,0),HLOOKUP($C$4,Outcomes!$T$95:$AF$107,7,0)) -> 166 | AL93: =AK93/Outcomes!A106 -> 110.6666667 | AM93: =HLOOKUP($C$4,Outcomes!$C$128:$O$140,7,0) -> 0.05 | AN93: =(AL93+AL94+AL95)*AM93 -> 7.995555556
Y94: Sub-population Adults | Z94: =AVERAGE(HLOOKUP($C$4,Outcomes!$AI$67:$AU$78,5,0),HLOOKUP($C$4,Outcomes!$AI$81:$AU$92,5,0),HLOOKUP($C$4,Outcomes!$AI$95:$AU$106,5,0)) -> 572 | AA94: =Z94/Outcomes!A105*Outcomes!$Q$113 -> 152.5333333 | AJ94: Sub-population Adults | AK94: =AVERAGE(HLOOKUP($C$4,Outcomes!$AI$67:$AU$78,6,0),HLOOKUP($C$4,Outcomes!$AI$81:$AU$92,6,0),HLOOKUP($C$4,Outcomes!$AI$95:$AU$106,6,0)) -> 104.6666667 | AL94: =AK94/Outcomes!A106*Outcomes!$Q$113 -> 27.91111111
Y95: Sub-population Pell | Z95: =HLOOKUP($C$4,Outcomes!$AI$67:$AU$78,11,0) -> 550.3333333 | AA95: =Z95/Outcomes!A105*Outcomes!$Q$113 -> 146.7555556 | AJ95: Sub-population Pell | AK95: =HLOOKUP($C$4,Outcomes!$AI$67:$AU$78,12,0) -> 80 | AL95: =AK95/Outcomes!A106*Outcomes!$Q$113 -> 21.33333333
Y96: Certificates | Z96: =HLOOKUP($C$4,Outcomes!$T$67:$AF$79,7,0)+HLOOKUP($C$4,Outcomes!$T$67:$AF$79,8,0) -> 275 | AA96: =Z96/Outcomes!A106 -> 183.3333333 | AC96: =AE97+AF97 -> 13.40222222 | AE96: 1-2 Yr | AF96: < 1 Yr | AJ96: Cert less than 1 yr | AK96: =AVERAGE(HLOOKUP($C$4,Outcomes!$T$67:$AF$79,8,0),HLOOKUP($C$4,Outcomes!$T$81:$AF$93,8,0),HLOOKUP($C$4,Outcomes!$T$95:$AF$107,8,0)) -> 109 | AL96: =AK96/Outcomes!A107 -> 72.66666667 | AM96: =HLOOKUP($C$4,Outcomes!$C$128:$O$140,8,0) -> 0.05 | AN96: =(AL96+AL97+AL98)*AM96 -> 5.406666667
Y97: Sub-population Adults | Z97: =HLOOKUP($C$4,Outcomes!$AI$67:$AU$78,6,0)+HLOOKUP($C$4,Outcomes!$AI$67:$AU$78,7,0) -> 175.6666667 | AA97: =Z97/Outcomes!A105*Outcomes!$Q$113 -> 46.84444444 | AE97: =((HLOOKUP($C$4,Outcomes!$T$67:$AF$79,7,0)+0.4*(HLOOKUP($C$4,Outcomes!$AI$67:$AU$78,6,0)+HLOOKUP($C$4,Outcomes!$AI$67:$AU$79,12,0)))/Outcomes!A106)*HLOOKUP($C$4,Outcomes!$C$128:$O$140,7,0) -> 7.995555556 | AF97: =((HLOOKUP($C$4,Outcomes!$T$67:$AF$79,8,0)+0.4*(HLOOKUP($C$4,Outcomes!$AI$67:$AU$78,7,0)+HLOOKUP($C$4,Outcomes!$AI$67:$AU$79,13,0)))/Outcomes!A107)*HLOOKUP($C$4,Outcomes!$C$128:$O$140,8,0) -> 5.406666667 | AJ97: Sub-population Adults | AK97: =AVERAGE(HLOOKUP($C$4,Outcomes!$AI$67:$AU$78,7,0),HLOOKUP($C$4,Outcomes!$AI$81:$AU$92,7,0),HLOOKUP($C$4,Outcomes!$AI$95:$AU$106,7,0)) -> 71 | AL97: =AK97/Outcomes!A107*Outcomes!$Q$113 -> 18.93333333
Y98: Sub-population Pell | Z98: =HLOOKUP($C$4,Outcomes!$AI$67:$AU$79,13,0)+HLOOKUP($C$4,Outcomes!$AI$67:$AU$78,12,0) -> 142 | AA98: =Z98/Outcomes!A105*Outcomes!$Q$113 -> 37.86666667 | AJ98: Sub-population Pell | AK98: =HLOOKUP($C$4,Outcomes!$AI$67:$AU$79,13,0) -> 62 | AL98: =AK98/Outcomes!A107*Outcomes!$Q$113 -> 16.53333333
Y99: Job Placements | Z99: =HLOOKUP($C$4,Outcomes!$T$67:$AF$79,9,0) -> 405.6666667 | AA99: =Z99/Outcomes!A108 -> 811.3333333 | AB99: =HLOOKUP($C$4,Outcomes!$C$128:$O$140,9,0) -> 0.2 | AC99: =AA99*AB99 -> 162.2666667
Y100: R & D Success | Z100: =HLOOKUP($C$4,Outcomes!$T$67:$AF$79,10,0) -> 2627.666667 | AA100: =Z100/Outcomes!A109 -> 525.5333333 | AB100: =HLOOKUP($C$4,Outcomes!$C$128:$O$140,10,0) -> 0.1 | AC100: =AA100*AB100 -> 52.55333333
Y101: Transfers Out with 12 hrs | Z101: =HLOOKUP($C$4,Outcomes!$T$67:$AF$79,11,0) -> 510.6666667 | AA101: =Z101/Outcomes!A110 -> 255.3333333 | AB101: =HLOOKUP($C$4,Outcomes!$C$128:$O$140,11,0) -> 0.15 | AC101: =AA101*AB101 -> 38.3
Y102: Workforce Training | Z102: =HLOOKUP($C$4,Outcomes!$T$67:$AF$79,12,0) -> 185122.3333 | AA102: =Z102/Outcomes!A111 -> 3702.446667 | AB102: =HLOOKUP($C$4,Outcomes!$C$128:$O$140,12,0) -> 0.1 | AC102: =AA102*AB102 -> 370.2446667
Y103: Awards per 100 FTE | Z103: =HLOOKUP($C$4,Outcomes!$T$67:$AF$80,13,0) -> 15.28946159 | AA103: =Z103/Outcomes!A112 -> 305.7892318 | AB103: =HLOOKUP($C$4,Outcomes!$C$128:$O$141,13,0) -> 0.05 | AC103: =AA103*AB103 -> 15.28946159
AC104: =SUM(AC83:AC103) -> 1000.590906
Y105: For Conditional Formatting Purposes:
Y108: =C33 -> APSU | AC108: Weighted
Y109: Outcome | Z109: Data | AA109: Scaled Data | AB109: Weight | AC109: Outcomes
Y110: Students Accumulating 24 hrs | Z110: =AVERAGE(HLOOKUP(C33,Outcomes!$P$211:$X$221,2,0),HLOOKUP(C33,Outcomes!$P$224:$X$234,2,0),HLOOKUP(C33,Outcomes!$P$237:$X$247,2,0)) -> 1515.666667 | AA110: =Z110 -> 1515.666667 | AB110: =HLOOKUP(C33,Outcomes!$C$262:$K$272,2,0) -> 0.03 | AC110: =(AA110+AA111+AA112)*AB110 -> 58.686
Y111: Sub-population Adults | Z111: =AVERAGE(HLOOKUP(C33,Outcomes!$AA$211:$AI$219,2,0),HLOOKUP(C33,Outcomes!$AA$224:$AI$232,2,0),HLOOKUP(C33,Outcomes!$AA$237:$AI$245,2,0)) -> 250 | AA111: =Z111*Outcomes!$N$252 -> 100
Y112: Sub-population Pell | Z112: =AVERAGE(HLOOKUP(C33,Outcomes!$AA$211:$AI$219,6,0),HLOOKUP(C33,Outcomes!$AA$224:$AI$232,6,0),HLOOKUP(C33,Outcomes!$AA$237:$AI$245,6,0)) -> 851.3333333 | AA112: =Z112*Outcomes!$N$252 -> 340.5333333
Y113: Students Accumulating 48 hrs | Z113: =AVERAGE(HLOOKUP(C33,Outcomes!$P$211:$X$221,3,0),HLOOKUP(C33,Outcomes!$P$224:$X$234,3,0),HLOOKUP(C33,Outcomes!$P$237:$X$247,3,0)) -> 1421 | AA113: =Z113 -> 1421 | AB113: =HLOOKUP(C33,Outcomes!$C$262:$K$272,3,0) -> 0.05 | AC113: =(AA113+AA114+AA115)*AB113 -> 94.89
Y114: Sub-population Adults | Z114: =AVERAGE(HLOOKUP(C33,Outcomes!$AA$211:$AI$219,3,0),HLOOKUP(C33,Outcomes!$AA$224:$AI$232,3,0),HLOOKUP(C33,Outcomes!$AA$237:$AI$245,3,0)) -> 352 | AA114: =Z114*Outcomes!$N$252 -> 140.8
Y115: Sub-population Pell | Z115: =AVERAGE(HLOOKUP(C33,Outcomes!$AA$211:$AI$219,7,0),HLOOKUP(C33,Outcomes!$AA$224:$AI$232,7,0),HLOOKUP(C33,Outcomes!$AA$237:$AI$245,7,0)) -> 840 | AA115: =Z115*Outcomes!$N$252 -> 336
Y116: Students Accumulating 72 hrs | Z116: =AVERAGE(HLOOKUP(C33,Outcomes!$P$211:$X$221,4,0),HLOOKUP(C33,Outcomes!$P$224:$X$234,4,0),HLOOKUP(C33,Outcomes!$P$237:$X$247,4,0)) -> 1387 | AA116: =Z116 -> 1387 | AB116: =HLOOKUP(C33,Outcomes!$C$262:$K$272,4,0) -> 0.07 | AC116: =(AA116+AA117+AA118)*AB116 -> 132.202
Y117: Sub-population Adults | Z117: =AVERAGE(HLOOKUP(C33,Outcomes!$AA$211:$AI$219,4,0),HLOOKUP(C33,Outcomes!$AA$224:$AI$232,4,0),HLOOKUP(C33,Outcomes!$AA$237:$AI$245,4,0)) -> 455.3333333 | AA117: =Z117*Outcomes!$N$252 -> 182.1333333
Y118: Sub-population Pell | Z118: =AVERAGE(HLOOKUP(C33,Outcomes!$AA$211:$AI$219,8,0),HLOOKUP(C33,Outcomes!$AA$224:$AI$232,8,0),HLOOKUP(C33,Outcomes!$AA$237:$AI$245,8,0)) -> 798.6666667 | AA118: =Z118*Outcomes!$N$252 -> 319.4666667
Y119: Bachelors and Associates | Z119: =AVERAGE(HLOOKUP(C33,Outcomes!$P$211:$X$221,5,0),HLOOKUP(C33,Outcomes!$P$224:$X$234,5,0),HLOOKUP(C33,Outcomes!$P$237:$X$247,5,0)) -> 1582 | AA119: =Z119 -> 1582 | AB119: =HLOOKUP(C33,Outcomes!$C$262:$K$272,5,0) -> 0.25 | AC119: =(AA119+AA120+AA121)*AB119 -> 573.7666667
Y120: Sub-population Adults | Z120: =AVERAGE(HLOOKUP(C33,Outcomes!$AA$211:$AI$219,5,0),HLOOKUP(C33,Outcomes!$AA$224:$AI$232,5,0),HLOOKUP(C33,Outcomes!$AA$237:$AI$245,5,0)) -> 905.6666667 | AA120: =Z120*Outcomes!$N$252 -> 362.2666667
Y121: Sub-population Pell | Z121: =AVERAGE(HLOOKUP(C33,Outcomes!$AA$211:$AI$219,9,0),HLOOKUP(C33,Outcomes!$AA$224:$AI$232,9,0),HLOOKUP(C33,Outcomes!$AA$237:$AI$245,9,0)) -> 877 | AA121: =Z121*Outcomes!$N$252 -> 350.8
Y122: Masters/Ed Specialist Degrees | Z122: =AVERAGE(HLOOKUP(C33,Outcomes!$P$211:$X$221,6,0),HLOOKUP(C33,Outcomes!$P$224:$X$234,6,0),HLOOKUP(C33,Outcomes!$P$237:$X$247,6,0)) -> 308.6666667 | AA122: =Z122/Outcomes!A243 -> 1028.888889 | AB122: =HLOOKUP(C33,Outcomes!$C$262:$K$272,6,0) -> 0.2 | AC122: =AA122*AB122 -> 205.7777778
Y123: Doctoral / Law Degrees | Z123: =AVERAGE(HLOOKUP(C33,Outcomes!$P$211:$X$221,7,0),HLOOKUP(C33,Outcomes!$P$224:$X$234,7,0),HLOOKUP(C33,Outcomes!$P$237:$X$247,7,0)) -> 0 | AA123: =Z123/Outcomes!A244 -> 0 | AB123: =HLOOKUP(C33,Outcomes!$C$262:$K$272,7,0) -> 0 | AC123: 0
Y124: Research and Service | Z124: =AVERAGE(HLOOKUP(C33,Outcomes!$P$211:$X$221,8,0),HLOOKUP(C33,Outcomes!$P$224:$X$234,8,0),HLOOKUP(C33,Outcomes!$P$237:$X$247,8,0)) -> 3234935.493 | AA124: =Z124/Outcomes!A245 -> 161.7467747 | AB124: =HLOOKUP(C33,Outcomes!$C$262:$K$272,8,0) -> 0.1 | AC124: 16.17467747
Y125: Transfers Out with 12 hrs | Z125: =AVERAGE(HLOOKUP(C33,Outcomes!$P$211:$X$221,9,0),HLOOKUP(C33,Outcomes!$P$224:$X$234,9,0),HLOOKUP(C33,Outcomes!$P$237:$X$247,9,0)) -> 206.3333333 | AA125: =Z125/Outcomes!A246 -> 206.3333333 | AB125: =HLOOKUP(C33,Outcomes!$C$262:$K$272,9,0) -> 0.1 | AC125: 20.63333333
Y126: Degrees per 100 FTE | Z126: =AVERAGE(HLOOKUP(C33,Outcomes!$P$211:$X$221,10,0),HLOOKUP(C33,Outcomes!$P$224:$X$234,10,0),HLOOKUP(C33,Outcomes!$P$237:$X$247,10,0)) -> 18.89021159 | AA126: =Z126/Outcomes!A247 -> 944.5105796 | AB126: =HLOOKUP(C33,Outcomes!$C$262:$K$272,10,0) -> 0.1 | AC126: 94.45105796
Y127: Six-Year Graduation Rate | Z127: =AVERAGE(HLOOKUP(C33,Outcomes!$P$211:$X$221,11,0),HLOOKUP(C33,Outcomes!$P$224:$X$234,11,0),HLOOKUP(C33,Outcomes!$P$237:$X$247,11,0))*100 -> 42.80558338 | AA127: =Z127/Outcomes!A248 -> 1070.139584 | AB127: =HLOOKUP(C33,Outcomes!$C$262:$K$272,11,0) -> 0.1 | AC127: 107.0139584
AC128: =SUM(AC110:AC127) -> 1303.595472

Sheet Printable Summary
B1: Tennessee Higher Education Commission
B2: Summary of Changes in FY 2015-16 Formula Outcomes and Estimated State Appropriations
G4: Est. Change Due to | H4: Percent Change Due to
B5: Assumptions | G5: Outcomes and Funding* | H5: Outcomes and Funding*
B6: 2014-15 State Appropriations | C6: =Working!G39 -> 827231300 | F6: APSU | G6: =Working!N7 -> 0 | H6: =G6/Working!C7 -> 0
B7: Est 2015-16 State Appropriations | C7: =ROUND(((1+C8)*C6), -2) -> 827231300 | F7: ETSU | G7: =Working!N8 -> 0 | H7: =G7/Working!C8 -> 0
B8: Percentage Change from 2014-15 | C8: =((D8-100)/2)/100 -> 0 | D8: 100 | F8: MTSU | G8: =Working!N9 -> 0 | H8: =G8/Working!C9 -> 0
B9: Dollar Change from 2014-15 | C9: =C7-C6 -> 0 | F9: TSU | G9: =Working!N10 -> 0 | H9: =G9/Working!C10 -> 0
B10: Percent of THEC Rec. Funded | C10: =Working!L39 -> 0.609286749 | F10: TTU | G10: =Working!N11 -> 0 | H10: =G10/Working!C11 -> 0
F11: UM | G11: =Working!N12 -> 0 | H11: =G11/Working!C12 -> 0
B12: University Outcomes** | C12: =Outcomes!D4 -> APSU | D12: Avg Univ Change | F12: TBR Univ. Subtotal | G12: =SUM(G6:G11) -> 0 | H12: =G12/Working!C13 -> 0
B13: Students Accumulating 24 hours | C13: =HLOOKUP($C$12,Outcomes!$C$29:$K$41,2,0) -> 0 | D13: =Outcomes!W30 -> 0
B14: Students Accumulating 48 hours | C14: =HLOOKUP($C$12,Outcomes!$C$29:$K$41,3,0) -> 0 | D14: =Outcomes!W31 -> 0 | F14: Chattanooga | G14: =Working!N15 -> 0 | H14: =G14/Working!C15 -> 0
B15: Students Accumulating 72 hours | C15: =HLOOKUP($C$12,Outcomes!$C$29:$K$41,4,0) -> 0 | D15: =Outcomes!W32 -> 0 | F15: Cleveland | G15: =Working!N16 -> 0 | H15: =G15/Working!C16 -> 0
B16: Bachelors and Associates | C16: =HLOOKUP($C$12,Outcomes!$C$29:$K$41,5,0) -> 0 | D16: =Outcomes!W33 -> 0 | F16: Columbia | G16: =Working!N17 -> 0 | H16: =G16/Working!C17 -> 0
B17: Masters/Ed Specialist Degrees | C17: =HLOOKUP($C$12,Outcomes!$C$29:$K$41,6,0) -> 0 | D17: =Outcomes!W34 -> 0 | F17: Dyersburg | G17: =Working!N18 -> 0 | H17: =G17/Working!C18 -> 0
B18: Doctoral / Law Degrees | C18: =HLOOKUP($C$12,Outcomes!$C$29:$K$41,7,0) -> 0 | D18: =Outcomes!W35 -> 0 | F18: Jackson | G18: =Working!N19 -> 0 | H18: =G18/Working!C19 -> 0
B19: Research and Service | C19: =HLOOKUP($C$12,Outcomes!$C$29:$K$41,8,0) -> 0 | D19: =Outcomes!W36 -> 0 | F19: Motlow | G19: =Working!N20 -> 0 | H19: =G19/Working!C20 -> 0
B20: Transfers Out with 12 hours | C20: =HLOOKUP($C$12,Outcomes!$C$29:$K$41,9,0) -> 0 | D20: =Outcomes!W37 -> 0 | F20: Nashville | G20: =Working!N21 -> 0 | H20: =G20/Working!C21 -> 0
B21: Degrees per 100 FTE | C21: =HLOOKUP($C$12,Outcomes!$C$29:$K$41,10,0) -> 0 | D21: =Outcomes!W38 -> 0 | F21: Northeast | G21: =Working!N22 -> 0 | H21: =G21/Working!C22 -> 0
B22: Six-Year Graduation Rate | C22: =HLOOKUP($C$12,Outcomes!$C$29:$K$41,11,0) -> 0 | D22: =Outcomes!W39 -> 0 | F22: Pellissippi | G22: =Working!N23 -> 0 | H22: =G22/Working!C23 -> 0
B23: Sub-population Adults | C23: =HLOOKUP($C$12,Outcomes!$C$29:$K$41,12,0) -> 0 | D23: =Outcomes!W40 -> 0 | F23: Roane | G23: =Working!N24 -> 0 | H23: =G23/Working!C24 -> 0
B24: Sub-population Pell | C24: =HLOOKUP($C$12,Outcomes!$C$29:$K$41,13,0) -> 0 | D24: =Outcomes!W41 -> 0 | F24: Southwest | G24: =Working!N25 -> 0 | H24: =G24/Working!C25 -> 0
F25: Volunteer | G25: =Working!N26 -> 0 | H25: =G25/Working!C26 -> 0
B26: Community College Outcomes** | C26: =Outcomes!C4 -> Chattanooga | D26: Avg CC Change | F26: Walters | G26: =Working!N27 -> 0 | H26: =G26/Working!C27 -> 0
B27: Students Accumulating 12 hours | C27: =HLOOKUP($C$26,Outcomes!$C$11:$O$25,2,0) -> 0 | D27: =Outcomes!W12 -> 0 | F27: CC Sector Subtotal | G27: =SUM(G14:G26) -> 0 | H27: =G27/Working!C28 -> 0
B28: Students Accumulating 24 hours | C28: =HLOOKUP($C$26,Outcomes!$C$11:$O$25,3,0) -> 0 | D28: =Outcomes!W13 -> 0
B29: Students Accumulating 36 hours | C29: =HLOOKUP($C$26,Outcomes!$C$11:$O$25,4,0) -> 0 | D29: =Outcomes!W14 -> 0 | F29: UTC | G29: =Working!N30 -> 0 | H29: =G29/Working!C30 -> 0
B30: Dual Enrollment | C30: =HLOOKUP($C$26,Outcomes!$C$11:$O$25,5,0) -> 0 | D30: =Outcomes!W15 -> 0 | F30: UTK | G30: =Working!N31 -> 0 | H30: =G30/Working!C31 -> 0
B31: Associates | C31: =HLOOKUP($C$26,Outcomes!$C$11:$O$25,6,0) -> 0 | D31: =Outcomes!W16 -> 0 | F31: UTM | G31: =Working!N32 -> 0 | H31: =G31/Working!C32 -> 0
B32: Certificates 1-2 Years | C32: =HLOOKUP($C$26,Outcomes!$C$11:$O$25,7,0) -> 0 | D32: =Outcomes!W17 -> 0 | F32: UT Subtotal | G32: =SUM(G29:G31) -> 0 | H32: =G32/Working!C33 -> 0
B33: Certificates Less Than 1 Year | C33: =HLOOKUP($C$26,Outcomes!$C$11:$O$25,8,0) -> 0 | D33: =Outcomes!W18 -> 0
B34: Job Placements | C34: =HLOOKUP($C$26,Outcomes!$C$11:$O$25,9,0) -> 0 | D34: =Outcomes!W19 -> 0 | F34: TCAT Subtotal | G34: =Working!N37 -> 0 | H34: =G34/Working!C37 -> 0
B35: R & D Success | C35: =HLOOKUP($C$26,Outcomes!$C$11:$O$25,10,0) -> 0 | D35: =Outcomes!W20 -> 0
B36: Transfers Out with 12 hours | C36: =HLOOKUP($C$26,Outcomes!$C$11:$O$25,11,0) -> 0 | D36: =Outcomes!W21 -> 0 | F36: Total | G36: =Working!N39 -> 0 | H36: =G36/Working!C39 -> 0
B37: Workforce Training | C37: =HLOOKUP($C$26,Outcomes!$C$11:$O$25,12,0) -> 0 | D37: =Outcomes!W22 -> 0 | F37: *The estimated change in state appropriations due to changes in both formula outcomes and higher education state appropriations.
B38: Awards per 100 FTE | C38: =HLOOKUP($C$26,Outcomes!$C$11:$O$25,13,0) -> 0 | D38: =Outcomes!W23 -> 0
B39: Sub-population Adult | C39: =HLOOKUP($C$26,Outcomes!$C$11:$O$25,14,0) -> 0 | D39: =Outcomes!W24 -> 0
B40: Sub-population Pell | C40: =HLOOKUP($C$26,Outcomes!$C$11:$O$26,15,0) -> 0 | D40: =Outcomes!W25 -> 0 | F40: **Bolded outcome changes indicate above-average increases.

Sheet Weights
B1: Tennessee Higher Education Commission
B2: Outcomes Formula Weights - Based on Institutional Mission
B5: Universities | C5: UTM | D5: APSU | E5: TTU | F5: UTC | G5: MTSU | H5: ETSU | I5: TSU | J5: UM | K5: UTK
B6: Students Accumulating 24 hrs | C6: 0.03 | D6: 0.03 | E6: 0.03 | F6: 0.03 | G6: 0.03 | H6: 0.03 | I6: 0.03 | J6: 0.02 | K6: 0.02
B7: Students Accumulating 48 hrs | C7: 0.05 | D7: 0.05 | E7: 0.05 | F7: 0.05 | G7: 0.05 | H7: 0.05 | I7: 0.05 | J7: 0.03 | K7: 0.03
B8: Students Accumulating 72 hrs | C8: 0.07 | D8: 0.07 | E8: 0.07 | F8: 0.07 | G8: 0.07 | H8: 0.07 | I8: 0.07 | J8: 0.05 | K8: 0.05
B9: Progression | C9: =SUM(C6:C8) -> 0.15 | D9: =SUM(D6:D8) -> 0.15 | E9: 0.15 | F9: 0.15 | G9: 0.15 | H9: 0.15 | I9: 0.15 | J9: 0.1 | K9: 0.1
B10: Bachelors and Associates | C10: 0.3 | D10: 0.25 | E10: 0.25 | F10: 0.25 | G10: 0.25 | H10: 0.25 | I10: 0.25 | J10: 0.25 | K10: 0.15
B11: Masters / Ed Specialist Degrees | C11: 0.15 | D11: 0.2 | E11: 0.15 | F11: 0.15 | G11: 0.15 | H11: 0.15 | I11: 0.15 | J11: 0.15 | K11: 0.15
B12: Doctoral / Law Degrees | C12: 0 | D12: 0 | E12: 0.05 | F12: 0.05 | G12: 0.075 | H12: 0.075 | I12: 0.075 | J12: 0.1 | K12: 0.1
B13: Research and Service | C13: 0.1 | D13: 0.1 | E13: 0.1 | F13: 0.1 | G13: 0.125 | H13: 0.125 | I13: 0.125 | J13: 0.125 | K13: 0.15
B14: Transfers Out with 12 hrs | C14: 0.1 | D14: 0.1 | E14: 0.1 | F14: 0.1 | G14: 0.05 | H14: 0.05 | I14: 0.05 | J14: 0.05 | K14: 0.05
B15: Degrees per 100 FTE | C15: 0.15 | D15: 0.1 | E15: 0.1 | F15: 0.1 | G15: 0.1 | H15: 0.1 | I15: 0.1 | J15: 0.075 | K15: 0.1
B16: Six-Year Graduation Rate | C16: 0.05 | D16: 0.1 | E16: 0.1 | F16: 0.1 | G16: 0.1 | H16: 0.1 | I16: 0.1 | J16: 0.15 | K16: 0.2
C17: =SUM(C9:C16) -> 1 | D17: =SUM(D9:D16) -> 1 | E17: 1 | F17: 1 | G17: 1 | H17: 1 | I17: 1 | J17: 1 | K17: 1
B20: Community Colleges | C20: CHSCC | D20: CLSCC | E20: COSCC | F20: DSCC | G20: JSCC | H20: MSCC | I20: NASCC | J20: NESCC | K20: PSCC | L20: RSCC | M20: STCC | N20: VSCC | O20: WSCC
B21: Students Accumulating 12 hrs | C21: 0.06 | D21: 0.06 | E21: 0.04 | F21: 0.06 | G21: 0.06 | H21: 0.06 | I21: 0.04 | J21: 0.04 | K21: 0.06 | L21: 0.02 | M21: 0.04 | N21: 0.02 | O21: 0.04
B22: Students Accumulating 24 hrs | C22: 0.07 | D22: 0.07 | E22: 0.05 | F22: 0.07 | G22: 0.07 | H22: 0.07 | I22: 0.05 | J22: 0.05 | K22: 0.07 | L22: 0.03 | M22: 0.05 | N22: 0.03 | O22: 0.05
B23: Students Accumulating 36 hrs | C23: 0.07 | D23: 0.07 | E23: 0.06 | F23: 0.07 | G23: 0.07 | H23: 0.07 | I23: 0.06 | J23: 0.06 | K23: 0.07 | L23: 0.05 | M23: 0.06 | N23: 0.05 | O23: 0.06
B24: Progression | C24: =SUM(C21:C23) -> 0.2 | D24: =SUM(D21:D23) -> 0.2 | E24: 0.15 | F24: 0.2 | G24: 0.2 | H24: 0.2 | I24: 0.15 | J24: 0.15 | K24: 0.2 | L24: 0.1 | M24: 0.15 | N24: 0.1 | O24: 0.15
B25: Dual Enrollment | C25: 0.05 | D25: 0.1 | E25: 0.1 | F25: 0.05 | G25: 0.05 | H25: 0.05 | I25: 0.05 | J25: 0.05 | K25: 0.1 | L25: 0.1 | M25: 0.05 | N25: 0.1 | O25: 0.1
B26: Associates | C26: 0.05 | D26: 0.15 | E26: 0.1 | F26: 0.1 | G26: 0.2 | H26: 0.1 | I26: 0.2 | J26: 0.2 | K26: 0.2 | L26: 0.2 | M26: 0.1 | N26: 0.2 | O26: 0.2
B27: Certificates 1-2 Years | C27: 0.05 | D27: 0.01 | E27: 0.04 | F27: 0.02 | G27: 0.03 | H27: 0 | I27: 0.07 | J27: 0.17 | K27: 0 | L27: 0.06 | M27: 0.02 | N27: 0.04 | O27: 0.01
B28: Certificates Less Than 1 Year | C28: 0.05 | D28: 0.09 | E28: 0.01 | F28: 0.08 | G28: 0.07 | H28: 0.05 | I28: 0.13 | J28: 0.03 | K28: 0.05 | L28: 0.14 | M28: 0.18 | N28: 0.16 | O28: 0.19
B29: Total Certificates | C29: =C27+C28 -> 0.1 | D29: =D27+D28 -> 0.1 | E29: 0.05 | F29: 0.1 | G29: 0.1 | H29: 0.05 | I29: 0.2 | J29: 0.2 | K29: 0.05 | L29: 0.2 | M29: 0.2 | N29: 0.2 | O29: 0.2
B30: Job Placements | C30: 0.2 | D30: 0.05 | E30: 0.05 | F30: 0.1 | G30: 0.05 | H30: 0.1 | I30: 0.1 | J30: 0.1 | K30: 0.1 | L30: 0.15 | M30: 0.1 | N30: 0.05 | O30: 0.05
B31: Remedial & Developmental Success | C31: 0.1 | D31: 0.2 | E31: 0.1 | F31: 0.2 | G31: 0.15 | H31: 0.1 | I31: 0.1 | J31: 0.05 | K31: 0.05 | L31: 0.05 | M31: 0.2 | N31: 0.1 | O31: 0.1
B32: Transfers Out with 12 hrs | C32: 0.15 | D32: 0.1 | E32: 0.2 | F32: 0.15 | G32: 0.1 | H32: 0.2 | I32: 0.1 | J32: 0.1 | K32: 0.15 | L32: 0.1 | M32: 0.05 | N32: 0.15 | O32: 0.1
B33: Workforce Training (Contact Hours) | C33: 0.1 | D33: 0.05 | E33: 0.05 | F33: 0.05 | G33: 0.05 | H33: 0.05 | I33: 0.05 | J33: 0.05 | K33: 0.1 | L33: 0.05 | M33: 0.05 | N33: 0.05 | O33: 0.05
B34: Awards per 100 FTE | C34: 0.05 | D34: 0.05 | E34: 0.2 | F34: 0.05 | G34: 0.1 | H34: 0.15 | I34: 0.05 | J34: 0.1 | K34: 0.05 | L34: 0.05 | M34: 0.1 | N34: 0.05 | O34: 0.05
C35: =SUM(C21:C23,C25:C28,C30:C34) -> 1 | D35: =SUM(D21:D23,D25:D28,D30:D34) -> 1 | E35: 1 | F35: 1 | G35: 1 | H35: 1 | I35: 1 | J35: 1 | K35: 1 | L35: 1 | M35: 1 | N35: 1 | O35: 1

Sheet Historical Trends
A1: Tennessee Higher Education Commission
A2: Historical Trends of Outcomes Used in Funding Formula
A4: UTM | H4: Avg. Annual | J4: ETSU | Q4: Avg. Annual
B5: 2007-08 | C5: 2008-09 | D5: 2009-10 | E5: 2010-11 | F5: 2011-12 | G5: 2012-13 | H5: Change | K5: 2007-08 | L5: 2008-09 | M5: 2009-10 | N5: 2010-11 | O5: 2011-12 | P5: 2012-13 | Q5: Change
A6: Students Accumulating 24 hrs | B6: 1415 | C6: 1514 | D6: 1514 | E6: 1351 | F6: 1261 | G6: 1217 | H6: =((G6-B6)/B6)/5 -> -0.02798586572 | J6: Students Accumulating 24 hrs | K6: 2055 | L6: 2110 | M6: 2152 | N6: 1816 | O6: 1823 | P6: 1764 | Q6: =((P6-K6)/K6)/5 -> -0.02832116788
A7: Students Accumulating 48 hrs | B7: 1072 | C7: 1158 | D7: 1301 | E7: 1283 | F7: 1163 | G7: 1155 | H7: =((G7-B7)/B7)/5 -> 0.01548507463 | J7: Students Accumulating 48 hrs | K7: 1656 | L7: 1811 | M7: 1949 | N7: 1745 | O7: 1716 | P7: 1709 | Q7: =((P7-K7)/K7)/5 -> 0.006400966184
A8: Students Accumulating 72 hrs | B8: 1013 | C8: 1114 | D8: 1147 | E8: 1299 | F8: 1206 | G8: 1203 | H8: 0.03751233959 | J8: Students Accumulating 72 hrs | K8: 1859 | L8: 1840 | M8: 1977 | N8: 1919 | O8: 2040 | P8: 1879 | Q8: 0.002151694459
A9: Bachelors and Associates | B9: 998 | C9: 1018 | D9: 1017 | E9: 1038 | F9: 1116 | G9: 1247 | H9: 0.0498997996 | J9: Bachelors and Associates | K9: 1693 | L9: 1878 | M9: 1873 | N9: 2028 | O9: 2146 | P9: 2314 | Q9: 0.07336089781
A10: Masters / Ed Specialist Degrees | B10: 140 | C10: 115 | D10: 129 | E10: 131 | F10: 132 | G10: 122 | H10: -0.02571428571 | J10: Masters / Ed Specialist Degrees | K10: 530 | L10: 577 | M10: 655 | N10: 630 | O10: 609 | P10: 576 | Q10: 0.01735849057
A11: Doctoral / Law Degrees | B11: 0 | C11: 0 | D11: 0 | E11: 0 | F11: 0 | G11: 0 | H11: 0 | J11: Doctoral / Law Degrees | K11: 69 | L11: 75 | M11: 57 | N11: 79 | O11: 83 | P11: 86 | Q11: 0.04927536232
A12: Research and Service | B12: 4527800 | C12: 4386318 | D12: 4311201.52 | E12: 3646780.32 | F12: 3036994.36 | G12: 2001803.77 | H12: =((G12-B12)/B12)/5 -> -0.1115772 | J12: Research and Service | K12: 20082056 | L12: 21215713 | M12: 22883113.97 | N12: 24085480 | O12: 23159718 | P12: 22836711 | Q12: 0.02743399381
A13: Transfers Out with 12 hrs | B13: 249 | C13: 195 | D13: 225 | E13: 223 | F13: 260 | G13: 264 | H13: 0.01204819277 | J13: Transfers Out with 12 hrs | K13: 312 | L13: 298 | M13: 321 | N13: 338 | O13: 391 | P13: 417 | Q13: =((P13-K13)/K13)/5 -> 0.06730769231
A14: Degrees per 100 FTE | B14: 16.43 | C14: 16.26 | D14: 15.28212577 | E14: 15.04217025 | F14: 16.32955659 | G14: 18.52273628 | H14: 0.02547457426 | J14: Degrees per 100 FTE | K14: 17.44 | L14: 18.74 | M14: 17.68972617 | N14: 18.28146973 | O14: 18.91504389 | P14: 21.0491845 | Q14: 0.04138973054
A15: Six-Year Graduation Rate | B15: 0.5276 | C15: 0.549 | D15: 0.5443786982 | E15: 0.5868506494 | F15: 0.5670274771 | G15: 0.53 | H15: 0.0009097801365 | J15: Six-Year Graduation Rate | K15: 0.482 | L15: 0.4872 | M15: 0.4593140551 | N15: 0.5128369705 | O15: 0.4848308051 | P15: 0.4779 | Q15: -0.001701244813
A17: APSU | H17: Avg. Annual | J17: TSU | Q17: Avg. Annual
B18: 2007-08 | C18: 2008-09 | D18: 2009-10 | E18: 2010-11 | F18: 2011-12 | G18: 2012-13 | H18: Change | K18: 2007-08 | L18: 2008-09 | M18: 2009-10 | N18: 2010-11 | O18: 2011-12 | P18: 2012-13 | Q18: Change
A19: Students Accumulating 24 hrs | B19: 1580 | C19: 1703 | D19: 1811 | E19: 1582 | F19: 1502 | G19: 1463 | H19: =((G19-B19)/B19)/5 -> -0.01481012658 | J19: Students Accumulating 24 hrs | K19: 1435 | L19: 1184 | M19: 1360 | N19: 999 | O19: 976 | P19: 994 | Q19: =((P19-K19)/K19)/5 -> -0.06146341463
A20: Students Accumulating 48 hrs | B20: 1358 | C20: 1448 | D20: 1487 | E20: 1354 | F20: 1433 | G20: 1476 | H20: =((G20-B20)/B20)/5 -> 0.01737849779 | J20: Students Accumulating 48 hrs | K20: 1114 | L20: 983 | M20: 956 | N20: 861 | O20: 901 | P20: 839 | Q20: =((P20-K20)/K20)/5 -> -0.04937163375
A21: Students Accumulating 72 hrs | B21: 1262 | C21: 1368 | D21: 1360 | E21: 1309 | F21: 1386 | G21: 1466 | H21: 0.0323296355 | J21: Students Accumulating 72 hrs | K21: 1157 | L21: 1042 | M21: 939 | N21: 861 | O21: 892 | P21: 915 | Q21: -0.04183232498
A22: Bachelors and Associates | B22: 1268 | C22: 1319 | D22: 1291 | E22: 1468 | F22: 1553 | G22: 1725 | H22: 0.07208201893 | J22: Bachelors and Associates | K22: 1144 | L22: 1060 | M22: 1098 | N22: 1081 | O22: 1098 | P22: 1066 | Q22: -0.01363636364
A23: Masters / Ed Specialist Degrees | B23: 222 | C23: 254 | D23: 271 | E23: 296 | F23: 326 | G23: 304 | H23: 0.07387387387 | J23: Masters / Ed Specialist Degrees | K23: 444 | L23: 426 | M23: 393 | N23: 377 | O23: 434 | P23: 417 | Q23: -0.01216216216
A24: Doctoral / Law Degrees | B24: 0 | C24: 0 | D24: 0 | E24: 0 | F24: 0 | G24: 0 | H24: 0 | J24: Doctoral / Law Degrees | K24: 50 | L24: 60 | M24: 79 | N24: 67 | O24: 72 | P24: 66 | Q24: 0.064
A25: Research and Service | B25: 2745864 | C25: 2895210 | D25: 3604390.46 | E25: 3489372.48 | F25: 3601246 | G25: 2614188 | H25: -0.009590861019 | J25: Research and Service | K25: 23645198 | L25: 26360601 | M25: 27508381.86 | N25: 33644726 | O25: 31029229 | P25: 31582168 | Q25: =((P25-K25)/K25)/5 -> 0.06713388486
A26: Transfers Out with 12 hrs | B26: 159 | C26: 142 | D26: 149 | E26: 173 | F26: 227 | G26: 219 | H26: 0.07547169811 | J26: Transfers Out with 12 hrs | K26: 142 | L26: 145 | M26: 161 | N26: 178 | O26: 228 | P26: 235 | Q26: 0.1309859155
A27: Degrees per 100 FTE | B27: 17.89 | C27: 18.12 | D27: 16.92559816 | E27: 17.94759985 | F27: 18.25870218 | G27: 20.46433274 | H27: 0.02877957232 | J27: Degrees per 100 FTE | K27: 17.66 | L27: 18.22 | M27: 18.10128808 | N27: 17.73594605 | O27: 17.58572641 | P27: 18.05046001 | Q27: 0.00442197067
A28: Six-Year Graduation Rate | B28: 0.3773 | C28: 0.3756 | D28: 0.3932489451 | E28: 0.4367816092 | F28: 0.4273858921 | G28: 0.42 | H28: 0.02263450835 | J28: Six-Year Graduation Rate | K28: 0.4035 | L28: 0.4358 | M28: 0.3883333333 | N28: 0.3809924306 | O28: 0.3840206186 | P28: 0.332 | Q28: -0.03543990087
A30: TTU | H30: Avg. Annual | J30: UM | Q30: Avg. Annual
B31: 2007-08 | C31: 2008-09 | D31: 2009-10 | E31: 2010-11 | F31: 2011-12 | G31: 2012-13 | H31: Change | K31: 2007-08 | L31: 2008-09 | M31: 2009-10 | N31: 2010-11 | O31: 2011-12 | P31: 2012-13 | Q31: Change
A32: Students Accumulating 24 hrs | B32: 1665 | C32: 1650 | D32: 1871 | E32: 1589 | F32: 1645 | G32: 1830 | H32: =((G32-B32)/B32)/5 -> 0.01981981982 | J32: Students Accumulating 24 hrs | K32: 2709 | L32: 2620 | M32: 2676 | N32: 2241 | O32: 2324 | P32: 2135 | Q32: =((P32-K32)/K32)/5 -> -0.04237726098
A33: Students Accumulating 48 hrs | B33: 1356 | C33: 1469 | D33: 1481 | E33: 1559 | F33: 1545 | G33: 1562 | H33: =((G33-B33)/B33)/5 -> 0.03038348083 | J33: Students Accumulating 48 hrs | K33: 2435 | L33: 2537 | M33: 2489 | N33: 2228 | O33: 2321 | P33: 2394 | Q33: =((P33-K33)/K33)/5 -> -0.003367556468
A34: Students Accumulating 72 hrs | B34: 1461 | C34: 1567 | D34: 1655 | E34: 1592 | F34: 1728 | G34: 1605 | H34: 0.01971252567 | J34: Students Accumulating 72 hrs | K34: 2385 | L34: 2601 | M34: 2790 | N34: 2486 | O34: 2491 | P34: 2625 | Q34: 0.02012578616
A35: Bachelors and Associates | B35: 1445 | C35: 1528 | D35: 1528 | E35: 1603 | F35: 1696 | G35: 1830 | H35: 0.05328719723 | J35: Bachelors and Associates | K35: 2454 | L35: 2590 | M35: 2562 | N35: 2678 | O35: 2724 | P35: 2887 | Q35: 0.03528932355
A36: Masters / Ed Specialist Degrees | B36: 684 | C36: 804 | D36: 633 | E36: 644 | F36: 444 | G36: 376 | H36: -0.09005847953 | J36: Masters / Ed Specialist Degrees | K36: 886 | L36: 872 | M36: 823 | N36: 1042 | O36: 1009 | P36: 1064 | Q36: 0.04018058691
A37: Doctoral / Law Degrees | B37: 24 | C37: 17 | D37: 19 | E37: 21 | F37: 18 | G37: 12 | H37: -0.1 | J37: Doctoral / Law Degrees | K37: 233 | L37: 253 | M37: 252 | N37: 256 | O37: 271 | P37: 259 | Q37: 0.02231759657
A38: Research and Service | B38: 9274442 | C38: 10266020 | D38: 11039730.83 | E38: 10396767.69 | F38: 9586008.59 | G38: 8873329 | H38: -0.008649857318 | J38: Research and Service | K38: 59102164 | L38: 58424588 | M38: 68999975 | N38: 62442725 | O38: 55561194 | P38: 51992967 | Q38: -0.0240573154
A39: Transfers Out with 12 hrs | B39: 277 | C39: 241 | D39: 296 | E39: 266 | F39: 355 | G39: 343 | H39: 0.0476534296 | J39: Transfers Out with 12 hrs | K39: 307 | L39: 314 | M39: 299 | N39: 263 | O39: 521 | P39: 492 | Q39: 0.1205211726
A40: Degrees per 100 FTE | B40: 19.69 | C40: 20.08 | D40: 18.91362202 | E40: 18.77378931 | F40: 19.01977863 | G40: 20.22092 | H40: 0.005392788183 | J40: Degrees per 100 FTE | K40: 18.34 | L40: 19.06 | M40: 18.20731609 | N40: 17.97894624 | O40: 17.94344259 | P40: 19.56509953 | Q40: 0.01335986402
A41: Six-Year Graduation Rate | B41: 0.5119 | C41: 0.5818 | D41: 0.5596477182 | E41: 0.5607476636 | F41: 0.5558232932 | G41: 0.5745 | H41: 0.02445790193 | J41: Six-Year Graduation Rate | K41: 0.444 | L41: 0.4273 | M41: 0.4238377844 | N41: 0.45351697 | O41: 0.4413326895 | P41: 0.4706 | Q41: 0.01198198198
A42: Tennessee Higher Education Commission
A43: Outcomes Historical Trends
A44: UTC | H44: Avg. Annual | J44: UTK | Q44: Avg. Annual
B45: 2007-08 | C45: 2008-09 | D45: 2009-10 | E45: 2010-11 | F45: 2011-12 | G45: 2012-13 | H45: Change | K45: 2007-08 | L45: 2008-09 | M45: 2009-10 | N45: 2010-11 | O45: 2011-12 | P45: 2012-13 | Q45: Change
A46: Students Accumulating 24 hrs | B46: 1813 | C46: 1924 | D46: 2181 | E46: 1853 | F46: 1721 | G46: 2067 | H46: =((G46-B46)/B46)/5 -> 0.02801985659 | J46: Students Accumulating 24 hrs | K46: 4401 | L46: 4239 | M46: 3566 | N46: 3854 | O46: 3264 | P46: 3331 | Q46: =((P46-K46)/K46)/5 -> -0.04862531243
A47: Students Accumulating 48 hrs | B47: 1365 | C47: 1421 | D47: 1609 | E47: 1712 | F47: 1519 | G47: 1581 | H47: =((G47-B47)/B47)/5 -> 0.03164835165 | J47: Students Accumulating 48 hrs | K47: 4395 | L47: 4541 | M47: 4320 | N47: 3925 | O47: 3844 | P47: 3864 | Q47: =((P47-K47)/K47)/5 -> -0.02416382253
A48: Students Accumulating 72 hrs | B48: 1268 | C48: 1427 | D48: 1522 | E48: 1696 | F48: 1634 | G48: 1633 | H48: 0.05757097792 | J48: Students Accumulating 72 hrs | K48: 4379 | L48: 4473 | M48: 4774 | N48: 4246 | O48: 4020 | P48: 4187 | Q48: -0.008769125371
A49: Bachelors and Associates | B49: 1258 | C49: 1256 | D49: 1275 | E49: 1320 | F49: 1514 | G49: 1638 | H49: 0.06041335453 | J49: Bachelors and Associates | K49: 3624 | L49: 4107 | M49: 4108 | N49: 4332 | O49: 4539 | P49: 4407 | Q49: 0.04321192053
A50: Masters / Ed Specialist Degrees | B50: 400 | C50: 404 | D50: 427 | E50: 432 | F50: 490 | G50: 446 | H50: 0.023 | J50: Masters / Ed Specialist Degrees | K50: 1502 | L50: 1645 | M50: 1573 | N50: 1515 | O50: 1583 | P50: 1607 | Q50: 0.01398135819
A51: Doctoral / Law Degrees | B51: 38 | C51: 50 | D51: 52 | E51: 60 | F51: 54 | G51: 68 | H51: 0.1578947368 | J51: Doctoral / Law Degrees | K51: 250 | L51: 416 | M51: 492 | N51: 481 | O51: 571 | P51: 565 | Q51: 0.252
A52: Research and Service | B52: 11077571 | C52: 9277657 | D52: 10899108.65 | E52: 10350478.84 | F52: 11444946.98 | G52: 10409339.95 | H52: -0.01206457715 | J52: Research and Service | K52: 141229902 | L52: 141229902 | M52: 132545115.7 | N52: 151215597 | O52: 149350434.4 | P52: 154378165.4 | Q52: 0.01861965944
A53: Transfers Out with 12 hrs | B53: 317 | C53: 389 | D53: 399 | E53: 429 | F53: 573 | G53: 606 | H53: 0.1823343849 | J53: Transfers Out with 12 hrs | K53: 560 | L53: 585 | M53: 629 | N53: 444 | O53: 599 | P53: 609 | Q53: 0.0175
A54: Degrees per 100 FTE | B54: 17.28 | C54: 16.26 | D54: 15.26525628 | E54: 15.37605521 | F54: 16.9076371 | G54: 17.94268856 | H54: 0.007670006426 | J54: Degrees per 100 FTE | K54: 17.94 | L54: 19.83 | M54: 20.2457616 | N54: 21.92321376 | O54: 23.38043646 | P54: 22.76621281 | Q54: 0.05380393324
A55: Six-Year Graduation Rate | B55: 0.4813 | C55: 0.5304 | D55: 0.4976494291 | E55: 0.5156358582 | F55: 0.5150141643 | G55: 0.4971 | H55: 0.006565551631 | J55: Six-Year Graduation Rate | K55: 0.6465 | L55: 0.6583 | M55: 0.6666666667 | N55: 0.6980909734 | O55: 0.7162834795 | P55: 0.7319 | Q55: 0.0264191802
A57: MTSU | H57: Avg. Annual
B58: 2007-08 | C58: 2008-09 | D58: 2009-10 | E58: 2010-11 | F58: 2011-12 | G58: 2012-13 | H58: Change
A59: Students Accumulating 24 hrs | B59: 3993 | C59: 3971 | D59: 4051 | E59: 3430 | F59: 3297 | G59: 2799 | H59: =((G59-B59)/B59)/5 -> -0.05980465815
A60: Students Accumulating 48 hrs | B60: 3568 | C60: 3754 | D60: 3907 | E60: 3380 | F60: 3458 | G60: 3211 | H60: =((G60-B60)/B60)/5 -> -0.02001121076
A61: Students Accumulating 72 hrs | B61: 3619 | C61: 3743 | D61: 4065 | E61: 3788 | F61: 3804 | G61: 3734 | H61: 0.006355346781
A62: Bachelors and Associates | B62: 3549 | C62: 3789 | D62: 3629 | E62: 3868 | F62: 3911 | G62: 4159 | H62: 0.03437588053
A63: Masters / Ed Specialist Degrees | B63: 688 | C63: 777 | D63: 831 | E63: 923 | F63: 925 | G63: 1010 | H63: 0.09360465116
A64: Doctoral / Law Degrees | B64: 15 | C64: 24 | D64: 20 | E64: 20 | F64: 20 | G64: 23 | H64: 0.1066666667
A65: Research and Service | B65: 27478805 | C65: 29049938 | D65: 27539106.42 | E65: 28349988.18 | F65: 30655961.2 | G65: 13498343 | H65: -0.1017545123
A66: Transfers Out with 12 hrs | B66: 505 | C66: 506 | D66: 576 | E66: 470 | F66: 726 | G66: 678 | H66: 0.06851485149
A67: Degrees per 100 FTE | B67: 18.62 | C67: 19.6 | D67: 18.03761606 | E67: 18.37154406 | F67: 18.8661042 | G67: 21.18257043 | H67: 0.02752492406
A68: Six-Year Graduation Rate | B68: 0.5175 | C68: 0.5349 | D68: 0.5374040921 | E68: 0.5244514107 | F68: 0.5156389634 | G68: 0.5237 | H68: 0.002396135266
A69: Tennessee Higher Education Commission
A70: Outcomes Historical Trends
A72: CHSCC | H72: Avg. Annual | J72: NESCC | Q72: Avg. Annual
B73: 2007-08 | C73: 2008-09 | D73: 2009-10 | E73: 2010-11 | F73: 2011-12 | G73: 2012-13 | H73: Change | K73: 2007-08 | L73: 2008-09 | M73: 2009-10 | N73: 2010-11 | O73: 2011-12 | P73: 2012-13 | Q73: Change
A74: Students Accumulating 12 hrs | B74: 3067 | C74: 3263 | D74: 3482 | E74: 2716 | F74: 2351 | G74: 2318 | H74: =((G74-B74)/B74)/5 -> -0.04884251712 | J74: Students Accumulating 12 hrs | K74: 1890 | L74: 2084 | M74: 2427 | N74: 1744 | O74: 1485 | P74: 1664 | Q74: =((P74-K74)/K74)/5 -> -0.02391534392
A75: Students Accumulating 24 hrs | B75: 1908 | C75: 2118 | D75: 2454 | E75: 1969 | F75: 1872 | G75: 1801 | H75: =((G75-B75)/B75)/5 -> -0.01121593291 | J75: Students Accumulating 24 hrs | K75: 1458 | L75: 1595 | M75: 1864 | N75: 1480 | O75: 1326 | P75: 1348 | Q75: =((P75-K75)/K75)/5 -> -0.01508916324
A76: Students Accumulating 36 hrs | B76: 1320 | C76: 1609 | D76: 1959 | E76: 1647 | F76: 1646 | G76: 1591 | H76: 0.04106060606 | J76: Students Accumulating 36 hrs | K76: 1106 | L76: 1170 | M76: 1400 | N76: 1262 | O76: 1217 | P76: 1125 | Q76: 0.003435804702
A77: Dual Enrollment | B77: 974 | C77: 1060 | D77: 1003 | E77: 1095 | F77: 1155 | G77: 1253 | H77: 0.05728952772 | J77: Dual Enrollment | K77: 364 | L77: 402 | M77: 487 | N77: 566 | O77: 585 | P77: 723 | Q77: =((P77-K77)/K77)/5 -> 0.1972527473
A78: Associates | B78: 652 | C78: 617 | D78: 745 | E78: 842 | F78: 896 | G78: 1002 | H78: 0.1073619632 | J78: Associates | K78: 536 | L78: 635 | M78: 687 | N78: 696 | O78: 764 | P78: 720 | Q78: =((P78-K78)/K78)/5 -> 0.06865671642
A79: Certificates 1-2 Years | B79: 10 | C79: 3 | D79: 99 | E79: 123 | F79: 146 | G79: 229 | H79: 4.38 | J79: Certificates 1-2 Years | K79: 22 | L79: 5 | M79: 218 | N79: 132 | O79: 110 | P79: 104 | Q79: =((P79-K79)/K79)/5 -> 0.7454545455
A80: Certificates Less Than 1 Year | B80: 86 | C80: 101 | D80: 8 | E80: 28 | F80: 105 | G80: 194 | H80: 0.2511627907 | J80: Certificates Less Than 1 Year | K80: 132 | L80: 128 | M80: 4 | N80: 3 | O80: 10 | P80: 25 | Q80: =((P80-K80)/K80)/5 -> -0.1621212121
A81: Job Placements | B81: 424 | C81: 407 | D81: 381 | E81: 429 | F81: 407 | G81: 381 | H81: -0.02028301887 | J81: Job Placements | K81: 238 | L81: 248 | M81: 163 | N81: 249 | O81: 261 | P81: 275 | Q81: 0.03109243697
A82: Remedial & Developmental Success | B82: 2211 | C82: 2149 | D82: 2091 | E82: 2159 | F82: 2849 | G82: 2875 | H82: 0.06006331976 | J82: Remedial & Developmental Success | K82: 1364 | L82: 1404 | M82: 1352 | N82: 1475 | O82: 1855 | P82: 2129 | Q82: 0.112170088
A83: Transfers Out with 12 hrs | B83: 405 | C83: 345 | D83: 360 | E83: 440 | F83: 531 | G83: 561 | H83: 0.07703703704 | J83: Transfers Out with 12 hrs | K83: 388 | L83: 257 | M83: 340 | N83: 366 | O83: 404 | P83: 379 | Q83: -0.004639175258
A84: Workforce Training (Contact Hours) | B84: 71596 | C84: 41149 | D84: 97351 | E84: 163769.5 | F84: 241976.5 | G84: 149621 | H84: 0.2179591039 | J84: Workforce Training (Contact Hours) | K84: 4440 | L84: 6011 | M84: 4717 | N84: 5556 | O84: 6557.5 | P84: 6434 | Q84: 0.08981981982
A85: Awards per 100 FTE | B85: 14.13 | C85: 12.61 | D85: 13.17343461 | E85: 13.31769252 | F85: 14.7238917 | G85: 17.82680054 | H85: 0.05232555613 | J85: Awards per 100 FTE | K85: 18.58 | L85: 19.65 | M85: 20.06622223 | N85: 16.66141246 | O85: 18.6494445 | P85: 18.36361745 | Q85: -0.002329198554
A87: CLSCC | H87: Avg. Annual | J87: PSCC | Q87: Avg. Annual
B88: 2007-08 | C88: 2008-09 | D88: 2009-10 | E88: 2010-11 | F88: 2011-12 | G88: 2012-13 | H88: Change | K88: 2007-08 | L88: 2008-09 | M88: 2009-10 | N88: 2010-11 | O88: 2011-12 | P88: 2012-13 | Q88: Change
A89: Students Accumulating 12 hrs | B89: 1226 | C89: 1448 | D89: 1707 | E89: 1141 | F89: 1164 | G89: 1060 | H89: =((G89-B89)/B89)/5 -> -0.02707993475 | J89: Students Accumulating 12 hrs | K89: 3423 | L89: 3689 | M89: 4389 | N89: 2943 | O89: 3001 | P89: 2823 | Q89: =((P89-K89)/K89)/5 -> -0.03505696757
A90: Students Accumulating 24 hrs | B90: 879 | C90: 894 | D90: 1056 | E90: 897 | F90: 817 | G90: 716 | H90: =((G90-B90)/B90)/5 -> -0.03708759954 | J90: Students Accumulating 24 hrs | K90: 2262 | L90: 2513 | M90: 2847 | N90: 2490 | O90: 2350 | P90: 2346 | Q90: =((P90-K90)/K90)/5 -> 0.007427055703
A91: Students Accumulating 36 hrs | B91: 669 | C91: 688 | D91: 769 | E91: 744 | F91: 659 | G91: 605 | H91: -0.01913303438 | J91: Students Accumulating 36 hrs | K91: 1820 | L91: 1842 | M91: 2137 | N91: 2092 | O91: 2012 | P91: 1947 | Q91: 0.01395604396
A92: Dual Enrollment | B92: 382 | C92: 527 | D92: 582 | E92: 626 | F92: 627 | G92: 615 | H92: 0.1219895288 | J92: Dual Enrollment | K92: 675 | L92: 829 | M92: 1164 | N92: 1245 | O92: 1525 | P92: 1213 | Q92: 0.1594074074
A93: Associates | B93: 277 | C93: 291 | D93: 327 | E93: 354 | F93: 370 | G93: 372 | H93: 0.06859205776 | J93: Associates | K93: 652 | L93: 670 | M93: 794 | N93: 932 | O93: 1101 | P93: 1258 | Q93: =((P93-K93)/K93)/5 -> 0.1858895706
A94: Certificates 1-2 Years | B94: 33 | C94: 35 | D94: 22 | E94: 39 | F94: 49 | G94: 29 | H94: -0.02424242424 | J94: Certificates 1-2 Years | K94: 15 | L94: 17 | M94: 0 | N94: 0 | O94: 0 | P94: 0 | Q94: -0.2
A95: Certificates Less Than 1 Year | B95: 11 | C95: 7 | D95: 59 | E95: 145 | F95: 166 | G95: 153 | H95: 2.581818182 | J95: Certificates Less Than 1 Year | M95: 10 | N95: 3 | O95: 190 | P95: 1152 | Q95: N/A
A96: Job Placements | B96: 125 | C96: 135 | D96: 124 | E96: 200 | F96: 216 | G96: 190 | H96: 0.104 | J96: Job Placements | K96: 168 | L96: 190 | M96: 156 | N96: 189 | O96: 395 | P96: 310 | Q96: 0.169047619
A97: Remedial & Developmental Success | B97: 760 | C97: 766 | D97: 760 | E97: 836 | F97: 944 | G97: 1023 | H97: 0.06921052632 | J97: Remedial & Developmental Success | K97: 1743 | L97: 1769 | M97: 1926 | N97: 1986 | O97: 2760 | P97: 3140 | Q97: 0.1602983362
A98: Transfers Out with 12 hrs | B98: 187 | C98: 148 | D98: 183 | E98: 201 | F98: 236 | G98: 205 | H98: 0.0192513369 | J98: Transfers Out with 12 hrs | K98: 665 | L98: 704 | M98: 720 | N98: 614 | O98: 736 | P98: 840 | Q98: 0.05263157895
A99: Workforce Training (Contact Hours) | B99: 231 | C99: 379 | D99: 3582 | E99: 7276 | F99: 4014 | G99: 7596 | H99: 6.376623377 | J99: Workforce Training (Contact Hours) | K99: 22230 | L99: 19668 | M99: 34325 | N99: 62867 | O99: 46117.8 | P99: 45598 | Q99: 0.2102384166
A100: Awards per 100 FTE | B100: 13.81 | C100: 12.95 | D100: 13.45689168 | E100: 14.53832495 | F100: 15.73551319 | G100: 15.88894906 | H100: 0.03010787918 | J100: Awards per 100 FTE | K100: 11.07 | L100: 10.78 | M100: 11.06368353 | N100: 11.97256074 | O100: 13.97415015 | P100: 16.89838136 | Q100: 0.1053004762
A102: COSCC | H102: Avg. Annual | J102: RSCC | Q102: Avg. Annual
B103: 2007-08 | C103: 2008-09 | D103: 2009-10 | E103: 2010-11 | F103: 2011-12 | G103: 2012-13 | H103: Change | K103: 2007-08 | L103: 2008-09 | M103: 2009-10 | N103: 2010-11 | O103: 2011-12 | P103: 2012-13 | Q103: Change
A104: Students Accumulating 12 hrs | B104: 1920 | C104: 1789 | D104: 2144 | E104: 1620 | F104: 1558 | G104: 1538 | H104: =((G104-B104)/B104)/5 -> -0.03979166667 | J104: Students Accumulating 12 hrs | K104: 1955 | L104: 2029 | M104: 2494 | N104: 1784 | O104: 1687 | P104: 1642 | Q104: =((P104-K104)/K104)/5 -> -0.03202046036
A105: Students Accumulating 24 hrs | B105: 1357 | C105: 1401 | D105: 1599 | E105: 1412 | F105: 1304 | G105: 1284 | H105: =((G105-B105)/B105)/5 -> -0.01075902727 | J105: Students Accumulating 24 hrs | K105: 1474 | L105: 1462 | M105: 1696 | N105: 1414 | O105: 1269 | P105: 1256 | Q105: =((P105-K105)/K105)/5 -> -0.02957937585
A106: Students Accumulating 36 hrs | B106: 957 | C106: 1097 | D106: 1239 | E106: 1140 | F106: 1050 | G106: 1012 | H106: 0.01149425287 | J106: Students Accumulating 36 hrs | K106: 1137 | L106: 1170 | M106: 1230 | N106: 1189 | O106: 1107 | P106: 1111 | Q106: -0.004573438874
A107: Dual Enrollment | B107: 556 | C107: 649 | D107: 735 | E107: 674 | F107: 791 | G107: 843 | H107: 0.1032374101 | J107: Dual Enrollment | K107: 552 | L107: 816 | M107: 1023 | N107: 1372 | O107: 1655 | P107: 1632 | Q107: 0.3913043478
A108: Associates | B108: 472 | C108: 483 | D108: 543 | E108: 540 | F108: 611 | G108: 599 | H108: 0.05381355932 | J108: Associates | K108: 620 | L108: 617 | M108: 676 | N108: 771 | O108: 804 | P108: 787 | Q108: 0.05387096774
A109: Certificates 1-2 Years | C109: 9 | D109: 63 | E109: 51 | F109: 47 | G109: 52 | H109: N/A | J109: Certificates 1-2 Years | K109: 33 | L109: 28 | M109: 28 | N109: 60 | O109: 91 | P109: 77 | Q109: 0.2666666667
A110: Certificates Less Than 1 Year | B110: 14 | C110: 68 | D110: 2 | E110: 0 | F110: 2 | G110: 3 | H110: =((G110-B110)/B110)/5 -> -0.1571428571 | J110: Certificates Less Than 1 Year | K110: 28 | L110: 9 | M110: 26 | N110: 31 | O110: 22 | P110: 9 | Q110: -0.1357142857
A111: Job Placements | B111: 222 | C111: 158 | D111: 218 | E111: 240 | F111: 234 | G111: 212 | H111: -0.009009009009 | J111: Job Placements | K111: 432 | L111: 375 | M111: 360 | N111: 427 | O111: 391 | P111: 389 | Q111: -0.01990740741
A112: Remedial & Developmental Success | B112: 1225 | C112: 1220 | D112: 1184 | E112: 1248 | F112: 1465 | G112: 1553 | H112: 0.05355102041 | J112: Remedial & Developmental Success | K112: 1293 | L112: 1281 | M112: 1336 | N112: 1342 | O112: 1650 | P112: 1767 | Q112: 0.07331786543
A113: Transfers Out with 12 hrs | B113: 384 | C113: 386 | D113: 359 | E113: 410 | F113: 449 | G113: 413 | H113: 0.01510416667 | J113: Transfers Out with 12 hrs | K113: 399 | L113: 397 | M113: 417 | N113: 413 | O113: 486 | P113: 445 | Q113: 0.02305764411
A114: Workforce Training (Contact Hours) | B114: 84335 | C114: 44440 | D114: 71585 | E114: 67122 | F114: 54072 | G114: 63095 | H114: -0.05037054604 | J114: Workforce Training (Contact Hours) | K114: 48554 | L114: 47022 | M114: 49275 | N114: 94910 | O114: 82249.5 | P114: 116535 | Q114: 0.2800222433
A115: Awards per 100 FTE | B115: 15.48 | C115: 16.97 | D115: 16.30917458 | E115: 15.28975509 | F115: 18.18701112 | G115: 18.71066019 | H115: 0.04173979574 | J115: Awards per 100 FTE | K115: 17.06 | L115: 16.13 | M115: 15.94600104 | N115: 17.75274338 | O115: 19.99404274 | P115: 20.24098644 | Q115: 0.03729175188
A117: DSCC | H117: Avg. Annual | J117: STCC | Q117: Avg. Annual
B118: 2007-08 | C118: 2008-09 | D118: 2009-10 | E118: 2010-11 | F118: 2011-12 | G118: 2012-13 | H118: Change | K118: 2007-08 | L118: 2008-09 | M118: 2009-10 | N118: 2010-11 | O118: 2011-12 | P118: 2012-13 | Q118: Change
A119: Students Accumulating 12 hrs | B119: 1036 | C119: 1208 | D119: 1611 | E119: 1122 | F119: 1039 | G119: 959 | H119: =((G119-B119)/B119)/5 -> -0.01486486486 | J119: Students Accumulating 12 hrs | K119: 3694 | L119: 5453 | M119: 6666 | N119: 4127 | O119: 3898 | P119: 2976 | Q119: =((P119-K119)/K119)/5 -> -0.03887384949
A120: Students Accumulating 24 hrs | B120: 658 | C120: 732 | D120: 1028 | E120: 707 | F120: 780 | G120: 625 | H120: =((G120-B120)/B120)/5 -> -0.01003039514 | J120: Students Accumulating 24 hrs | K120: 3494 | L120: 3650 | M120: 4527 | N120: 3186 | O120: 3072 | P120: 2446 | Q120: =((P120-K120)/K120)/5 -> -0.0599885518
A121: Students Accumulating 36 hrs | B121: 511 | C121: 502 | D121: 609 | E121: 530 | F121: 542 | G121: 542 | H121: =((G121-B121)/B121)/5 -> 0.01213307241 | J121: Students Accumulating 36 hrs | K121: 2388 | L121: 2457 | M121: 2933 | N121: 2348 | O121: 2360 | P121: 1911 | Q121: -0.03994974874
A122: Dual Enrollment | B122: 430 | C122: 551 | D122: 599 | E122: 765 | F122: 803 | G122: 887 | H122: 0.2125581395 | J122: Dual Enrollment | K122: 143 | L122: 267 | M122: 421 | N122: 367 | O122: 409 | P122: 407 | Q122: 0.3692307692
A123: Associates | B123: 187 | C123: 213 | D123: 215 | E123: 260 | F123: 280 | G123: 300 | H123: 0.120855615 | J123: Associates | K123: 733 | L123: 609 | M123: 664 | N123: 841 | O123: 808 | P123: 897 | Q123: 0.04474761255
A124: Certificates 1-2 Years | B124: 18 | C124: 7 | D124: 0 | E124: 15 | F124: 32 | G124: 26 | H124: 0.08888888889 | J124: Certificates 1-2 Years | K124: 307 | L124: 274 | M124: 58 | N124: 63 | O124: 49 | P124: 63 | Q124: -0.1589576547
A125: Certificates Less Than 1 Year | D125: 14 | E125: 2 | F125: 11 | G125: 17 | H125: N/A | J125: Certificates Less Than 1 Year | K125: 46 | L125: 44 | M125: 300 | N125: 339 | O125: 305 | P125: 344 | Q125: 1.295652174
A126: Job Placements | B126: 92 | C126: 77 | D126: 72 | E126: 98 | F126: 101 | G126: 121 | H126: 0.06304347826 | J126: Job Placements | K126: 599 | L126: 435 | M126: 393 | N126: 366 | O126: 487 | P126: 434 | Q126: -0.0550918197
A127: Remedial & Developmental Success | B127: 859 | C127: 798 | D127: 734 | E127: 857 | F127: 1157 | G127: 1198 | H127: =((G127-B127)/B127)/5 -> 0.07892898719 | J127: Remedial & Developmental Success | K127: 4339 | L127: 3982 | M127: 3742 | N127: 3912 | O127: 4687 | P127: 4740 | Q127: 0.01848352155
A128: Transfers Out with 12 hrs | B128: 191 | C128: 170 | D128: 180 | E128: 190 | F128: 218 | G128: 242 | H128: 0.05340314136 | J128: Transfers Out with 12 hrs | K128: 574 | L128: 559 | M128: 589 | N128: 675 | O128: 778 | P128: 769 | Q128: 0.06794425087
A129: Workforce Training (Contact Hours) | B129: 6793 | C129: 6373 | D129: 5938 | E129: 5909 | F129: 6027 | G129: 7114 | H129: 0.009450905344 | J129: Workforce Training (Contact Hours) | K129: 58588 | L129: 57015 | M129: 45457 | N129: 53210.9 | O129: 74171.79 | P129: 75009 | Q129: 0.05605584761
A130: Awards per 100 FTE | B130: 11.12 | C130: 11.76 | D130: 9.40781797 | E130: 11.28143418 | F130: 13.3397942 | G130: 14.7047768 | H130: 0.06447440283 | J130: Awards per 100 FTE | K130: 10.07 | L130: 8.02 | M130: 7.673748764 | N130: 9.40161755 | O130: 9.033445885 | P130: 11.90481111 | Q130: 0.03644113435
A131: Tennessee Higher Education Commission
A132: Outcomes Historical Trends
A134: JSCC | H134: Avg. Annual | J134: VSCC | Q134: Avg. Annual
B135: 2007-08 | C135: 2008-09 | D135: 2009-10 | E135: 2010-11 | F135: 2011-12 | G135: 2012-13 | H135: Change | K135: 2007-08 | L135: 2008-09 | M135: 2009-10 | N135: 2010-11 | O135: 2011-12 | P135: 2012-13 | Q135: Change
A136: Students Accumulating 12 hrs | B136: 1915 | C136: 1882 | D136: 2375 | E136: 1351 | F136: 1194 | G136: 1127 | H136: =((G136-B136)/B136)/5 -> -0.08229765013 | J136: Students Accumulating 12 hrs | K136: 2916 | L136: 3145 | M136: 3899 | N136: 2469 | O136: 2132 | P136: 2037 | Q136: =((P136-K136)/K136)/5 -> -0.06028806584
A137: Students Accumulating 24 hrs | B137: 1086 | C137: 1088 | D137: 1314 | E137: 1010 | F137: 921 | G137: 899 | H137: =((G137-B137)/B137)/5 -> -0.03443830571 | J137: Students Accumulating 24 hrs | K137: 1665 | L137: 1891 | M137: 2262 | N137: 1781 | O137: 1684 | P137: 1597 | Q137: =((P137-K137)/K137)/5 -> -0.008168168168
A138: Students Accumulating 36 hrs | B138: 824 | C138: 863 | D138: 976 | E138: 847 | F138: 782 | G138: 691 | H138: -0.0322815534 | J138: Students Accumulating 36 hrs | K138: 1273 | L138: 1374 | M138: 1540 | N138: 1490 | O138: 1446 | P138: 1365 | Q138: =((P138-K138)/K138)/5 -> 0.01445404556
A139: Dual Enrollment | B139: 361 | C139: 666 | D139: 837 | E139: 971 | F139: 815 | G139: 800 | H139: 0.2432132964 | J139: Dual Enrollment | K139: 1353 | L139: 1334 | M139: 1351 | N139: 1519 | O139: 1566 | P139: 1792 | Q139: 0.06489283075
A140: Associates | B140: 470 | C140: 462 | D140: 524 | E140: 576 | F140: 554 | G140: 509 | H140: =((G140-B140)/B140)/5 -> 0.01659574468 | J140: Associates | K140: 590 | L140: 616 | M140: 628 | N140: 723 | O140: 763 | P140: 787 | Q140: 0.06677966102
A141: Certificates 1-2 Years | B141: 13 | C141: 13 | D141: 13 | E141: 0 | F141: 34 | G141: 34 | H141: 0.3230769231 | J141: Certificates 1-2 Years | K141: 131 | L141: 170 | M141: 73 | N141: 82 | O141: 88 | P141: 73 | Q141: -0.08854961832
A142: Certificates Less Than 1 Year | B142: 10 | C142: 20 | D142: 21 | E142: 22 | F142: 25 | G142: 41 | H142: 0.62 | J142: Certificates Less Than 1 Year | K142: 48 | L142: 65 | M142: 196 | N142: 310 | O142: 205 | P142: 399 | Q142: =((P142-K142)/K142)/5 -> 1.4625
A143: Job Placements | B143: 246 | C143: 246 | D143: 289 | E143: 279 | F143: 284 | G143: 357 | H143: 0.09024390244 | J143: Job Placements | K143: 344 | L143: 335 | M143: 392 | N143: 278 | O143: 387 | P143: 448 | Q143: 0.06046511628
A144: Remedial & Developmental Success | B144: 1058 | C144: 1150 | D144: 1094 | E144: 1171 | F144: 1408 | G144: 1435 | H144: 0.07126654064 | J144: Remedial & Developmental Success | K144: 1982 | L144: 1871 | M144: 1484 | N144: 1966 | O144: 2329 | P144: 2426 | Q144: 0.04480322906
A145: Transfers Out with 12 hrs | B145: 213 | C145: 241 | D145: 252 | E145: 288 | F145: 280 | G145: 294 | H145: 0.07605633803 | J145: Transfers Out with 12 hrs | K145: 572 | L145: 472 | M145: 522 | N145: 536 | O145: 627 | P145: 585 | Q145: 0.004545454545
A146: Workforce Training (Contact Hours) | B146: 35506 | C146: 2704 | D146: 21008 | E146: 17182 | F146: 14018.5 | G146: 17853 | H146: -0.09943671492 | J146: Workforce Training (Contact Hours) | K146: 33785 | L146: 56858 | M146: 98468 | N146: 71174 | O146: 95564.05 | P146: 74639 | Q146: 0.2418469735
A147: Awards per 100 FTE | B147: 15.43 | C147: 15.27 | D147: 14.89584008 | E147: 15.84318184 | F147: 17.37811185 | G147: 18.22820504 | H147: 0.03626967002 | J147: Awards per 100 FTE | K147: 13.54 | L147: 13.75 | M147: 11.8598474 | N147: 13.11979486 | O147: 14.65918683 | P147: 15.9989086 | Q147: 0.03632065881
A149: MSCC | H149: Avg. Annual | J149: WSCC | Q149: Avg. Annual
B150: 2007-08 | C150: 2008-09 | D150: 2009-10 | E150: 2010-11 | F150: 2011-12 | G150: 2012-13 | H150: Change | K150: 2007-08 | L150: 2008-09 | M150: 2009-10 | N150: 2010-11 | O150: 2011-12 | P150: 2012-13 | Q150: Change
A151: Students Accumulating 12 hrs | B151: 1830 | C151: 1956 | D151: 2202 | E151: 1457 | F151: 1410 | G151: 1363 | H151: =((G151-B151)/B151)/5 -> -0.05103825137 | J151: Students Accumulating 12 hrs | K151: 2268 | L151: 2444 | M151: 2842 | N151: 1988 | O151: 1976 | P151: 1927 | Q151: =((P151-K151)/K151)/5 -> -0.03007054674
A152: Students Accumulating 24 hrs | B152: 1257 | C152: 1330 | D152: 1599 | E152: 1139 | F152: 1133 | G152: 1044 | H152: =((G152-B152)/B152)/5 -> -0.0338902148 | J152: Students Accumulating 24 hrs | K152: 1564 | L152: 1715 | M152: 1970 | N152: 1474 | O152: 1393 | P152: 1311 | Q152: =((P152-K152)/K152)/5 -> -0.03235294118
A153: Students Accumulating 36 hrs | B153: 909 | C153: 970 | D153: 1140 | E153: 993 | F153: 962 | G153: 901 | H153: -0.001760176018 | J153: Students Accumulating 36 hrs | K153: 1172 | L153: 1342 | M153: 1411 | N153: 1329 | O153: 1173 | P153: 1112 | Q153: =((P153-K153)/K153)/5 -> -0.01023890785
A154: Dual Enrollment | B154: 563 | C154: 585 | D154: 686 | E154: 787 | F154: 854 | G154: 859 | H154: 0.1051509769 | J154: Dual Enrollment | K154: 959 | L154: 801 | M154: 924 | N154: 1011 | O154: 1261 | P154: 1407 | Q154: 0.09343065693
A155: Associates | B155: 404 | C155: 460 | D155: 537 | E155: 526 | F155: 627 | G155: 568 | H155: 0.08118811881 | J155: Associates | K155: 622 | L155: 558 | M155: 715 | N155: 720 | O155: 791 | P155: 838 | Q155: 0.06945337621
A156: Certificates 1-2 Years | B156: 7 | C156: 3 | D156: 0 | E156: 0 | F156: 0 | G156: 1 | H156: -0.1714285714 | J156: Certificates 1-2 Years | K156: 256 | L156: 224 | M156: 16 | N156: 16 | O156: 18 | P156: 14 | Q156: -0.1890625
A157: Certificates Less Than 1 Year | D157: 3 | E157: 28 | F157: 45 | G157: 22 | H157: N/A | J157: Certificates Less Than 1 Year | K157: 23 | L157: 3 | M157: 226 | N157: 256 | O157: 265 | P157: 226 | Q157: 1.765217391
A158: Job Placements | B158: 74 | C158: 74 | D158: 72 | E158: 70 | F158: 105 | G158: 73 | H158: -0.002702702703 | J158: Job Placements | K158: 508 | L158: 467 | M158: 507 | N158: 501 | O158: 544 | P158: 473 | Q158: -0.01377952756
A159: Remedial & Developmental Success | B159: 1055 | C159: 1156 | D159: 1307 | E159: 1440 | F159: 1692 | G159: 1620 | H159: 0.1071090047 | J159: Remedial & Developmental Success | K159: 1498 | L159: 1390 | M159: 1422 | N159: 1545 | O159: 1817 | P159: 1846 | Q159: 0.04646194927
A160: Transfers Out with 12 hrs | B160: 426 | C160: 406 | D160: 423 | E160: 508 | F160: 540 | G160: 499 | H160: 0.03427230047 | J160: Transfers Out with 12 hrs | K160: 399 | L160: 334 | M160: 383 | N160: 409 | O160: 479 | P160: 385 | Q160: -0.00701754386
A161: Workforce Training (Contact Hours) | B161: 1355 | C161: 1990 | D161: 12078 | E161: 5513 | F161: 8803 | G161: 5493 | H161: 0.6107749077 | J161: Workforce Training (Contact Hours) | K161: 32371 | L161: 37176 | M161: 88322 | N161: 129099 | O161: 197866 | P161: 194026 | Q161: 0.9987643261
A162: Awards per 100 FTE | B162: 14.17 | C162: 15.02 | D162: 15.30946792 | E162: 15.20538837 | F162: 19.12012848 | G162: 18.70397966 | H162: 0.06399406723 | J162: Awards per 100 FTE | K162: 15.9 | L162: 13 | M162: 14.85058001 | N162: 14.80279698 | O162: 17.35765933 | P162: 19.36642395 | Q162: 0.04360281704
A164: NASCC | H164: Avg. Annual
B165: 2007-08 | C165: 2008-09 | D165: 2009-10 | E165: 2010-11 | F165: 2011-12 | G165: 2012-13 | H165: Change | J165: Note: For the FY 2012-13 Outcomes Funding Formula, the original Community College Certificates outcome was split into two outcomes: Certificates 1-2 Years and Certificates Less Than 1 Year. As a result, the certificates classifications from the 2007-08 Data Year (which was used only in the FY 2011-12 Formula) are no longer aligned with the four most recent Data Years.
A166: Students Accumulating 12 hrs | B166: 2510 | C166: 2837 | D166: 3509 | E166: 2375 | F166: 2305 | G166: 2338 | H166: =((G166-B166)/B166)/5 -> -0.01370517928
A167: Students Accumulating 24 hrs | B167: 1812 | C167: 1973 | D167: 2554 | E167: 2048 | F167: 1937 | G167: 1824 | H167: =((G167-B167)/B167)/5 -> 0.001324503311
A168: Students Accumulating 36 hrs | B168: 1468 | C168: 1586 | D168: 1903 | E168: 1671 | F168: 1717 | G168: 1611 | H168: 0.01948228883
A169: Dual Enrollment | B169: 322 | C169: 790 | D169: 926 | E169: 1092 | F169: 997 | G169: 1119 | H169: 0.4950310559
A170: Associates | B170: 501 | C170: 529 | D170: 481 | E170: 531 | F170: 718 | G170: 624 | H170: =((G170-B170)/B170)/5 -> 0.04910179641
A171: Certificates 1-2 Years | B171: 47 | C171: 40 | D171: 41 | E171: 38 | F171: 113 | G171: 99 | H171: 0.2212765957
A172: Certificates Less Than 1 Year | B172: 70 | C172: 73 | D172: 48 | E172: 107 | F172: 117 | G172: 233 | H172: 0.4657142857
A173: Job Placements | B173: 312 | C173: 268 | D173: 258 | E173: 263 | F173: 335 | G173: 363 | H173: 0.03269230769
A174: Remedial & Developmental Success | B174: 2316 | C174: 2248 | D174: 2182 | E174: 2491 | F174: 3024 | G174: 3152 | H174: 0.07219343696
A175: Transfers Out with 12 hrs | B175: 472 | C175: 466 | D175: 533 | E175: 552 | F175: 675 | G175: 638 | H175: 0.07033898305
A176: Workforce Training (Contact Hours) | B176: 71959 | C176: 110590 | D176: 67613 | E176: 32948 | F176: 39563 | G176: 35965 | H176: -0.1000403007
A177: Awards per 100 FTE | B177: 12.79 | C177: 12.09 | D177: 8.748945489 | E177: 8.924020357 | F177: 12.6562036 | G177: 11.21022927 | H177: -0.02470321705

Sheet FAQs
A1: Tennessee Higher Education Commission
A2: Outcomes Funding Dynamic Simulation

Sheet Working
F3: Technical Corrections | J3: Total New Model
B4: 2014-15 | C4: 2014-15 | D4: Percent | F4: 2015-16 | G4: 2015-16 | H4: Percent | J4: 2015-16 | K4: 2015-16 | L4: Percent | N4: Change Due to
A5: Academic Formula Units | B5: Formula Calculation | C5: State Appr** | D5: Funded | F5: Formula Calculation | G5: Est State Appr* | H5: Funded | J5: Formula Calculation | K5: State Appr* | L5: Funded | N5: Funding and Outcomes
A6: TBR Universities
A7: Austin Peay | B7: 56186000 | C7: 34229500 | D7: =C7/B7 -> 0.6092175987 | F7: =B7 -> 56186000 | G7: =F7*($C$39/$B$39) -> 34233385.28 | H7: =G7/F7 -> 0.609286749 | J7: =Outcomes!D211 -> 56186000 | K7: =J7*('Printable Summary'!$C$7/$J$39) -> 34233385.28 | L7: =K7/J7 -> 0.609286749 | N7: =ROUND((K7-G7), -2) -> 0
A8: East Tennessee | B8: 78623000 | C8: 48031700 | D8: =C8/B8 -> 0.6109115653 | F8: =B8 -> 78623000 | G8: =F8*($C$39/$B$39) -> 47903952.07 | H8: =G8/F8 -> 0.609286749 | J8: =Outcomes!H211 -> 78623000 | K8: =J8*('Printable Summary'!$C$7/$J$39) -> 47903952.07 | L8: =K8/J8 -> 0.609286749 | N8: =ROUND((K8-G8), -2) -> 0
A9: Middle Tennessee | B9: 135820500 | C9: 82793000 | D9: 0.6095766103 | F9: 135820500 | G9: 82753630.89 | H9: 0.609286749 | J9: =Outcomes!G211 -> 135820500 | K9: =J9*('Printable Summary'!$C$7/$J$39) -> 82753630.89 | L9: 0.609286749 | N9: 0
A10: Tennessee State | B10: 52609300 | C10: 32094700 | D10: 0.6100575374 | F10: 52609300 | G10: 32054149.36 | H10: 0.609286749 | J10: =Outcomes!I211 -> 52609300 | K10: =J10*('Printable Summary'!$C$7/$J$39) -> 32054149.36 | L10: 0.609286749 | N10: 0
A11: Tennessee Tech | B11: 62960900 | C11: 38383300 | D11: 0.6096370922 | F11: 62960900 | G11: 38361242.08 | H11: 0.609286749 | J11: =Outcomes!E211 -> 62960900 | K11: =J11*('Printable Summary'!$C$7/$J$39) -> 38361242.08 | L11: 0.609286749 | N11: 0
A12: University of Memphis | B12: 146528000 | C12: 89314500 | D12: 0.6095387912 | F12: 146528000 | G12: 89277568.76 | H12: 0.609286749 | J12: =Outcomes!J211 -> 146528000 | K12: =J12*('Printable Summary'!$C$7/$J$39) -> 89277568.76 | L12: 0.609286749 | N12: 0
A13: Subtotal | B13: =SUM(B7:B12) -> 532727700 | C13: =SUM(C7:C12) -> 324846700 | D13: 0.6097800058 | F13: =SUM(F7:F12) -> 532727700 | G13: =SUM(G7:G12) -> 324583928.4 | H13: 0.609286749 | J13: =SUM(J7:J12) -> 532727700 | K13: =SUM(K7:K12) -> 324583928.4 | L13: 0.609286749 | N13: =SUM(N7:N12) -> 0
A14: Two-Year Colleges*
A15: Chattanooga | B15: 42730000 | C15: =B15*($C$28/$B$28) -> 26017879.95 | D15: =C15/B15 -> 0.6088902399 | F15: =B15 -> 42730000 | G15: =F15*($C$39/$B$39) -> 26034822.79 | H15: 0.609286749 | J15: =Outcomes!$C$68 -> 42730000 | K15: =J15*('Printable Summary'!$C$7/$J$39) -> 26034822.79 | L15: 0.609286749 | N15: =ROUND((K15-G15), -2) -> 0
A16: Cleveland | B16: 14530000 | C16: =B16*($C$28/$B$28) -> 8847175.186 | D16: 0.6088902399 | F16: =B16 -> 14530000 | G16: =F16*($C$39/$B$39) -> 8852936.463 | H16: 0.609286749 | J16: =Outcomes!$D$68 -> 14530000 | K16: =J16*('Printable Summary'!$C$7/$J$39) -> 8852936.463 | L16: 0.609286749 | N16: =ROUND((K16-G16), -2) -> 0
A17: Columbia | B17: 20290700 | C17: 12354809.19 | D17: 0.6088902399 | F17: 20290700 | G17: 12362854.64 | H17: 0.609286749 | J17: =Outcomes!$E$68 -> 20290700 | K17: =J17*('Printable Summary'!$C$7/$J$39) -> 12362854.64 | L17: 0.609286749 | N17: 0
A18: Dyersburg | B18: 12024000 | C18: 7321296.245 | D18: 0.6088902399 | F18: 12024000 | G18: 7326063.87 | H18: 0.609286749 | J18: =Outcomes!$F$68 -> 12024000 | K18: =J18*('Printable Summary'!$C$7/$J$39) -> 7326063.87 | L18: 0.609286749 | N18: 0
A19: Jackson | B19: 18229000 | C19: 11099460.18 | D19: 0.6088902399 | F19: 18229000 | G19: 11106688.15 | H19: 0.609286749 | J19: =Outcomes!$G$68 -> 18229000 | K19: =J19*('Printable Summary'!$C$7/$J$39) -> 11106688.15 | L19: =K19/J19 -> 0.609286749 | N19: 0
A20: Motlow | B20: 17508000 | C20: 10660450.32 | D20: 0.6088902399 | F20: 17508000 | G20: 10667392.4 | H20: 0.609286749 | J20: =Outcomes!$H$68 -> 17508000 | K20: =J20*('Printable Summary'!$C$7/$J$39) -> 10667392.4 | L20: 0.609286749 | N20: 0
A21: Nashville | B21: 26060000 | C21: 15867679.65 | D21: 0.6088902399 | F21: 26060000 | G21: 15878012.68 | H21: 0.609286749 | J21: =Outcomes!$I$68 -> 26060000 | K21: =J21*('Printable Summary'!$C$7/$J$39) -> 15878012.68 | L21: 0.609286749 | N21: 0
A22: Northeast | B22: 21726000 | C22: 13228749.35 | D22: 0.6088902399 | F22: 21726000 | G22: 13237363.91 | H22: 0.609286749 | J22: =Outcomes!$J$68 -> 21726000 | K22: =J22*('Printable Summary'!$C$7/$J$39) -> 13237363.91 | L22: 0.609286749 | N22: 0
A23: Pellissippi | B23: 38498000 | C23: 23441056.46 | D23: 0.6088902399 | F23: 38498000 | G23: 23456321.26 | H23: 0.609286749 | J23: =Outcomes!$K$68 -> 38498000 | K23: =J23*('Printable Summary'!$C$7/$J$39) -> 23456321.26 | L23: 0.609286749 | N23: 0
A24: Roane | B24: 28591000 | C24: 17408780.85 | D24: 0.6088902399 | F24: 28591000 | G24: 17420117.44 | H24: 0.609286749 | J24: =Outcomes!$L$68 -> 28591000 | K24: =J24*('Printable Summary'!$C$7/$J$39) -> 17420117.44 | L24: 0.609286749 | N24: 0
A25: Southwest | B25: 40541000 | C25: 24685019.22 | D25: 0.6088902399 | F25: 40541000 | G25: 24701094.09 | H25: 0.609286749 | J25: =Outcomes!$M$68 -> 40541000 | K25: =J25*('Printable Summary'!$C$7/$J$39) -> 24701094.09 | L25: 0.609286749 | N25: 0
A26: Volunteer | B26: 26644000 | C26: 16223271.55 | D26: 0.6088902399 | F26: 26644000 | G26: 16233836.14 | H26: 0.609286749 | J26: =Outcomes!$N$68 -> 26644000 | K26: =J26*('Printable Summary'!$C$7/$J$39) -> 16233836.14 | L26: 0.609286749 | N26: 0
A27: Walters | B27: 33438000 | C27: 20360071.84 | D27: 0.6088902399 | F27: 33438000 | G27: 20373330.31 | H27: 0.609286749 | J27: =Outcomes!$O$68 -> 33438000 | K27: =J27*('Printable Summary'!$C$7/$J$39) -> 20373330.31 | L27: 0.609286749 | N27: 0
A28: Subtotal | B28: =SUM(B15:B27) -> 340809700 | C28: 207515700 | D28: 0.6088902399 | F28: =SUM(F15:F27) -> 340809700 | G28: =SUM(G15:G27) -> 207650834.1 | H28: 0.609286749 | J28: =SUM(J15:J27) -> 340809700 | K28: =SUM(K15:K27) -> 207650834.1 | L28: 0.609286749 | N28: =SUM(N15:N27) -> 0
A29: UT Universities
A30: UT Chattanooga | B30: 61485000 | C30: =37505300 -> 37505300 | D30: =C30/B30 -> 0.6099910547 | F30: =B30 -> 61485000 | G30: =F30*($C$39/$B$39) -> 37461995.76 | H30: 0.609286749 | J30: =Outcomes!F211 -> 61485000 | K30: =J30*('Printable Summary'!$C$7/$J$39) -> 37461995.76 | L30: 0.609286749 | N30: =ROUND((K30-G30), -2) -> 0
A31: UT Knoxville | B31: 289041000 | C31: =179010600-3000000 -> 176010600 | D31: =C31/B31 -> 0.6089468276 | F31: =B31 -> 289041000 | G31: =F31*($C$39/$B$39) -> 176108851.2 | H31: 0.609286749 | J31: =Outcomes!K211 -> 289041000 | K31: =J31*('Printable Summary'!$C$7/$J$39) -> 176108851.2 | L31: 0.609286749 | N31: =ROUND((K31-G31), -2) -> 0
A32: UT Martin | B32: 42686000 | C32: =26248400-200000 -> 26048400 | D32: =C32/B32 -> 0.6102328632 | F32: 42686000 | G32: 26008014.17 | H32: 0.609286749 | J32: =Outcomes!C211 -> 42686000 | K32: =J32*('Printable Summary'!$C$7/$J$39) -> 26008014.17 | L32: 0.609286749 | N32: 0
A33: Subtotal | B33: =SUM(B30:B32) -> 393212000 | C33: =SUM(C30:C32) -> 239564300 | D33: =C33/B33 -> 0.6092497177 | F33: =SUM(F30:F32) -> 393212000 | G33: =SUM(G30:G32) -> 239578861.2 | H33: 0.609286749 | J33: =SUM(J30:J32) -> 393212000 | K33: =SUM(K30:K32) -> 239578861.2 | L33: 0.609286749 | N33: =SUM(N30:N32) -> 0
A35: Total Colleges and Universities | B35: =B33+B28+B13 -> 1266749400 | C35: =C33+C28+C13 -> 771926700 | D35: =C35/B35 -> 0.6093760139 | F35: =F33+F28+F13 -> 1266749400 | G35: =G33+G28+G13 -> 771813623.7 | H35: 0.609286749 | J35: =J33+J28+J13 -> 1266749400 | K35: =K33+K28+K13 -> 771813623.7 | L35: 0.609286749 | N35: =ROUND((K35-G35), -2) -> 0
A37: TN Colleges of Applied Technology | B37: 90955000 | C37: 55304600 | D37: =C37/B37 -> 0.608043538 | F37: =B37 -> 90955000 | G37: =F37*($C$39/$B$39) -> 55417676.26 | H37: 0.609286749 | J37: =B37*((J28+J13+J33)/(B28+B13+B33)) -> 90955000 | K37: =J37*('Printable Summary'!$C$7/$J$39) -> 55417676.26 | L37: =K37/J37 -> 0.609286749 | N37: =ROUND((K37-G37), -2) -> 0
A39: Total Academic Formula Units | B39: =B37+B35 -> 1357704400 | C39: =C37+C35 -> 827231300 | D39: =C39/B39 -> 0.609286749 | F39: =F37+F35 -> 1357704400 | G39: =G37+G35 -> 827231300 | H39: 0.609286749 | J39: =J37+J35 -> 1357704400 | K39: =K37+K35 -> 827231300 | L39: 0.609286749 | N39: =K39-G39 -> 0
A41: * Two-Year College Appropriations estimated using Governor's recommended overall recurring appropriation for two-year colleges and the THEC recommended distribution rates.
A42: **Includes insurance increase of $4.8 million for formula units - Legislative Action
B63: Static 2014-15 | C63: Rec Changes Due to | D63: Percent | F63: Appr Change Due to
A64: Academic Formula Units | B64: Formula Calculation | C64: Outcome Changes | D64: Funded | F64: Outcomes Changes
A65: TBR Universities
A66: Austin Peay | B66: =B7 -> 56186000 | C66: =J7-B66 -> 0 | D66: =K7/J7 -> 0.609286749 | F66: =ROUND(B66*L$39,-2) -> 34233400
A67: East Tennessee | B67: =B8 -> 78623000 | C67: 0 | D67: 0.609286749 | F67: =ROUND(B67*L$39,-2) -> 47904000
A68: Middle Tennessee | B68: 135820500 | C68: 0 | D68: 0.609286749 | F68: 82753600
A69: Tennessee State | B69: 52609300 | C69: 0 | D69: 0.609286749 | F69: 32054100
A70: Tennessee Tech | B70: 62960900 | C70: 0 | D70: 0.609286749 | F70: 38361200
A71: University of Memphis | B71: 146528000 | C71: 0 | D71: 0.609286749 | F71: 89277600
A72: Subtotal | B72: =SUM(B66:B71) -> 532727700 | C72: 0 | D72: 0.609286749 | F72: 324583900 | J72: Community College Distribution
A73: Two-Year Colleges | J73: 2014-15 THEC Rec | K73: 2014-15 Gov's Rec
A74: Chattanooga | B74: =B15 -> 42730000 | C74: =J15-B74 -> 0 | D74: =K15/J15 -> 0.609286749 | F74: =ROUND(B74*L$39,-2) -> 26034800 | J74: 26816300 | K74: =ROUND($K$87*(J74/$J$87),-2) -> 26017800
A75: Cleveland | B75: =B16 -> 14530000 | C75: 0 | D75: 0.609286749 | F75: 8852900 | J75: 9118700 | K75: =ROUND($K$87*(J75/$J$87),-2) -> 8847200
A76: Columbia | B76: 20290700 | C76: 0 | D76: 0.609286749 | F76: 12362900 | J76: 12734000 | K76: 12354800
A77: Dyersburg | B77: 12024000 | C77: 0 | D77: 0.609286749 | F77: 7326100 | J77: 7545900 | K77: 7321200
A78: Jackson | B78: 18229000 | C78: 0 | D78: 0.609286749 | F78: 11106700 | J78: 11440100 | K78: 11099500
A79: Motlow | B79: 17508000 | C79: 0 | D79: 0.609286749 | F79: 10667400 | J79: 10987600 | K79: 10660400
A80: Nashville | B80: 26060000 | C80: 0 | D80: 0.609286749 | F80: 15878000 | J80: 16354600 | K80: 15867600
A81: Northeast | B81: 21726000 | C81: 0 | D81: 0.609286749 | F81: 13237400 | J81: 13634800 | K81: 13228800
A82: Pellissippi | B82: 38498000 | C82: 0 | D82: 0.609286749 | F82: 23456300 | J82: 24160400 | K82: 23441000
A83: Roane | B83: 28591000 | C83: 0 | D83: 0.609286749 | F83: 17420100 | J83: 17943000 | K83: 17408700
A84: Southwest | B84: 40541000 | C84: 0 | D84: 0.609286749 | F84: 24701100 | J84: 25442600 | K84: 24685000
A85: Volunteer | B85: 26644000 | C85: 0 | D85: 0.609286749 | F85: 16233800 | J85: 16721200 | K85: 16223300
A86: Walters | B86: 33438000 | C86: 0 | D86: 0.609286749 | F86: 20373300 | J86: 20984900 | K86: 20360100
A87: Subtotal | B87: =SUM(B74:B86) -> 340809700 | C87: 0 | D87: 0.609286749 | F87: 207650800 | J87: =SUM(J74:J86) -> 213884100 | K87: =C28 -> 207515700
A88: UT Universities
A89: UT Chattanooga | B89: =B30 -> 61485000 | C89: =J30-B89 -> 0 | D89: =K30/J30 -> 0.609286749 | F89: =ROUND(B89*L$39,-2) -> 37462000
A90: UT Knoxville | B90: =B31 -> 289041000 | C90: =J31-B90 -> 0 | D90: =K31/J31 -> 0.609286749 | F90: =ROUND(B90*L$39,-2) -> 176108900
A91: UT Martin | B91: 42686000 | C91: =J32-B91 -> 0 | D91: =K32/J32 -> 0.609286749 | F91: =ROUND(B91*L$39,-2) -> 26008000
A92: Subtotal | B92: =SUM(B89:B91) -> 393212000 | C92: =J33-B92 -> 0 | D92: =K33/J33 -> 0.609286749 | F92: =ROUND(B92*L$39,-2) -> 239578900
A94: Total Colleges and Universities | B94: =B92+B87+B72 -> 1266749400 | C94: =J35-B94 -> 0 | D94: =K35/J35 -> 0.609286749 | F94: =ROUND(B94*L$39,-2) -> 771813600
A96: TN Colleges of Applied Technology | B96: =B37 -> 90955000 | C96: =J37-B96 -> 0 | D96: =K37/J37 -> 0.609286749 | F96: =ROUND(B96*L$39,-2) -> 55417700
A98: Total Academic Formula Units | B98: =B96+B94 -> 1357704400 | C98: =J39-B98 -> 0 | D98: =K39/J39 -> 0.609286749 | F98: =ROUND(B98*L$39,-2) -> 827231300
